Local authority department which incurred the expenditure,Service Division,Cost Centre,Summary of the Purpose of Expenditure,Expense Type,Expense Code,Detailed Expense Type,Date of Transaction,Transaction Number,Beneficiary,Merchant Category Number,Merchant Category,Gross Amount,VAT,Net Amount
"Regeneration, Economy and Growth",Business Durham CL0850,030689,Inward Investment and Aftercare,Supplies and Services,336005,Advertising E336,01-Mar-2021,000007458644946,LINKEDIN IRELAND,7311,Advertising other than for staff,58.69,0.00,58.69
Children and Young Peoples Services,Head of Childrens Social Care,085633,Families First Chester-Le-Street,Supplies and Services,338045,Services,01-Mar-2021,000007458644976,HSE-CIVIL REGISTRATION,9399,Legal expenses 338045,0.52,0.00,0.52
Resources BK0010,Digital and Customer Services,065432,Web Development Group,Supplies and Services,342053,Computers and Communications,01-Mar-2021,000007458645012,OASIS-WORKFLOW-LICENSE,7372,Computer software,7.01,0.00,7.01
Children and Young Peoples Services,Head of Early Help Inclusion & Vulnerable Children.,085956,Lumley,Supplies and Services,304403,Equipment and Materials,01-Mar-2021,000007458645178,AMZNMktplace,5999,Other consumables,12.35,2.06,10.29
"Regeneration, Economy and Growth",Business Durham CL0850,030689,Inward Investment and Aftercare,Supplies and Services,336005,Advertising E336,01-Mar-2021,000007463388310,LINKEDIN IRELAND,7311,Advertising other than for staff,9.60,0.00,9.60
"Regeneration, Economy and Growth",Business Durham CL0850,030689,Inward Investment and Aftercare,Supplies and Services,342222,Computers and Communications,01-Mar-2021,000007463388336,FASTHOSTS INTERNET,4816,Comp hardware purch-network servers,12.59,0.00,12.59
Children and Young Peoples Services,Head of Early Help Inclusion & Vulnerable Children.,071489,Winter Family Fund,Supplies and Services,364301,Grants to Voluntary Organisations,01-Mar-2021,000007463388530,ASDA GROCERIES ONLINE,5411,Hardship,18.98,0.00,18.98
Children and Young Peoples Services,Head of Education and Skills,071801,Selby Cottage Childcare Centre,Supplies and Services,304403,Equipment and Materials,01-Mar-2021,000007463388658,AMZNMktplace,5999,Other consumables,6.25,1.04,5.21
Children and Young Peoples Services,Head of Education and Skills,075021,Youth Employment Initiative,Supplies and Services,364301,Grants to Voluntary Organisations,01-Mar-2021,000007463389456,thetrainline.com,4112,Hardship,8.10,0.00,8.10
Children and Young Peoples Services,Head of Childrens Social Care,085332,Middlestone Moor CU,Supplies and Services,324117,Provisions E324,01-Mar-2021,000007463389796,ALDI 74 774,5411,Catering costs - provisions,28.82,0.00,28.82
Neighbourhoods and Climate Change,Environmental Services,010367,C&G - South Grounds Maintenance,Supplies and Services,304221,Equipment and Materials,01-Mar-2021,000007463390714,CARRS BILLINGTON SPENN,5599,Direct materials,455.55,0.00,455.55
Children and Young Peoples Services,Head of Early Help Inclusion & Vulnerable Children.,085952,Secure Education,Supplies and Services,324117,Provisions E324,01-Mar-2021,000007463391944,TESCO STORES 6329,5411,Catering costs - provisions,5.65,0.00,5.65
Children and Young Peoples Services,Head of Early Help Inclusion & Vulnerable Children.,085956,Lumley,Supplies and Services,304259,Equipment and Materials,01-Mar-2021,000007463391956,JD SPORTS INTERNET,5941,Equipment-purchase and rental,-23.99,0.00,-23.99
Children and Young Peoples Services,Head of Education and Skills,071732,Dean Bank Childcare,Supplies and Services,384999,Miscellaneous Expenses,01-Mar-2021,000007463393248,Amazon.co.uk MM8JF5024,5969,Other expenses,19.96,0.00,19.96
Children and Young Peoples Services,Head of Education and Skills,071732,Dean Bank Childcare,Supplies and Services,324117,Provisions E324,01-Mar-2021,000007463393262,ASDA GROCERIES ONLINE,5411,Catering costs - provisions,49.40,0.00,49.40
Children and Young Peoples Services,Head of Education and Skills,071732,Dean Bank Childcare,Supplies and Services,324117,Provisions E324,01-Mar-2021,000007463393282,Wm Morrisons Store Pic,5411,Catering costs - provisions,63.69,0.00,63.69
Children and Young Peoples Services,Head of Education and Skills,071732,Dean Bank Childcare,Supplies and Services,324117,Provisions E324,01-Mar-2021,000007463393306,ASDA GROCERIES ONLINE,5411,Catering costs - provisions,-4.00,0.00,-4.00
Children and Young Peoples Services,Head of Childrens Social Care,085334,West Rainton Satelite Home,Supplies and Services,304999,Equipment and Materials,01-Mar-2021,000007463393474,T.L.GREY CHEMIST,5912,Misc equipment tools and materials,9.49,0.00,9.49
"Regeneration, Economy and Growth",Development and Housing,030771,Durham Advance Flexible Fund,Supplies and Services,304259,Equipment and Materials,01-Mar-2021,000007463393930,GEN REGISTER OFFICE,9399,Equipment-purchase and rental,14.00,0.00,14.00
"Regeneration, Economy and Growth",Development and Housing,031623,Rough,Supplies and Services,352001,Conference Expenses,01-Mar-2021,000007463394562,AYCLIFFE BIZ,7011,Conferencesseminars fees etc,152.00,0.00,152.00
"Regeneration, Economy and Growth",Development and Housing,031623,Rough,Supplies and Services,352001,Conference Expenses,01-Mar-2021,000007463394588,AYCLIFFE BIZ,7011,Conferencesseminars fees etc,152.00,0.00,152.00
"Regeneration, Economy and Growth",Development and Housing,031623,Rough,Transport,235057,Public Transport,01-Mar-2021,000007463394594,BLUE LINE TAXIS,4121,Staff travelling,34.10,0.00,34.10
"Regeneration, Economy and Growth",Development and Housing,031623,Rough,Supplies and Services,324117,Provisions E324,01-Mar-2021,000007463394612,ASDA STORES,5411,Catering costs - provisions,51.00,0.00,51.00
"Regeneration, Economy and Growth",Development and Housing,031623,Rough,Supplies and Services,304999,Equipment and Materials,01-Mar-2021,000007463394622,DUNCAN BELTON TA K,6513,Misc equipment tools and materials,500.00,0.00,500.00
"Regeneration, Economy and Growth",Development and Housing,031623,Rough,Supplies and Services,304999,Equipment and Materials,01-Mar-2021,000007463394634,DUNCAN BELTON TA K,6513,Misc equipment tools and materials,500.00,0.00,500.00
"Regeneration, Economy and Growth",Development and Housing,031623,Rough,Supplies and Services,304999,Equipment and Materials,01-Mar-2021,000007463394640,DUNCAN BELTON TA K,6513,Misc equipment tools and materials,500.00,0.00,500.00
"Regeneration, Economy and Growth",Development and Housing,031623,Rough,Supplies and Services,304999,Equipment and Materials,01-Mar-2021,000007463394652,DUNCAN BELTON TA K,6513,Misc equipment tools and materials,500.00,0.00,500.00
Children and Young Peoples Services,Head of Early Help Inclusion & Vulnerable Children.,071489,Winter Family Fund,Supplies and Services,384999,Miscellaneous Expenses,01-Mar-2021,000007463394828,Amazon.co.uk MM3KO70I4,5969,Other expenses,113.00,0.00,113.00
Resources BK0010,People & Talent Management,010984,Training and Development,Employees,040149,Recruitment Instruction and Training,01-Mar-2021,000007463395040,PAYPAL NPORS LTD,8699,Training-all costs,48.00,0.00,48.00
Children and Young Peoples Services,Head of Childrens Social Care,085331,New Lea Childrens Home,Supplies and Services,324117,Provisions E324,01-Mar-2021,000007463395172,SAINSBURYS 2078,5411,Catering costs - provisions,10.00,0.00,10.00
Children and Young Peoples Services,Head of Childrens Social Care,085331,New Lea Childrens Home,Supplies and Services,324117,Provisions E324,01-Mar-2021,000007463395178,SAINSBURYS 2078,5411,Catering costs - provisions,116.53,0.00,116.53
Children and Young Peoples Services,Head of Childrens Social Care,085331,New Lea Childrens Home,Supplies and Services,348037,Subsistence E348,01-Mar-2021,000007463395698,PACITTO,5814,Subsistence,6.30,0.00,6.30
Children and Young Peoples Services,Head of Childrens Social Care,085331,New Lea Childrens Home,Supplies and Services,324117,Provisions E324,01-Mar-2021,000007463395710,TESCO STORES 2971,5411,Catering costs - provisions,12.00,0.00,12.00
"Regeneration, Economy and Growth",Development and Housing,031576,B& B - Temp Accom,Supplies and Services,364320,Grants to Voluntary Organisations,01-Mar-2021,000007463395748,THE HONEST LAWYER,7011,Accommodation assistance,59.55,0.00,59.55
"Regeneration, Economy and Growth",Development and Housing,031576,B& B - Temp Accom,Supplies and Services,364320,Grants to Voluntary Organisations,01-Mar-2021,000007463395758,THE HONEST LAWYER,7011,Accommodation assistance,319.65,0.00,319.65
"Regeneration, Economy and Growth",Development and Housing,031576,B& B - Temp Accom,Supplies and Services,364320,Grants to Voluntary Organisations,01-Mar-2021,000007463395768,THE HONEST LAWYER,7011,Accommodation assistance,500.00,0.00,500.00
Neighbourhoods and Climate Change,Environmental Services,010367,C&G - South Grounds Maintenance,Supplies and Services,304221,Equipment and Materials,01-Mar-2021,000007463395938,CARRS BILLINGTON SPENN,5599,Direct materials,470.18,0.00,470.18
Neighbourhoods and Climate Change,Environmental Services,010367,C&G - South Grounds Maintenance,Supplies and Services,304221,Equipment and Materials,01-Mar-2021,000007463395950,CARRS BILLINGTON SPENN,5599,Direct materials,27.50,0.00,27.50
Adult and Health Services,Head of Adults,055643,Hawthorn House LD Respite Unit,Supplies and Services,304403,Equipment and Materials,01-Mar-2021,000007463396078,AMZNMKTPLACE AMAZON.CO,5999,Other consumables,14.99,0.00,14.99
Children and Young Peoples Services,Head of Childrens Social Care,085352,Tow Law CU,Supplies and Services,384999,Miscellaneous Expenses,01-Mar-2021,000007463396444,Amazon.co.uk MM12T7064,5969,Other expenses,15.98,2.66,13.32
Children and Young Peoples Services,Head of Childrens Social Care,085352,Tow Law CU,Supplies and Services,304403,Equipment and Materials,01-Mar-2021,000007463396456,AMZNMktplace,5999,Other consumables,22.98,3.83,19.15
Children and Young Peoples Services,Head of Childrens Social Care,085352,Tow Law CU,Supplies and Services,308011,Furniture,01-Mar-2021,000007463396462,WF WAYFAIR3525873984,5712,Furniture repair and replacement,329.99,0.00,329.99
Children and Young Peoples Services,Head of Childrens Social Care,085352,Tow Law CU,Supplies and Services,304403,Equipment and Materials,01-Mar-2021,000007463396472,AMZNMktplace,5999,Other consumables,65.46,10.91,54.55
Adult and Health Services,Head of Adults,055643,Hawthorn House LD Respite Unit,Supplies and Services,324117,Provisions E324,01-Mar-2021,000007463396690,FREEMAN CATERING BUTCH,5422,Catering costs - provisions,26.83,0.00,26.83
Adult and Health Services,Head of Adults,055643,Hawthorn House LD Respite Unit,Supplies and Services,324117,Provisions E324,01-Mar-2021,000007463396696,JR HOLLAND FOODSERVICE,5499,Catering costs - provisions,15.98,0.00,15.98
Children and Young Peoples Services,Head of Education and Skills,078100,Curric and Professional Development 078100,Supplies and Services,384999,Miscellaneous Expenses,01-Mar-2021,000007463396832,PAYPAL TEACHERHEAD,8211,Other expenses,70.00,11.67,58.33
Children and Young Peoples Services,Head of Education and Skills,070102,Engagement with Young People,Supplies and Services,324117,Provisions E324,01-Mar-2021,000007463396842,WM MORRISONS STORE,5411,Catering costs - provisions,15.00,0.00,15.00
Children and Young Peoples Services,Head of Education and Skills,070102,Engagement with Young People,Supplies and Services,324117,Provisions E324,01-Mar-2021,000007463396852,WM MORRISONS STORE,5411,Catering costs - provisions,210.00,0.00,210.00
Neighbourhoods and Climate Change,Environmental Services,010301,C&G - North Grounds Maintenance,Supplies and Services,304999,Equipment and Materials,01-Mar-2021,000007463396916,RICKERBY,5251,Misc equipment tools and materials,31.56,0.00,31.56
Children and Young Peoples Services,Head of Childrens Social Care,085342,16 Hickstead Rise (previously 9 Cedar Ave),Supplies and Services,324117,Provisions E324,01-Mar-2021,000007463397062,TESCO STORES 2916,5411,Catering costs - provisions,20.00,0.00,20.00
Resources BK0010,Digital and Customer Services,065487,ICT Telephony Recharges,Supplies and Services,344033,Telephones,01-Mar-2021,000007463397158,AMZNMktplace,5999,Telephones general-all costs,162.00,27.00,135.00
Resources BK0010,Digital and Customer Services,065487,ICT Telephony Recharges,Supplies and Services,344033,Telephones,01-Mar-2021,000007463397158 - 1,AMZNMktplace,5999,Telephones general-all costs,0.25,,0.25
Resources BK0010,Business Support,065503,Business Support - Spectrum,Supplies and Services,304403,Equipment and Materials,01-Mar-2021,000007463397230,SP WILSONS WORKWEAR,5734,Other consumables,27.94,0.00,27.94
Resources BK0010,Business Support,065503,Business Support - Spectrum,Supplies and Services,304999,Equipment and Materials,01-Mar-2021,000007463397246,WWW.MAD4TOOLS.COM,5072,Misc equipment tools and materials,22.90,0.00,22.90
Resources BK0010,Business Support,065503,Business Support - Spectrum,Supplies and Services,328041,Clothing uniforms and laundry E328,01-Mar-2021,000007463397256,BOOHOO.COM,5691,Clothing uniforms and laundry,17.99,0.00,17.99
Resources BK0010,Business Support,065503,Business Support - Spectrum,Supplies and Services,304403,Equipment and Materials,01-Mar-2021,000007463397264,AMZNMKTPLACE AMAZON.CO,5999,Other consumables,7.95,1.33,6.62
Resources BK0010,Business Support,065503,Business Support - Spectrum,Supplies and Services,328041,Clothing uniforms and laundry E328,01-Mar-2021,000007463397272,ARGOS LTD,5310,Clothing uniforms and laundry,429.98,0.00,429.98
Neighbourhoods and Climate Change,Environmental Services,010301,C&G - North Grounds Maintenance,Supplies and Services,304999,Equipment and Materials,01-Mar-2021,000007463397536,GUSTHARTS,5072,Misc equipment tools and materials,45.87,0.00,45.87
Children and Young Peoples Services,Head of Education and Skills,071802,Louisa Cent Nursery,Supplies and Services,324117,Provisions E324,01-Mar-2021,000007463397704,ALDI 11 774,5411,Catering costs - provisions,11.89,0.00,11.89
Children and Young Peoples Services,Head of Childrens Social Care,085331,New Lea Childrens Home,Premises,120037,Energy Costs,01-Mar-2021,000007463398186,SCOTTISHPOWER,4900,Other fuels,252.35,0.00,252.35
Chief Executive's Office,Communications Management,060270,Communications and Marketing,Supplies and Services,372009,Subscriptions E372,01-Mar-2021,000007463398296,STK Shutterstock,7333,Subscriptions 372009,369.00,0.00,369.00
Children and Young Peoples Services,Head of Childrens Social Care,085341,High Etherley Satelite Home,Supplies and Services,324117,Provisions E324,01-Mar-2021,000007463398462,TESCO STORES 6329,5411,Catering costs - provisions,12.38,0.00,12.38
Children and Young Peoples Services,Head of Childrens Social Care,085332,Middlestone Moor CU,Supplies and Services,324117,Provisions E324,01-Mar-2021,000007463398712,SAINSBURYS SACAT 0776,5411,Catering costs - provisions,22.25,0.00,22.25
Children and Young Peoples Services,Head of Childrens Social Care,085332,Middlestone Moor CU,Supplies and Services,304221,Equipment and Materials,01-Mar-2021,000007463398724,B & Q 1343,5200,Direct materials,75.00,0.00,75.00
Children and Young Peoples Services,Head of Early Help Inclusion & Vulnerable Children.,088117,East Area - Teenage Parent Programme,Supplies and Services,384302,Miscellaneous Expenses,01-Mar-2021,000007463399008,AMZNMktplace,5999,Activity expenses,49.00,0.00,49.00
Children and Young Peoples Services,Head of Early Help Inclusion & Vulnerable Children.,088117,East Area - Teenage Parent Programme,Supplies and Services,384302,Miscellaneous Expenses,01-Mar-2021,000007463399020,Amazon.co.uk MM34770X4,5969,Activity expenses,85.51,14.25,71.26
Resources BK0010,Legal & Democratic Services,067953,Coroner County Durham & Darlington,Supplies and Services,342033,Computers and Communications,01-Mar-2021,000007466151114,ARGOS LTD,5310,Computer hardware,9.99,0.00,9.99
Children and Young Peoples Services,Head of Education and Skills,078100,Curric and Professional Development 078100,Supplies and Services,384999,Miscellaneous Expenses,01-Mar-2021,000007466152956,PAYPAL TEACHERHEAD,8211,Other expenses,-70.00,-11.67,-58.33
Children and Young Peoples Services,Head of Childrens Social Care,085341,High Etherley Satelite Home,Supplies and Services,324117,Provisions E324,02-Mar-2021,000007466150840,TESCO STORES 6329,5411,Catering costs - provisions,139.09,0.00,139.09
"Regeneration, Economy and Growth",Business Durham CL0850,030689,Inward Investment and Aftercare,Supplies and Services,304403,Equipment and Materials,02-Mar-2021,000007466150858,ADOBE CREATIVE CLOUD,5734,Other consumables,49.94,0.00,49.94
"Regeneration, Economy and Growth",Business Durham CL0850,030689,Inward Investment and Aftercare,Supplies and Services,342222,Computers and Communications,02-Mar-2021,000007466150876,FASTHOSTS INTERNET,4816,Comp hardware purch-network servers,67.20,0.00,67.20
"Regeneration, Economy and Growth",Business Durham CL0850,030689,Inward Investment and Aftercare,Supplies and Services,342222,Computers and Communications,02-Mar-2021,000007466150882,FASTHOSTS INTERNET,4816,Comp hardware purch-network servers,72.66,0.00,72.66
Children and Young Peoples Services,Head of Education and Skills,071801,Selby Cottage Childcare Centre,Supplies and Services,304403,Equipment and Materials,02-Mar-2021,000007466150930,AMZNMktplace,5999,Other consumables,26.93,4.49,22.44
Children and Young Peoples Services,Head of Education and Skills,071801,Selby Cottage Childcare Centre,Supplies and Services,324117,Provisions E324,02-Mar-2021,000007466150944,ASDA GROCERIES ONLINE,5411,Catering costs - provisions,96.75,0.00,96.75
Children and Young Peoples Services,Head of Education and Skills,071801,Selby Cottage Childcare Centre,Supplies and Services,384999,Miscellaneous Expenses,02-Mar-2021,000007466150948,Amazon.co.uk MM7OA8PL4,5969,Other expenses,16.40,2.74,13.66
Children and Young Peoples Services,Head of Education and Skills,071801,Selby Cottage Childcare Centre,Supplies and Services,304403,Equipment and Materials,02-Mar-2021,000007466150956,AMZNMktplace,5999,Other consumables,5.99,1.00,4.99
Children and Young Peoples Services,Head of Education and Skills,071801,Selby Cottage Childcare Centre,Supplies and Services,304403,Equipment and Materials,02-Mar-2021,000007466150962,AMZNMktplace,5999,Other consumables,26.67,4.45,22.22
Children and Young Peoples Services,Head of Education and Skills,071801,Selby Cottage Childcare Centre,Supplies and Services,324117,Provisions E324,02-Mar-2021,000007466150968,ASDA GROCERIES ONLINE,5411,Catering costs - provisions,-0.76,0.00,-0.76
Resources BK0010,Legal & Democratic Services,067910,Democratic Representation 067910,Supplies and Services,344033,Telephones,02-Mar-2021,000007466151012,AMZNMktplace,5999,Telephones general-all costs,32.94,5.49,27.45
Resources BK0010,Legal & Democratic Services,067910,Democratic Representation 067910,Supplies and Services,344033,Telephones,02-Mar-2021,000007466151012 - 1,AMZNMktplace,5999,Telephones general-all costs,0.03,,0.03
Resources BK0010,Business Support,065505,Business Support - HQ,Supplies and Services,344033,Telephones,02-Mar-2021,000007466151030,AMZNMktplace,5999,Telephones general-all costs,7.99,1.33,6.66
Children and Young Peoples Services,Head of Childrens Social Care,085501,Child Care Cases Legal Expenses,Supplies and Services,304403,Equipment and Materials,02-Mar-2021,000007466151090,SUNDERLAND CC,7523,Other consumables,11.00,0.00,11.00
Resources BK0010,Legal & Democratic Services,069326,Practice Management,Supplies and Services,384956,Miscellaneous Expenses,02-Mar-2021,000007466151104,WWW.BARPROFESSIONALTRA,8111,Licences,281.00,0.00,281.00
Children and Young Peoples Services,Head of Childrens Social Care,085501,Child Care Cases Legal Expenses,Supplies and Services,304403,Equipment and Materials,02-Mar-2021,000007466151122,www.lbbd.gov.uk,8911,Other consumables,13.50,0.00,13.50
Children and Young Peoples Services,Head of Education and Skills,075021,Youth Employment Initiative,Supplies and Services,364301,Grants to Voluntary Organisations,02-Mar-2021,000007466151134,thetrainline.com,4112,Hardship,8.56,0.00,8.56
Children and Young Peoples Services,Head of Education and Skills,075021,Youth Employment Initiative,Supplies and Services,364301,Grants to Voluntary Organisations,02-Mar-2021,000007466151142,thetrainline.com,4112,Hardship,8.56,0.00,8.56
Children and Young Peoples Services,Head of Education and Skills,075021,Youth Employment Initiative,Supplies and Services,364301,Grants to Voluntary Organisations,02-Mar-2021,000007466151144,thetrainline.com,4112,Hardship,8.56,0.00,8.56
Children and Young Peoples Services,Head of Education and Skills,075021,Youth Employment Initiative,Supplies and Services,364301,Grants to Voluntary Organisations,02-Mar-2021,000007466151154,thetrainline.com,4112,Hardship,8.56,0.00,8.56
Children and Young Peoples Services,Head of Education and Skills,075021,Youth Employment Initiative,Supplies and Services,364301,Grants to Voluntary Organisations,02-Mar-2021,000007466151160,thetrainline.com,4112,Hardship,8.56,0.00,8.56
Children and Young Peoples Services,Head of Education and Skills,075021,Youth Employment Initiative,Supplies and Services,364301,Grants to Voluntary Organisations,02-Mar-2021,000007466151170,thetrainline.com,4112,Hardship,8.56,0.00,8.56
Children and Young Peoples Services,Head of Education and Skills,075021,Youth Employment Initiative,Supplies and Services,364301,Grants to Voluntary Organisations,02-Mar-2021,000007466151180,Trainline,4112,Hardship,8.56,0.00,8.56
Children and Young Peoples Services,Head of Education and Skills,075021,Youth Employment Initiative,Supplies and Services,364301,Grants to Voluntary Organisations,02-Mar-2021,000007466151186,Trainline,4112,Hardship,8.56,0.00,8.56
"Regeneration, Economy and Growth",Culture Sport and Tourism,011290,Community Testing,Supplies and Services,304259,Equipment and Materials,02-Mar-2021,000007466151282,WWW.RYMAN.CO.UK,5943,Equipment-purchase and rental,29.95,0.00,29.95
"Regeneration, Economy and Growth",Culture Sport and Tourism,030708,VCD - Marketing & Information,Supplies and Services,304999,Equipment and Materials,02-Mar-2021,000007466151290,MAILCHIMP MONTHLY,5968,Misc equipment tools and materials,304.40,0.00,304.40
Children and Young Peoples Services,Head of Childrens Social Care,085332,Middlestone Moor CU,Supplies and Services,324117,Provisions E324,02-Mar-2021,000007466151306,TESCO STORES 2371,5411,Catering costs - provisions,168.65,0.00,168.65
Children and Young Peoples Services,Head of Childrens Social Care,085332,Middlestone Moor CU,Supplies and Services,324117,Provisions E324,02-Mar-2021,000007466151318,TESCO STORES 2916,5411,Catering costs - provisions,3.68,0.00,3.68
Resources BK0010,Business Support,065503,Business Support - Spectrum,Supplies and Services,324117,Provisions E324,02-Mar-2021,000007466151640,CUSTOM COOKIE,5462,Catering costs - provisions,"1,076.30",0.00,1076.30
"Regeneration, Economy and Growth",Development and Housing,030776,LINKCD Flexible Fund,Supplies and Services,304403,Equipment and Materials,02-Mar-2021,000007466151648,AMZNMktplace,5999,Other consumables,7.71,0.00,7.71
"Regeneration, Economy and Growth",Development and Housing,030776,LINKCD Flexible Fund,Supplies and Services,304403,Equipment and Materials,02-Mar-2021,000007466151656,AMZNMktplace,5999,Other consumables,7.93,0.00,7.93
"Regeneration, Economy and Growth",Development and Housing,030776,LINKCD Flexible Fund,Supplies and Services,344033,Telephones,02-Mar-2021,000007466151664,VODAFONE LTD,4814,Telephones general-all costs,25.00,0.00,25.00
Children and Young Peoples Services,Head of Early Help Inclusion & Vulnerable Children.,071489,Winter Family Fund,Supplies and Services,384700,Miscellaneous Expenses,02-Mar-2021,000007466151716,ASDA GROCERIES ONLINE,5411,Miscellaneous grants,57.85,0.00,57.85
Children and Young Peoples Services,Head of Early Help Inclusion & Vulnerable Children.,071489,Winter Family Fund,Supplies and Services,384700,Miscellaneous Expenses,02-Mar-2021,000007466151726,ASDA GEORGE COM LEEDS,5411,Miscellaneous grants,-32.00,0.00,-32.00
Children and Young Peoples Services,Head of Early Help Inclusion & Vulnerable Children.,071489,Winter Family Fund,Supplies and Services,384700,Miscellaneous Expenses,02-Mar-2021,000007466151730,ASDA GROCERIES ONLINE,5411,Miscellaneous grants,-1.00,0.00,-1.00
Adult and Health Services,Head of Adults,052753,Social Care Direct 052753,Supplies and Services,308013,Furniture,02-Mar-2021,000007466151742,FRANKS THE FLOORING ST,5713,Curtains and carpets,400.00,66.67,333.33
Neighbourhoods and Climate Change,Environmental Services,010367,C&G - South Grounds Maintenance,Supplies and Services,304221,Equipment and Materials,02-Mar-2021,000007466151806,BTL TIMBER AND HARDWAR,5099,Direct materials,66.52,0.00,66.52
"Regeneration, Economy and Growth",Development and Housing,031578,Client Travel Reimbursements,Transport,235073,Public Transport,02-Mar-2021,000007466151826,BLUE LINE TAXIS,4121,Travel-clients/students/children,22.80,0.00,22.80
"Regeneration, Economy and Growth",Development and Housing,031576,B& B - Temp Accom,Supplies and Services,364320,Grants to Voluntary Organisations,02-Mar-2021,000007466151836,THE HONEST LAWYER,7011,Accommodation assistance,79.95,0.00,79.95
Children and Young Peoples Services,Head of Early Help Inclusion & Vulnerable Children.,085952,Secure Education,Supplies and Services,384999,Miscellaneous Expenses,02-Mar-2021,000007466151864,Amazon.co.uk MM0YS9PK4,5969,Other expenses,18.54,3.09,15.45
Children and Young Peoples Services,Head of Early Help Inclusion & Vulnerable Children.,085957,Secure Management,Supplies and Services,384999,Miscellaneous Expenses,02-Mar-2021,000007466151864 - 1,Amazon.co.uk MM0YS9PK4,5969,Other expenses,0.03,,0.03
Children and Young Peoples Services,Head of Early Help Inclusion & Vulnerable Children.,085954,Walworth,Supplies and Services,304259,Equipment and Materials,02-Mar-2021,000007466151870,JD SPORTS INTERNET,5941,Equipment-purchase and rental,-30.00,0.00,-30.00
Children and Young Peoples Services,Head of Education and Skills,071732,Dean Bank Childcare,Supplies and Services,304403,Equipment and Materials,02-Mar-2021,000007466152124,AMZNMKTPLACE AMAZON.CO,5999,Other consumables,12.25,0.00,12.25
Children and Young Peoples Services,Head of Education and Skills,071732,Dean Bank Childcare,Supplies and Services,304403,Equipment and Materials,02-Mar-2021,000007466152134,AMZNMktplace,5999,Other consumables,15.98,0.00,15.98
Children and Young Peoples Services,Head of Education and Skills,071732,Dean Bank Childcare,Supplies and Services,304403,Equipment and Materials,02-Mar-2021,000007466152138,AMZNMktplace,5999,Other consumables,15.98,0.00,15.98
Children and Young Peoples Services,Head of Education and Skills,071732,Dean Bank Childcare,Supplies and Services,384999,Miscellaneous Expenses,02-Mar-2021,000007466152144,BAKER ROSS,5970,Other expenses,109.70,0.00,109.70
Children and Young Peoples Services,Head of Education and Skills,071903,Early Years Sustainability,Supplies and Services,304999,Equipment and Materials,02-Mar-2021,000007466152164,Adobe.com,5817,Misc equipment tools and materials,23.99,0.00,23.99
"Regeneration, Economy and Growth",Development and Housing,031500,Housing Solutions - Core Team,Supplies and Services,352001,Conference Expenses,02-Mar-2021,000007466152204,TOAST LETTINGS,7011,Conferencesseminars fees etc,300.00,0.00,300.00
Children and Young Peoples Services,Head of Early Help Inclusion & Vulnerable Children.,088107,Ferryhill & Newton Aycliffe 0-19 Community Family Hub,Supplies and Services,304403,Equipment and Materials,02-Mar-2021,000007466152244,AMZNMktplace,5999,Other consumables,12.17,2.03,10.14
Children and Young Peoples Services,Head of Early Help Inclusion & Vulnerable Children.,088107,Ferryhill & Newton Aycliffe 0-19 Community Family Hub,Supplies and Services,304403,Equipment and Materials,02-Mar-2021,000007466152254,AMZNMktplace,5999,Other consumables,8.99,1.50,7.49
Children and Young Peoples Services,Head of Early Help Inclusion & Vulnerable Children.,088107,Ferryhill & Newton Aycliffe 0-19 Community Family Hub,Supplies and Services,384999,Miscellaneous Expenses,02-Mar-2021,000007466152258,Amazon.co.uk MM37B1PH4,5969,Other expenses,9.97,1.66,8.31
Children and Young Peoples Services,Head of Early Help Inclusion & Vulnerable Children.,085956,Lumley,Transfer Payments,515002,Social Services Clients,02-Mar-2021,000007466152292,AMZNMktplace,5999,Pocket money,11.99,2.00,9.99
Children and Young Peoples Services,Head of Early Help Inclusion & Vulnerable Children.,085956,Lumley,Transfer Payments,515002,Social Services Clients,02-Mar-2021,000007466152306,PRETTYLITTLETHING.COM,5691,Pocket money,35.00,0.00,35.00
Children and Young Peoples Services,Head of Early Help Inclusion & Vulnerable Children.,085954,Walworth,Transfer Payments,515002,Social Services Clients,02-Mar-2021,000007466152308,JD SPORTS INTERNET,5941,Pocket money,75.00,0.00,75.00
Children and Young Peoples Services,Head of Early Help Inclusion & Vulnerable Children.,071489,Winter Family Fund,Supplies and Services,364301,Grants to Voluntary Organisations,02-Mar-2021,000007466152624,ARGOS LTD,5310,Hardship,70.00,0.00,70.00
Neighbourhoods and Climate Change,Environmental Services,010367,C&G - South Grounds Maintenance,Supplies and Services,304999,Equipment and Materials,02-Mar-2021,000007466152656,Snowballs,5251,Misc equipment tools and materials,154.38,0.00,154.38
Children and Young Peoples Services,Head of Education and Skills,071802,Louisa Cent Nursery,Supplies and Services,304999,Equipment and Materials,02-Mar-2021,000007466152692,HOME BARGAINS,5251,Misc equipment tools and materials,20.87,0.00,20.87
Children and Young Peoples Services,Head of Childrens Social Care,085333,Coxhoe Satelite Home,Supplies and Services,324117,Provisions E324,02-Mar-2021,000007466152794,ASDA SUPERSTORE 4987,5411,Catering costs - provisions,14.50,0.00,14.50
Children and Young Peoples Services,Head of Childrens Social Care,085333,Coxhoe Satelite Home,Supplies and Services,324117,Provisions E324,02-Mar-2021,000007466152806,ASDA SUPERSTORE 4987,5411,Catering costs - provisions,31.90,0.00,31.90
Neighbourhoods and Climate Change,Environmental Services,010367,C&G - South Grounds Maintenance,Transport,235057,Public Transport,02-Mar-2021,000007466152856,TT2,4784,Staff travelling,1.80,0.00,1.80
Neighbourhoods and Climate Change,Environmental Services,010367,C&G - South Grounds Maintenance,Transport,235057,Public Transport,02-Mar-2021,000007466152866,TT2,4784,Staff travelling,1.80,0.00,1.80
Children and Young Peoples Services,Head of Childrens Social Care,085352,Tow Law CU,Supplies and Services,304403,Equipment and Materials,02-Mar-2021,000007466152880,AMZNMktplace,5999,Other consumables,52.60,8.77,43.83
Children and Young Peoples Services,Head of Childrens Social Care,085352,Tow Law CU,Supplies and Services,324117,Provisions E324,02-Mar-2021,000007466152886,ASDA GROCERIES ONLINE,5411,Catering costs - provisions,126.44,0.00,126.44
Children and Young Peoples Services,Head of Childrens Social Care,085352,Tow Law CU,Supplies and Services,324117,Provisions E324,02-Mar-2021,000007466152890,ASDA GROCERIES ONLINE,5411,Catering costs - provisions,-0.02,0.00,-0.02
Children and Young Peoples Services,Head of Childrens Social Care,085332,Middlestone Moor CU,Supplies and Services,324117,Provisions E324,02-Mar-2021,000007466152900,ASDA SUPERSTORE 4987,5411,Catering costs - provisions,2.00,0.00,2.00
Children and Young Peoples Services,Head of Childrens Social Care,085332,Middlestone Moor CU,Supplies and Services,324117,Provisions E324,02-Mar-2021,000007466152904,CO-OP GROUP 310016,5411,Catering costs - provisions,12.51,0.00,12.51
Neighbourhoods and Climate Change,Environmental Services,010301,C&G - North Grounds Maintenance,Supplies and Services,324117,Provisions E324,02-Mar-2021,000007466152994,J VAN VLIET GATESHEAD,5399,Catering costs - provisions,336.96,0.00,336.96
Children and Young Peoples Services,Head of Childrens Social Care,085363,LAC & Permanence Team 3,Supplies and Services,338048,Services,02-Mar-2021,000007466153010,SUNDERLAND CC,9399,Court costs 338048,22.00,0.00,22.00
Children and Young Peoples Services,Head of Childrens Social Care,085363,LAC & Permanence Team 3,Supplies and Services,338045,Services,02-Mar-2021,000007466153020,GEN REGISTER OFFICE,9399,Legal expenses 338045,14.00,0.00,14.00
Children and Young Peoples Services,Head of Childrens Social Care,085363,LAC & Permanence Team 3,Supplies and Services,338045,Services,02-Mar-2021,000007466153024,GEN REGISTER OFFICE,9399,Legal expenses 338045,14.00,0.00,14.00
Children and Young Peoples Services,Head of Early Help Inclusion & Vulnerable Children.,088115,North Area - Teenage Parent Programme,Supplies and Services,384302,Miscellaneous Expenses,02-Mar-2021,000007466153132,WorldOfBooks.com,5192,Activity expenses,17.94,0.00,17.94
Children and Young Peoples Services,Head of Early Help Inclusion & Vulnerable Children.,088115,North Area - Teenage Parent Programme,Supplies and Services,384302,Miscellaneous Expenses,02-Mar-2021,000007466153140,AMZNMktplace,5999,Activity expenses,225.93,37.74,188.19
Children and Young Peoples Services,Head of Early Help Inclusion & Vulnerable Children.,088115,North Area - Teenage Parent Programme,Supplies and Services,384302,Miscellaneous Expenses,02-Mar-2021,000007466153146,AMZNMktplace,5999,Activity expenses,149.90,25.00,124.90
Children and Young Peoples Services,Head of Early Help Inclusion & Vulnerable Children.,088115,North Area - Teenage Parent Programme,Supplies and Services,384302,Miscellaneous Expenses,02-Mar-2021,000007466153156,AMZNMktplace,5999,Activity expenses,104.93,17.50,87.43
Children and Young Peoples Services,Head of Early Help Inclusion & Vulnerable Children.,088115,North Area - Teenage Parent Programme,Supplies and Services,384302,Miscellaneous Expenses,02-Mar-2021,000007466153166,Amazon.co.uk MM1OF0P84,5969,Activity expenses,45.90,7.65,38.25
Children and Young Peoples Services,Head of Early Help Inclusion & Vulnerable Children.,088115,North Area - Teenage Parent Programme,Supplies and Services,384302,Miscellaneous Expenses,02-Mar-2021,000007466153166 - 1,Amazon.co.uk MM1OF0P84,5969,Activity expenses,0.34,,0.34
Children and Young Peoples Services,Head of Early Help Inclusion & Vulnerable Children.,088115,North Area - Teenage Parent Programme,Supplies and Services,384302,Miscellaneous Expenses,02-Mar-2021,000007466153176,Amazon.co.uk MM87N9PV4,5969,Activity expenses,76.35,12.75,63.60
Children and Young Peoples Services,Head of Early Help Inclusion & Vulnerable Children.,088115,North Area - Teenage Parent Programme,Supplies and Services,384302,Miscellaneous Expenses,02-Mar-2021,000007466153186,AMZNMktplace,5999,Activity expenses,149.90,25.00,124.90
Neighbourhoods and Climate Change,Environmental Services,010301,C&G - North Grounds Maintenance,Supplies and Services,304221,Equipment and Materials,02-Mar-2021,000007466153292,TOOLSTATION LTD,5211,Direct materials,59.07,0.00,59.07
Chief Executive's Office,Communications Management,060270,Communications and Marketing,Supplies and Services,372009,Subscriptions E372,02-Mar-2021,000007466153410,Envato,7372,Subscriptions 372009,151.92,0.00,151.92
Children and Young Peoples Services,Head of Childrens Social Care,085612,Families First Consett,Supplies and Services,340001,Postages E340,02-Mar-2021,000007466153416,ROYAL MAIL ONLINE SHOP,9402,Postages,145.68,0.00,145.68
Adult and Health Services,Head of Adults,055310,Positive Journeys (Tudhoe),Supplies and Services,304403,Equipment and Materials,02-Mar-2021,000007466153456,AMZNMKTPLACE AMAZON.CO,5999,Other consumables,12.99,2.17,10.82
Adult and Health Services,Head of Adults,055310,Positive Journeys (Tudhoe),Supplies and Services,384999,Miscellaneous Expenses,02-Mar-2021,000007466153464,Amazon.co.uk MM8EQ51A4,5969,Other expenses,22.07,3.68,18.39
Adult and Health Services,Head of Adults,055310,Positive Journeys (Tudhoe),Supplies and Services,384999,Miscellaneous Expenses,02-Mar-2021,000007466153468,Amazon.co.uk MM4O91PN4,5969,Other expenses,17.94,3.00,14.94
Adult and Health Services,Head of Adults,055310,Positive Journeys (Tudhoe),Supplies and Services,384999,Miscellaneous Expenses,02-Mar-2021,000007466153476,Amazon.co.uk MM91X5PP4,5969,Other expenses,7.73,1.29,6.44
"Regeneration, Economy and Growth",Development and Housing,030771,Durham Advance Flexible Fund,Transport,235057,Public Transport,02-Mar-2021,000007466153690,GO NORTH EAST LIMITED,4131,Staff travelling,7.00,0.00,7.00
Children and Young Peoples Services,Head of Early Help Inclusion & Vulnerable Children.,088117,East Area - Teenage Parent Programme,Supplies and Services,384302,Miscellaneous Expenses,02-Mar-2021,000007466153792,AMZNMktplace,5999,Activity expenses,143.80,24.00,119.80
Children and Young Peoples Services,Head of Childrens Social Care,085332,Middlestone Moor CU,Supplies and Services,324117,Provisions E324,02-Mar-2021,000007469154254,B&M 035 - SHILDON,5399,Catering costs - provisions,84.83,0.00,84.83
Children and Young Peoples Services,Head of Early Help Inclusion & Vulnerable Children.,085954,Walworth,Supplies and Services,308011,Furniture,02-Mar-2021,000007469154322,Dunelm,5712,Furniture repair and replacement,48.95,0.00,48.95
Children and Young Peoples Services,Head of Education and Skills,071732,Dean Bank Childcare,Supplies and Services,304403,Equipment and Materials,02-Mar-2021,000007469154364,AMZNMKTPLACE AMAZON.CO,5999,Other consumables,49.66,0.00,49.66
Children and Young Peoples Services,Head of Education and Skills,071732,Dean Bank Childcare,Supplies and Services,324117,Provisions E324,02-Mar-2021,000007469154366,B&M 035 - SHILDON,5399,Catering costs - provisions,50.68,0.00,50.68
Children and Young Peoples Services,Head of Childrens Social Care,085342,16 Hickstead Rise (previously 9 Cedar Ave),Supplies and Services,324117,Provisions E324,02-Mar-2021,000007469154540,B&M 410 - DARLINGTON,5399,Catering costs - provisions,57.95,0.00,57.95
Children and Young Peoples Services,Head of Early Help Inclusion & Vulnerable Children.,085956,Lumley,Transfer Payments,515002,Social Services Clients,03-Mar-2021,000007466152318,AMZNMktplace,5999,Pocket money,13.97,2.33,11.64
Children and Young Peoples Services,Head of Early Help Inclusion & Vulnerable Children.,088115,North Area - Teenage Parent Programme,Supplies and Services,384302,Miscellaneous Expenses,03-Mar-2021,000007466153188,AMZNMktplace,5999,Activity expenses,44.97,7.50,37.47
Chief Executive's Office,Communications Management,060270,Communications and Marketing,Supplies and Services,372009,Subscriptions E372,03-Mar-2021,000007466153422,Envato,7372,Subscriptions 372009,4.18,0.00,4.18
"Regeneration, Economy and Growth",Business Durham CL0850,030689,Inward Investment and Aftercare,Supplies and Services,336005,Advertising E336,03-Mar-2021,000007469154198,LINKEDIN-638 6369694,7311,Advertising other than for staff,19.20,0.00,19.20
Children and Young Peoples Services,Head of Early Help Inclusion & Vulnerable Children.,071489,Winter Family Fund,Supplies and Services,364301,Grants to Voluntary Organisations,03-Mar-2021,000007469154204,ARGOS LTD,5310,Hardship,155.93,0.00,155.93
Children and Young Peoples Services,Head of Education and Skills,071801,Selby Cottage Childcare Centre,Supplies and Services,304403,Equipment and Materials,03-Mar-2021,000007469154206,AMZNMktplace,5999,Other consumables,9.10,1.52,7.58
Children and Young Peoples Services,Head of Education and Skills,071801,Selby Cottage Childcare Centre,Supplies and Services,304999,Equipment and Materials,03-Mar-2021,000007469154208,APPLE.COM/BILL,5815,Misc equipment tools and materials,9.99,0.00,9.99
Children and Young Peoples Services,Head of Education and Skills,071801,Selby Cottage Childcare Centre,Supplies and Services,384999,Miscellaneous Expenses,03-Mar-2021,000007469154210,Amazon.co.uk MM7H98GZ4,5969,Other expenses,2.75,0.46,2.29
Resources BK0010,Digital and Customer Services,065487,ICT Telephony Recharges,Supplies and Services,344033,Telephones,03-Mar-2021,000007469154212,AMZNMKTPLACE AMAZON.CO,5999,Telephones general-all costs,44.90,0.00,44.90
Resources BK0010,Digital and Customer Services,065487,ICT Telephony Recharges,Supplies and Services,344033,Telephones,03-Mar-2021,000007469154214,AMZNMKTPLACE AMAZON.CO,5999,Telephones general-all costs,48.93,8.19,40.74
Children and Young Peoples Services,Head of Childrens Social Care,085501,Child Care Cases Legal Expenses,Supplies and Services,304403,Equipment and Materials,03-Mar-2021,000007469154216,CITY OF NEWCASTLE INTE,9399,Other consumables,22.00,0.00,22.00
Children and Young Peoples Services,Head of Childrens Social Care,085501,Child Care Cases Legal Expenses,Supplies and Services,304403,Equipment and Materials,03-Mar-2021,000007469154218,www.lbbd.gov.uk,8911,Other consumables,-13.50,0.00,-13.50
Children and Young Peoples Services,Head of Education and Skills,075021,Youth Employment Initiative,Supplies and Services,364301,Grants to Voluntary Organisations,03-Mar-2021,000007469154226,Trainline,4112,Hardship,8.56,0.00,8.56
Adult and Health Services,Head of Adults,055302,Durham Pathways,Supplies and Services,384999,Miscellaneous Expenses,03-Mar-2021,000007469154234,Amazon.co.uk MM39T1X44,5969,Other expenses,5.44,0.91,4.53
Adult and Health Services,Head of Adults,055302,Durham Pathways,Supplies and Services,384999,Miscellaneous Expenses,03-Mar-2021,000007469154236,Amazon.co.uk MM99I8X44,5969,Other expenses,10.63,1.77,8.86
Neighbourhoods and Climate Change,Environmental Services,010383,C&G - South Street Cleansing,Supplies and Services,304221,Equipment and Materials,03-Mar-2021,000007469154238,CARRS BILLINGTON SPENN,5599,Direct materials,40.08,0.00,40.08
"Regeneration, Economy and Growth",Culture Sport and Tourism,030705,Visit County Durham 030705,Supplies and Services,384199,Miscellaneous Expenses,03-Mar-2021,000007469154240,FASTHOSTS INTERNET,4816,Other hired and contracted services,6.34,0.00,6.34
"Regeneration, Economy and Growth",Development and Housing,030776,LINKCD Flexible Fund,Supplies and Services,328041,Clothing uniforms and laundry E328,03-Mar-2021,000007469154294,ARGOS LTD,5310,Clothing uniforms and laundry,48.94,0.00,48.94
"Regeneration, Economy and Growth",Development and Housing,030776,LINKCD Flexible Fund,Supplies and Services,328041,Clothing uniforms and laundry E328,03-Mar-2021,000007469154296,ARGOS LTD,5310,Clothing uniforms and laundry,48.94,0.00,48.94
Children and Young Peoples Services,Head of Childrens Social Care,085513,Supporting Family Time Team,Supplies and Services,324117,Provisions E324,03-Mar-2021,000007469154304,ASDA GROCERIES ONLINE,5411,Catering costs - provisions,101.09,0.00,101.09
Adult and Health Services,Head of Adults,052753,Social Care Direct 052753,Supplies and Services,308013,Furniture,03-Mar-2021,000007469154306,J DODDS CARPETS LTD,5713,Curtains and carpets,378.00,0.00,378.00
Children and Young Peoples Services,Head of Childrens Social Care,085380,Operations Manager LAC Resources,Supplies and Services,304403,Equipment and Materials,03-Mar-2021,000007469154310,AMZNMktplace,5999,Other consumables,9.50,1.58,7.92
"Regeneration, Economy and Growth",Development and Housing,031576,B& B - Temp Accom,Supplies and Services,352001,Conference Expenses,03-Mar-2021,000007469154336,BUDGET H EXPRESS HOTEL,7011,Conferencesseminars fees etc,25.44,4.24,21.20
"Regeneration, Economy and Growth",Development and Housing,031576,B& B - Temp Accom,Supplies and Services,352001,Conference Expenses,03-Mar-2021,000007469154336 - 1,BUDGET H EXPRESS HOTEL,7011,Conferencesseminars fees etc,63.56,,63.56
Neighbourhoods and Climate Change,Environmental Services,010314,Nei.Prot - Bereavement Services,Supplies and Services,304259,Equipment and Materials,03-Mar-2021,000007469154380,Durham County CNCL,9399,Equipment-purchase and rental,11.00,0.00,11.00
Children and Young Peoples Services,Head of Early Help Inclusion & Vulnerable Children.,085962,Aycliffe Secure - Durham,Supplies and Services,304403,Equipment and Materials,03-Mar-2021,000007469154382,AMZNMKTPLACE AMAZON.CO,5999,Other consumables,9.46,0.00,9.46
"Regeneration, Economy and Growth",Development and Housing,031623,Rough,Supplies and Services,352001,Conference Expenses,03-Mar-2021,000007469154406,TOAST LETTINGS,7011,Conferencesseminars fees etc,455.00,0.00,455.00
"Regeneration, Economy and Growth",Development and Housing,031623,Rough,Transport,235057,Public Transport,03-Mar-2021,000007469154408,BLUELINE TAXIS,4121,Staff travelling,24.00,0.00,24.00
Children and Young Peoples Services,Head of Early Help Inclusion & Vulnerable Children.,088107,Ferryhill & Newton Aycliffe 0-19 Community Family Hub,Supplies and Services,304403,Equipment and Materials,03-Mar-2021,000007469154410,AMZNMktplace,5999,Other consumables,2.99,0.50,2.49
Children and Young Peoples Services,Head of Early Help Inclusion & Vulnerable Children.,085956,Lumley,Transfer Payments,515002,Social Services Clients,03-Mar-2021,000007469154412,AMZNMktplace,5999,Pocket money,5.94,1.00,4.94
Children and Young Peoples Services,Head of Early Help Inclusion & Vulnerable Children.,085956,Lumley,Transfer Payments,515002,Social Services Clients,03-Mar-2021,000007469154414,AMZNMktplace,5999,Pocket money,5.57,0.00,5.57
Children and Young Peoples Services,Head of Early Help Inclusion & Vulnerable Children.,085962,Aycliffe Secure - Durham,Transfer Payments,515002,Social Services Clients,03-Mar-2021,000007469154416,AMZNMktplace,5999,Pocket money,24.34,4.06,20.28
Children and Young Peoples Services,Head of Early Help Inclusion & Vulnerable Children.,085965,Barnard,Transfer Payments,515002,Social Services Clients,03-Mar-2021,000007469154418,www.cotswoldoutdoor.co,5691,Pocket money,65.00,0.00,65.00
Children and Young Peoples Services,Head of Early Help Inclusion & Vulnerable Children.,085962,Aycliffe Secure - Durham,Transfer Payments,515002,Social Services Clients,03-Mar-2021,000007469154420,CEX LTD,5065,Pocket money,95.20,0.00,95.20
Children and Young Peoples Services,Head of Early Help Inclusion & Vulnerable Children.,085962,Aycliffe Secure - Durham,Supplies and Services,324117,Provisions E324,03-Mar-2021,000007469154422,TESCO STORES 6329,5411,Catering costs - provisions,100.80,0.00,100.80
Children and Young Peoples Services,Head of Early Help Inclusion & Vulnerable Children.,085952,Secure Education,Supplies and Services,304083,Equipment and Materials,03-Mar-2021,000007469154424,VERY,5964,Catering equipment,256.98,0.00,256.98
Children and Young Peoples Services,Head of Early Help Inclusion & Vulnerable Children.,085954,Walworth,Supplies and Services,384999,Miscellaneous Expenses,03-Mar-2021,000007469154426,AMZNMktplace,5999,Other expenses,89.25,0.00,89.25
Children and Young Peoples Services,Head of Early Help Inclusion & Vulnerable Children.,085954,Walworth,Transfer Payments,515002,Social Services Clients,03-Mar-2021,000007469154428,ARGOS LTD,5310,Pocket money,18.94,0.00,18.94
Children and Young Peoples Services,Head of Early Help Inclusion & Vulnerable Children.,085965,Barnard,Transfer Payments,515002,Social Services Clients,03-Mar-2021,000007469154430,JD SPORTS INTERNET,5941,Pocket money,63.99,0.00,63.99
Children and Young Peoples Services,Head of Early Help Inclusion & Vulnerable Children.,085954,Walworth,Transfer Payments,515002,Social Services Clients,03-Mar-2021,000007469154432,JD SPORTS INTERNET,5941,Pocket money,18.99,0.00,18.99
Resources BK0010,People & Talent Management,010984,Training and Development,Employees,040149,Recruitment Instruction and Training,03-Mar-2021,000007469154442,WWW.CSCS.UK.COM,8699,Training-all costs,36.00,0.00,36.00
Children and Young Peoples Services,Head of Early Help Inclusion & Vulnerable Children.,088119,Durham 0-19 Community Family Hub,Supplies and Services,324117,Provisions E324,03-Mar-2021,000007469154462,TESCO STORES 2278,5411,Catering costs - provisions,14.00,0.00,14.00
Children and Young Peoples Services,Head of Childrens Social Care,085551,Short Break Services-Park Hse Sher,Supplies and Services,304999,Equipment and Materials,03-Mar-2021,000007469154488,HOME BARGAINS SPENNYMO,5251,Misc equipment tools and materials,7.52,0.00,7.52
Children and Young Peoples Services,Head of Early Help Inclusion & Vulnerable Children.,088106,Ferryhill & N.Aycliffe 0-19 Targeted Family Support,Supplies and Services,384302,Miscellaneous Expenses,03-Mar-2021,000007469154504,HOME BARGAINS,5251,Activity expenses,54.93,0.00,54.93
Children and Young Peoples Services,Head of Early Help Inclusion & Vulnerable Children.,071489,Winter Family Fund,Supplies and Services,364301,Grants to Voluntary Organisations,03-Mar-2021,000007469154506,ASDA GEORGE COM LEEDS,5411,Hardship,46.45,0.00,46.45
Children and Young Peoples Services,Head of Early Help Inclusion & Vulnerable Children.,088116,South Area - Teenage Parent Programme,Supplies and Services,384302,Miscellaneous Expenses,03-Mar-2021,000007469154508,ASDA STORES,5411,Activity expenses,19.86,0.00,19.86
Children and Young Peoples Services,Head of Early Help Inclusion & Vulnerable Children.,071489,Winter Family Fund,Supplies and Services,364301,Grants to Voluntary Organisations,03-Mar-2021,000007469154510,TESCO STORES 2371,5411,Hardship,46.14,0.00,46.14
Children and Young Peoples Services,Head of Childrens Social Care,085342,16 Hickstead Rise (previously 9 Cedar Ave),Supplies and Services,324117,Provisions E324,03-Mar-2021,000007469154542,WILKO RETAIL LIMITED,5399,Catering costs - provisions,53.10,0.00,53.10
Children and Young Peoples Services,Head of Childrens Social Care,085352,Tow Law CU,Supplies and Services,304403,Equipment and Materials,03-Mar-2021,000007469154550,AMZNMktplace,5999,Other consumables,23.95,3.99,19.96
Children and Young Peoples Services,Head of Childrens Social Care,085352,Tow Law CU,Supplies and Services,384999,Miscellaneous Expenses,03-Mar-2021,000007469154552,Amazon.co.uk MM70H2G64,5969,Other expenses,70.00,11.67,58.33
Children and Young Peoples Services,Head of Childrens Social Care,085352,Tow Law CU,Supplies and Services,304403,Equipment and Materials,03-Mar-2021,000007469154554,AMZNMktplace,5999,Other consumables,79.98,13.34,66.64
Children and Young Peoples Services,Head of Childrens Social Care,085352,Tow Law CU,Supplies and Services,324117,Provisions E324,03-Mar-2021,000007469154556,SAINSBURYS 0776,5411,Catering costs - provisions,45.80,0.00,45.80
Children and Young Peoples Services,Head of Early Help Inclusion & Vulnerable Children.,071489,Winter Family Fund,Supplies and Services,364301,Grants to Voluntary Organisations,03-Mar-2021,000007469154558,ASDA GEORGE COM LEEDS,5411,Hardship,81.00,0.00,81.00
Adult and Health Services,Head of Adults,055643,Hawthorn House LD Respite Unit,Supplies and Services,324117,Provisions E324,03-Mar-2021,000007469154560,JR HOLLAND FOODSERVICE,5499,Catering costs - provisions,27.39,0.00,27.39
Adult and Health Services,Head of Adults,055643,Hawthorn House LD Respite Unit,Supplies and Services,324117,Provisions E324,03-Mar-2021,000007469154562,JR HOLLAND FOODSERVICE,5499,Catering costs - provisions,20.34,0.00,20.34
Neighbourhoods and Climate Change,Environmental Services,010301,C&G - North Grounds Maintenance,Supplies and Services,304999,Equipment and Materials,03-Mar-2021,000007469154568,GRALANDS WOODWORK SUPP,5251,Misc equipment tools and materials,75.60,0.00,75.60
Neighbourhoods and Climate Change,Environmental Services,010301,C&G - North Grounds Maintenance,Supplies and Services,304221,Equipment and Materials,03-Mar-2021,000007469154570,SCREWFIX DIR LTD,5211,Direct materials,149.99,0.00,149.99
Children and Young Peoples Services,Head of Early Help Inclusion & Vulnerable Children.,088103,Consett & Stanley 0-19 Community Family Hub,Supplies and Services,384302,Miscellaneous Expenses,03-Mar-2021,000007469154572,WWW.THEWORKS.CO.UK,5310,Activity expenses,464.70,0.00,464.70
Children and Young Peoples Services,Head of Early Help Inclusion & Vulnerable Children.,071445,Chester le Street One Point Hub,Supplies and Services,304403,Equipment and Materials,03-Mar-2021,000007469154578,AMZNMktplace,5999,Other consumables,9.49,1.58,7.91
Children and Young Peoples Services,Head of Early Help Inclusion & Vulnerable Children.,071445,Chester le Street One Point Hub,Supplies and Services,304403,Equipment and Materials,03-Mar-2021,000007469154580,AMZNMktplace,5999,Other consumables,37.93,6.33,31.60
Children and Young Peoples Services,Head of Early Help Inclusion & Vulnerable Children.,071445,Chester le Street One Point Hub,Supplies and Services,304403,Equipment and Materials,03-Mar-2021,000007469154582,AMZNMktplace,5999,Other consumables,59.23,9.88,49.35
Resources BK0010,Digital and Customer Services,065335,School Services - Implementations,Supplies and Services,304639,Equipment and Materials,03-Mar-2021,000007469154584,AMZNMktplace,5999,Technicians-supplies,65.98,11.00,54.98
Resources BK0010,Digital and Customer Services,065335,School Services - Implementations,Supplies and Services,304639,Equipment and Materials,03-Mar-2021,000007469154586,POWER TOOLS UK,5085,Technicians-supplies,325.97,0.00,325.97
Resources BK0010,Digital and Customer Services,065335,School Services - Implementations,Supplies and Services,304303,Equipment and Materials,03-Mar-2021,000007469154588,TOOLSTATION UK,5251,Network for resale,149.90,0.00,149.90
Children and Young Peoples Services,Head of Early Help Inclusion & Vulnerable Children.,085962,Aycliffe Secure - Durham,Supplies and Services,384999,Miscellaneous Expenses,03-Mar-2021,000007469154596,ASDA GEORGE COM LEEDS,5411,Other expenses,78.50,0.00,78.50
Children and Young Peoples Services,Head of Early Help Inclusion & Vulnerable Children.,085957,Secure Management,Supplies and Services,304649,Equipment and Materials,03-Mar-2021,000007469154598,AMZNMktplace,5999,Toys,35.98,0.00,35.98
Children and Young Peoples Services,Head of Early Help Inclusion & Vulnerable Children.,085957,Secure Management,Supplies and Services,304245,Equipment and Materials,03-Mar-2021,000007469154600,AMZNMktplace,5999,Materials,22.99,0.00,22.99
Children and Young Peoples Services,Head of Early Help Inclusion & Vulnerable Children.,085957,Secure Management,Supplies and Services,304245,Equipment and Materials,03-Mar-2021,000007469154602,SCREWFIX DIRECT,5211,Materials,24.96,4.16,20.80
Children and Young Peoples Services,Head of Early Help Inclusion & Vulnerable Children.,088115,North Area - Teenage Parent Programme,Supplies and Services,384302,Miscellaneous Expenses,03-Mar-2021,000007469154608,AMZNMKTPLACE AMAZON.CO,5999,Activity expenses,407.83,68.00,339.83
Adult and Health Services,Head of Adults,055301,Stanley Pathways,Supplies and Services,324117,Provisions E324,03-Mar-2021,000007469154618,SAINSBURYS SACAT 0776,5411,Catering costs - provisions,10.94,0.00,10.94
"Regeneration, Economy and Growth",Development and Housing,031500,Housing Solutions - Core Team,Supplies and Services,352001,Conference Expenses,03-Mar-2021,000007469154642,HI NEWCASTLE WASHI,7011,Conferencesseminars fees etc,450.00,0.00,450.00
"Regeneration, Economy and Growth",Development and Housing,031500,Housing Solutions - Core Team,Supplies and Services,352001,Conference Expenses,03-Mar-2021,000007469154644,HI NEWCASTLE WASHI,7011,Conferencesseminars fees etc,415.00,0.00,415.00
"Regeneration, Economy and Growth",Development and Housing,031500,Housing Solutions - Core Team,Supplies and Services,352001,Conference Expenses,03-Mar-2021,000007469154646,HI NEWCASTLE WASHI,7011,Conferencesseminars fees etc,450.00,0.00,450.00
"Regeneration, Economy and Growth",Development and Housing,031500,Housing Solutions - Core Team,Supplies and Services,352001,Conference Expenses,03-Mar-2021,000007469154648,HI NEWCASTLE WASHI,7011,Conferencesseminars fees etc,330.00,0.00,330.00
"Regeneration, Economy and Growth",Development and Housing,031500,Housing Solutions - Core Team,Supplies and Services,352001,Conference Expenses,03-Mar-2021,000007469154650,HI NEWCASTLE WASHI,7011,Conferencesseminars fees etc,80.00,0.00,80.00
"Regeneration, Economy and Growth",Development and Housing,030776,LINKCD Flexible Fund,Supplies and Services,304403,Equipment and Materials,03-Mar-2021,000007469154660,AMZNMktplace,5999,Other consumables,120.06,0.00,120.06
Resources BK0010,Business Support,065506,Business Support - Green Lane,Supplies and Services,304335,Equipment and Materials,03-Mar-2021,000007469154668,AMZNMktplace,5999,ICT supplies etc,68.00,11.34,56.66
Children and Young Peoples Services,Head of Early Help Inclusion & Vulnerable Children.,088117,East Area - Teenage Parent Programme,Supplies and Services,384302,Miscellaneous Expenses,03-Mar-2021,000007469154720,AMZNMktplace,5999,Activity expenses,26.74,0.00,26.74
Children and Young Peoples Services,Head of Childrens Social Care,085342,16 Hickstead Rise (previously 9 Cedar Ave),Supplies and Services,304403,Equipment and Materials,03-Mar-2021,000009425733077,AMZNMKTPLACE AMAZON.CO,5999,Other consumables,5.49,0.00,5.49
Children and Young Peoples Services,Head of Early Help Inclusion & Vulnerable Children.,085957,Secure Management,Supplies and Services,304403,Equipment and Materials,03-Mar-2021,000009425733205,AMZNMKTPLACE AMAZON.CO,5999,Other consumables,119.40,19.92,99.48
"Regeneration, Economy and Growth",Development and Housing,031500,Housing Solutions - Core Team,Employees,040149,Recruitment Instruction and Training,03-Mar-2021,000009425733223,PREMIER INN,3811,Training-all costs,175.00,0.00,175.00
Children and Young Peoples Services,Head of Early Help Inclusion & Vulnerable Children.,088115,North Area - Teenage Parent Programme,Supplies and Services,384302,Miscellaneous Expenses,03-Mar-2021,000009425733279,AMZNMKTPLACE AMAZON.CO,5999,Activity expenses,89.91,15.03,74.88
Adult and Health Services,Head of Adults,055310,Positive Journeys (Tudhoe),Supplies and Services,304403,Equipment and Materials,03-Mar-2021,000009425733547,AMZNMKTPLACE AMAZON.CO,5999,Other consumables,25.81,4.30,21.51
"Regeneration, Economy and Growth",Business Durham CL0850,030689,Inward Investment and Aftercare,Supplies and Services,342033,Computers and Communications,04-Mar-2021,000007469154200,AdRoll_EMEA,7372,Computer hardware,86.95,0.00,86.95
"Regeneration, Economy and Growth",Business Durham CL0850,030689,Inward Investment and Aftercare,Supplies and Services,342033,Computers and Communications,04-Mar-2021,000007469154202,AdRoll_EMEA,7372,Computer hardware,2.39,0.00,2.39
"Regeneration, Economy and Growth",Culture Sport and Tourism,030712,VCD - Project Delivery,Supplies and Services,384199,Miscellaneous Expenses,04-Mar-2021,000007469154242,FACEBK 26DJTZ6VC2,7311,Other hired and contracted services,4.56,0.00,4.56
Children and Young Peoples Services,Head of Early Help Inclusion & Vulnerable Children.,085954,Walworth,Supplies and Services,384999,Miscellaneous Expenses,04-Mar-2021,000007469154434,AMZN Mktp UK MM0AM8X04,5942,Other expenses,22.04,3.67,18.37
Children and Young Peoples Services,Head of Early Help Inclusion & Vulnerable Children.,088116,South Area - Teenage Parent Programme,Supplies and Services,384302,Miscellaneous Expenses,04-Mar-2021,000007469154512,Amazon.co.uk MM3DZ8XH4,5969,Activity expenses,63.84,10.64,53.20
Children and Young Peoples Services,Head of Early Help Inclusion & Vulnerable Children.,088116,South Area - Teenage Parent Programme,Supplies and Services,384302,Miscellaneous Expenses,04-Mar-2021,000007469154512 - 1,Amazon.co.uk MM3DZ8XH4,5969,Activity expenses,0.04,,0.04
Children and Young Peoples Services,Head of Early Help Inclusion & Vulnerable Children.,088116,South Area - Teenage Parent Programme,Supplies and Services,384302,Miscellaneous Expenses,04-Mar-2021,000007469154514,Amazon.co.uk MM7A81XF4,5969,Activity expenses,63.84,10.64,53.20
Children and Young Peoples Services,Head of Early Help Inclusion & Vulnerable Children.,088116,South Area - Teenage Parent Programme,Supplies and Services,384302,Miscellaneous Expenses,04-Mar-2021,000007469154514 - 1,Amazon.co.uk MM7A81XF4,5969,Activity expenses,0.04,,0.04
Children and Young Peoples Services,Head of Childrens Social Care,085341,High Etherley Satelite Home,Supplies and Services,324117,Provisions E324,04-Mar-2021,000009425731967,TESCO STORES 6329,5411,Catering costs - provisions,168.92,0.00,168.92
"Regeneration, Economy and Growth",Business Durham CL0850,030689,Inward Investment and Aftercare,Supplies and Services,336005,Advertising E336,04-Mar-2021,000009425731969,GOOGLE ADS6853017821,7311,Advertising other than for staff,82.22,0.00,82.22
"Regeneration, Economy and Growth",Business Durham CL0850,030689,Inward Investment and Aftercare,Supplies and Services,342222,Computers and Communications,04-Mar-2021,000009425731973,FASTHOSTS INTERNET,4816,Comp hardware purch-network servers,7.54,0.00,7.54
Children and Young Peoples Services,Head of Early Help Inclusion & Vulnerable Children.,071489,Winter Family Fund,Supplies and Services,364301,Grants to Voluntary Organisations,04-Mar-2021,000009425731977,ASDA GEORGE COM LEEDS,5411,Hardship,46.50,0.00,46.50
Children and Young Peoples Services,Head of Early Help Inclusion & Vulnerable Children.,071489,Winter Family Fund,Supplies and Services,364301,Grants to Voluntary Organisations,04-Mar-2021,000009425731981,ARGOS LTD,5310,Hardship,241.94,0.00,241.94
Children and Young Peoples Services,Head of Education and Skills,071801,Selby Cottage Childcare Centre,Supplies and Services,324117,Provisions E324,04-Mar-2021,000009425731985,TESCO STORES 2278,5411,Catering costs - provisions,58.47,0.00,58.47
"Regeneration, Economy and Growth",Development and Housing,031576,B& B - Temp Accom,Transport,235073,Public Transport,04-Mar-2021,000009425731993,BLUE LINE TAXIS,4121,Travel-clients/students/children,24.80,0.00,24.80
"Regeneration, Economy and Growth",Development and Housing,031576,B& B - Temp Accom,Transport,235073,Public Transport,04-Mar-2021,000009425731997,BLUE LINE TAXIS,4121,Travel-clients/students/children,7.80,0.00,7.80
Children and Young Peoples Services,Head of Childrens Social Care,085561,Social Work Academy,Supplies and Services,384999,Miscellaneous Expenses,04-Mar-2021,000009425732011,SP SPIFFY,5691,Other expenses,374.75,62.46,312.29
Children and Young Peoples Services,Head of Childrens Social Care,085561,Social Work Academy,Supplies and Services,384999,Miscellaneous Expenses,04-Mar-2021,000009425732019,Amazon.co.uk MM5VZ2VC4,5969,Other expenses,104.94,17.49,87.45
Children and Young Peoples Services,Head of Childrens Social Care,085561,Social Work Academy,Supplies and Services,384999,Miscellaneous Expenses,04-Mar-2021,000009425732019 - 1,Amazon.co.uk MM5VZ2VC4,5969,Other expenses,0.03,,0.03
Resources BK0010,Digital and Customer Services,065256,Nodes/Circuits,Supplies and Services,342033,Computers and Communications,04-Mar-2021,000009425732021,WWW.4GON.CO.UK,5046,Computer hardware,170.10,28.35,141.75
Resources BK0010,Digital and Customer Services,065487,ICT Telephony Recharges,Supplies and Services,344033,Telephones,04-Mar-2021,000009425732029,AMZNMKTPLACE AMAZON.CO,5999,Telephones general-all costs,90.87,15.21,75.66
Children and Young Peoples Services,Head of Childrens Social Care,085561,Social Work Academy,Supplies and Services,384999,Miscellaneous Expenses,04-Mar-2021,000009425732033,Amazon.co.uk MM4A31M94,5969,Other expenses,178.26,29.73,148.53
"Regeneration, Economy and Growth",Development and Housing,031576,B& B - Temp Accom,Supplies and Services,364320,Grants to Voluntary Organisations,04-Mar-2021,000009425732039,TOAST LETTINGS,7011,Accommodation assistance,455.00,0.00,455.00
"Regeneration, Economy and Growth",Development and Housing,031576,B& B - Temp Accom,Supplies and Services,364320,Grants to Voluntary Organisations,04-Mar-2021,000009425732047,TOAST LETTINGS,7011,Accommodation assistance,455.00,0.00,455.00
Children and Young Peoples Services,Head of Childrens Social Care,085501,Child Care Cases Legal Expenses,Supplies and Services,304403,Equipment and Materials,04-Mar-2021,000009425732063,SUNDERLAND CC,7523,Other consumables,11.00,0.00,11.00
Children and Young Peoples Services,Head of Childrens Social Care,085501,Child Care Cases Legal Expenses,Supplies and Services,304403,Equipment and Materials,04-Mar-2021,000009425732067,MIDDLESBROUGH COUNCIL,9399,Other consumables,11.00,0.00,11.00
Children and Young Peoples Services,Head of Childrens Social Care,085501,Child Care Cases Legal Expenses,Supplies and Services,304403,Equipment and Materials,04-Mar-2021,000009425732073,CEC REGISTRAR SERVICES,5734,Other consumables,15.00,0.00,15.00
Adult and Health Services,Head of Adults,055302,Durham Pathways,Supplies and Services,304403,Equipment and Materials,04-Mar-2021,000009425732089,AMZNMktplace,5999,Other consumables,11.99,2.00,9.99
Children and Young Peoples Services,Head of Early Help Inclusion & Vulnerable Children.,071489,Winter Family Fund,Supplies and Services,384700,Miscellaneous Expenses,04-Mar-2021,000009425732209,FRANKS THE FLOORIN,5713,Miscellaneous grants,373.00,62.17,310.83
Children and Young Peoples Services,Head of Childrens Social Care,085380,Operations Manager LAC Resources,Supplies and Services,328041,Clothing uniforms and laundry E328,04-Mar-2021,000009425732221,ARGOS LTD,5310,Clothing uniforms and laundry,130.00,0.00,130.00
Children and Young Peoples Services,Head of Childrens Social Care,085380,Operations Manager LAC Resources,Supplies and Services,328041,Clothing uniforms and laundry E328,04-Mar-2021,000009425732229,ARGOS LTD,5310,Clothing uniforms and laundry,166.95,0.00,166.95
Neighbourhoods and Climate Change,Environmental Services,010367,C&G - South Grounds Maintenance,Supplies and Services,304221,Equipment and Materials,04-Mar-2021,000009425732267,BTL TIMBER AND HARDWAR,5099,Direct materials,8.16,0.00,8.16
Neighbourhoods and Climate Change,Environmental Services,010367,C&G - South Grounds Maintenance,Supplies and Services,304221,Equipment and Materials,04-Mar-2021,000009425732269,JT ATKINSON & SONS LTD,5211,Direct materials,53.89,0.00,53.89
Children and Young Peoples Services,Head of Early Help Inclusion & Vulnerable Children.,079599,Psychological-HQ,Supplies and Services,384999,Miscellaneous Expenses,04-Mar-2021,000009425732277,Amazon.co.uk MM9336VH4,5969,Other expenses,27.57,0.00,27.57
Children and Young Peoples Services,Head of Childrens Social Care,085334,West Rainton Satelite Home,Transport,215995,Running Costs of Vehicles,04-Mar-2021,000009425732433,WEST RAINTON SERVICE S,5541,Vehicle running expenses,54.00,0.00,54.00
Children and Young Peoples Services,Head of Childrens Social Care,085334,West Rainton Satelite Home,Supplies and Services,304999,Equipment and Materials,04-Mar-2021,000009425732435,HOME BARGAINS,5251,Misc equipment tools and materials,38.33,0.00,38.33
Children and Young Peoples Services,Head of Childrens Social Care,085334,West Rainton Satelite Home,Supplies and Services,304999,Equipment and Materials,04-Mar-2021,000009425732441,HOME BARGAINS,5251,Misc equipment tools and materials,11.19,0.00,11.19
Children and Young Peoples Services,Head of Childrens Social Care,085334,West Rainton Satelite Home,Supplies and Services,324117,Provisions E324,04-Mar-2021,000009425732447,TESCO STORES 2371,5411,Catering costs - provisions,203.61,0.00,203.61
Children and Young Peoples Services,Head of Early Help Inclusion & Vulnerable Children.,085962,Aycliffe Secure - Durham,Supplies and Services,304403,Equipment and Materials,04-Mar-2021,000009425732457,AMZNMktplace,5999,Other consumables,115.39,0.00,115.39
Children and Young Peoples Services,Head of Education and Skills,071903,Early Years Sustainability,Supplies and Services,328041,Clothing uniforms and laundry E328,04-Mar-2021,000009425732485,Vandella,5992,Clothing uniforms and laundry,40.99,0.00,40.99
"Regeneration, Economy and Growth",Development and Housing,031500,Housing Solutions - Core Team,Supplies and Services,352001,Conference Expenses,04-Mar-2021,000009425732489,BUDGET H EXPRESS HOTEL,7011,Conferencesseminars fees etc,101.70,16.95,84.75
"Regeneration, Economy and Growth",Development and Housing,031500,Housing Solutions - Core Team,Supplies and Services,352001,Conference Expenses,04-Mar-2021,000009425732489 - 1,BUDGET H EXPRESS HOTEL,7011,Conferencesseminars fees etc,254.30,,254.30
Neighbourhoods and Climate Change,Environmental Services,010301,C&G - North Grounds Maintenance,Supplies and Services,304221,Equipment and Materials,04-Mar-2021,000009425732501,AZTEC CHEMICALS LTD,5169,Direct materials,342.00,57.00,285.00
Neighbourhoods and Climate Change,Environmental Services,010301,C&G - North Grounds Maintenance,Supplies and Services,304221,Equipment and Materials,04-Mar-2021,000009425732505,AZTEC CHEMICALS LTD,5169,Direct materials,273.31,45.55,227.76
Children and Young Peoples Services,Head of Early Help Inclusion & Vulnerable Children.,088107,Ferryhill & Newton Aycliffe 0-19 Community Family Hub,Supplies and Services,384999,Miscellaneous Expenses,04-Mar-2021,000009425732527,Amazon.co.uk MM1XD2XF4,5969,Other expenses,54.44,9.08,45.36
Children and Young Peoples Services,Head of Early Help Inclusion & Vulnerable Children.,088107,Ferryhill & Newton Aycliffe 0-19 Community Family Hub,Supplies and Services,312009,Newspapers books and periodicals E312,04-Mar-2021,000009425732531,THINKING BOOKS,5942,Newspapers books and periodicals,247.50,0.00,247.50
Children and Young Peoples Services,Head of Early Help Inclusion & Vulnerable Children.,085962,Aycliffe Secure - Durham,Transfer Payments,515002,Social Services Clients,04-Mar-2021,000009425732551,Nike,5655,Pocket money,34.47,5.75,28.72
Children and Young Peoples Services,Head of Early Help Inclusion & Vulnerable Children.,085962,Aycliffe Secure - Durham,Transfer Payments,515002,Social Services Clients,04-Mar-2021,000009425732557,Amazon.co.uk MM0141VY4,5969,Pocket money,62.98,10.50,52.48
Children and Young Peoples Services,Head of Early Help Inclusion & Vulnerable Children.,085954,Walworth,Supplies and Services,384302,Miscellaneous Expenses,04-Mar-2021,000009425732559,AMZNMktplace,5999,Activity expenses,31.86,5.31,26.55
Children and Young Peoples Services,Head of Early Help Inclusion & Vulnerable Children.,085954,Walworth,Supplies and Services,384302,Miscellaneous Expenses,04-Mar-2021,000009425732559 - 1,AMZNMktplace,5999,Activity expenses,6.56,,6.56
Children and Young Peoples Services,Head of Early Help Inclusion & Vulnerable Children.,085952,Secure Education,Supplies and Services,324117,Provisions E324,04-Mar-2021,000009425732565,TESCO STORES 6329,5411,Catering costs - provisions,126.80,0.00,126.80
Children and Young Peoples Services,Head of Early Help Inclusion & Vulnerable Children.,085954,Walworth,Transfer Payments,515002,Social Services Clients,04-Mar-2021,000009425732573,WWW.NIKESTORE.COM,5691,Pocket money,29.94,4.99,24.95
Children and Young Peoples Services,Head of Early Help Inclusion & Vulnerable Children.,085954,Walworth,Transfer Payments,515002,Social Services Clients,04-Mar-2021,000009425732573 - 1,WWW.NIKESTORE.COM,5691,Pocket money,26.96,,26.96
Children and Young Peoples Services,Head of Early Help Inclusion & Vulnerable Children.,085954,Walworth,Supplies and Services,384302,Miscellaneous Expenses,04-Mar-2021,000009425732577,AMZNMktplace,5999,Activity expenses,17.11,0.00,17.11
Children and Young Peoples Services,Head of Early Help Inclusion & Vulnerable Children.,088117,East Area - Teenage Parent Programme,Supplies and Services,304403,Equipment and Materials,04-Mar-2021,000009425732585,AMZNMktplace,5999,Other consumables,35.80,0.00,35.80
Children and Young Peoples Services,Head of Childrens Social Care,085632,Families First Seaham,Supplies and Services,304259,Equipment and Materials,04-Mar-2021,000009425732591,SUNDERLAND CC,9399,Equipment-purchase and rental,22.00,0.00,22.00
Children and Young Peoples Services,Head of Early Help Inclusion & Vulnerable Children.,088117,East Area - Teenage Parent Programme,Supplies and Services,384999,Miscellaneous Expenses,04-Mar-2021,000009425732595,Amazon.co.uk MM4DO7MZ4,5969,Other expenses,149.50,0.00,149.50
Children and Young Peoples Services,Head of Early Help Inclusion & Vulnerable Children.,088119,Durham 0-19 Community Family Hub,Supplies and Services,328041,Clothing uniforms and laundry E328,04-Mar-2021,000009425732603,ARGOS LTD,5310,Clothing uniforms and laundry,191.95,0.00,191.95
Children and Young Peoples Services,Head of Early Help Inclusion & Vulnerable Children.,088117,East Area - Teenage Parent Programme,Supplies and Services,328041,Clothing uniforms and laundry E328,04-Mar-2021,000009425732607,ARGOS LTD,5310,Clothing uniforms and laundry,60.00,0.00,60.00
Children and Young Peoples Services,Head of Early Help Inclusion & Vulnerable Children.,088112,Seaham & Central Durham 0-19 Targeted Family Support,Supplies and Services,328041,Clothing uniforms and laundry E328,04-Mar-2021,000009425732615,WWW.THEWORKS.CO.UK,5310,Clothing uniforms and laundry,347.50,0.00,347.50
Neighbourhoods and Climate Change,Environmental Services,010367,C&G - South Grounds Maintenance,Supplies and Services,304221,Equipment and Materials,04-Mar-2021,000009425732643,MKM PETERLEE,5211,Direct materials,10.70,0.00,10.70
"Regeneration, Economy and Growth",Development and Housing,031576,B& B - Temp Accom,Supplies and Services,364320,Grants to Voluntary Organisations,04-Mar-2021,000009425732765,TOAST LETTINGS,7011,Accommodation assistance,455.00,0.00,455.00
"Regeneration, Economy and Growth",Development and Housing,031576,B& B - Temp Accom,Supplies and Services,364320,Grants to Voluntary Organisations,04-Mar-2021,000009425732771,HI NEWCASTLE WASHI,7011,Accommodation assistance,450.00,0.00,450.00
"Regeneration, Economy and Growth",Development and Housing,031576,B& B - Temp Accom,Supplies and Services,364320,Grants to Voluntary Organisations,04-Mar-2021,000009425732777,HI NEWCASTLE WASHI,7011,Accommodation assistance,320.00,0.00,320.00
Children and Young Peoples Services,Head of Childrens Social Care,085551,Short Break Services-Park Hse Sher,Supplies and Services,324117,Provisions E324,04-Mar-2021,000009425732851,ALDI 12 774,5411,Catering costs - provisions,11.93,0.00,11.93
Children and Young Peoples Services,Head of Childrens Social Care,085551,Short Break Services-Park Hse Sher,Supplies and Services,324117,Provisions E324,04-Mar-2021,000009425732857,ALDI 12 774,5411,Catering costs - provisions,-29.99,0.00,-29.99
Children and Young Peoples Services,Head of Early Help Inclusion & Vulnerable Children.,088116,South Area - Teenage Parent Programme,Supplies and Services,384302,Miscellaneous Expenses,04-Mar-2021,000009425732883,Amazon.co.uk MM6428XR4,5969,Activity expenses,95.88,0.00,95.88
Children and Young Peoples Services,Head of Early Help Inclusion & Vulnerable Children.,088116,South Area - Teenage Parent Programme,Supplies and Services,384302,Miscellaneous Expenses,04-Mar-2021,000009425732885,AMZNMktplace,5999,Activity expenses,31.78,5.30,26.48
Children and Young Peoples Services,Head of Early Help Inclusion & Vulnerable Children.,071489,Winter Family Fund,Supplies and Services,364301,Grants to Voluntary Organisations,04-Mar-2021,000009425732891,ASDA GEORGE COM LEEDS,5411,Hardship,120.00,0.00,120.00
Children and Young Peoples Services,Head of Early Help Inclusion & Vulnerable Children.,088116,South Area - Teenage Parent Programme,Supplies and Services,384302,Miscellaneous Expenses,04-Mar-2021,000009425732895,WWW.THEWORKS.CO.UK,5310,Activity expenses,16.49,0.00,16.49
"Regeneration, Economy and Growth",Development and Housing,031623,Rough,Supplies and Services,364320,Grants to Voluntary Organisations,04-Mar-2021,000009425732923,THE VILLAGE INN,5812,Accommodation assistance,507.35,0.00,507.35
Adult and Health Services,Head of Adults,055643,Hawthorn House LD Respite Unit,Supplies and Services,304403,Equipment and Materials,04-Mar-2021,000009425733009,AMZNMktplace,5999,Other consumables,11.98,0.00,11.98
Children and Young Peoples Services,Head of Education and Skills,071802,Louisa Cent Nursery,Supplies and Services,324117,Provisions E324,04-Mar-2021,000009425733027,ALDI STORES,5411,Catering costs - provisions,2.25,0.00,2.25
"Regeneration, Economy and Growth",Corporate Property and Land,020082,Bldg Serv - R&M Div 82- Lifts,Supplies and Services,312009,Newspapers books and periodicals E312,04-Mar-2021,000009425733033,AMZN Mktp UK MM6NK3VL4,5942,Newspapers books and periodicals,12.18,2.03,10.15
"Regeneration, Economy and Growth",Corporate Property and Land,020082,Bldg Serv - R&M Div 82- Lifts,Supplies and Services,312009,Newspapers books and periodicals E312,04-Mar-2021,000009425733033 - 1,AMZN Mktp UK MM6NK3VL4,5942,Newspapers books and periodicals,15.16,,15.16
"Regeneration, Economy and Growth",Corporate Property and Land,011003,County Hall Durham,Supplies and Services,304999,Equipment and Materials,04-Mar-2021,000009425733043,PAYPAL ARGOSDIRECT,5331,Misc equipment tools and materials,8.00,0.00,8.00
"Regeneration, Economy and Growth",Corporate Property and Land,020082,Bldg Serv - R&M Div 82- Lifts,Supplies and Services,312009,Newspapers books and periodicals E312,04-Mar-2021,000009425733047,AMZN Mktp UK MM2JC5VM4,5942,Newspapers books and periodicals,13.08,2.18,10.90
"Regeneration, Economy and Growth",Corporate Property and Land,020082,Bldg Serv - R&M Div 82- Lifts,Supplies and Services,312009,Newspapers books and periodicals E312,04-Mar-2021,000009425733047 - 1,AMZN Mktp UK MM2JC5VM4,5942,Newspapers books and periodicals,47.50,,47.50
Children and Young Peoples Services,Head of Childrens Social Care,085342,16 Hickstead Rise (previously 9 Cedar Ave),Premises,120037,Energy Costs,04-Mar-2021,000009425733069,PURE PLANET LTD,4900,Other fuels,447.33,0.00,447.33
Children and Young Peoples Services,Head of Childrens Social Care,085342,16 Hickstead Rise (previously 9 Cedar Ave),Supplies and Services,324117,Provisions E324,04-Mar-2021,000009425733083,WWW.ICELAND.CO.UK,5411,Catering costs - provisions,153.76,0.00,153.76
Children and Young Peoples Services,Head of Childrens Social Care,085342,16 Hickstead Rise (previously 9 Cedar Ave),Supplies and Services,324117,Provisions E324,04-Mar-2021,000009425733089,WWW.ICELAND.CO.UK,5411,Catering costs - provisions,-1.00,0.00,-1.00
Children and Young Peoples Services,Head of Childrens Social Care,085352,Tow Law CU,Supplies and Services,304259,Equipment and Materials,04-Mar-2021,000009425733095,SPORTSDIRECT.COM,5941,Equipment-purchase and rental,-27.99,0.00,-27.99
Children and Young Peoples Services,Head of Early Help Inclusion & Vulnerable Children.,071489,Winter Family Fund,Supplies and Services,364301,Grants to Voluntary Organisations,04-Mar-2021,000009425733127,ASDA GEORGE COM LEEDS,5411,Hardship,50.00,0.00,50.00
"Regeneration, Economy and Growth",Culture Sport and Tourism,054399,Local Delivery-Libraries,Supplies and Services,312009,Newspapers books and periodicals E312,04-Mar-2021,000009425733149,Amazon.co.uk MM9JY6VC4,5969,Newspapers books and periodicals,48.60,0.00,48.60
Children and Young Peoples Services,Head of Education and Skills,078100,Curric and Professional Development 078100,Supplies and Services,384999,Miscellaneous Expenses,04-Mar-2021,000009425733153,PAYPAL TEACHERHEAD,8211,Other expenses,70.00,11.67,58.33
Children and Young Peoples Services,Head of Early Help Inclusion & Vulnerable Children.,088115,North Area - Teenage Parent Programme,Supplies and Services,384302,Miscellaneous Expenses,04-Mar-2021,000009425733157,ASDA SUPERSTORE,5411,Activity expenses,29.25,0.00,29.25
Children and Young Peoples Services,Head of Early Help Inclusion & Vulnerable Children.,071445,Chester le Street One Point Hub,Supplies and Services,304403,Equipment and Materials,04-Mar-2021,000009425733163,AMZNMktplace,5999,Other consumables,3.75,0.63,3.12
Children and Young Peoples Services,Head of Early Help Inclusion & Vulnerable Children.,085962,Aycliffe Secure - Durham,Supplies and Services,308011,Furniture,04-Mar-2021,000009425733195,AMZNMktplace,5999,Furniture repair and replacement,179.99,30.00,149.99
Children and Young Peoples Services,Head of Early Help Inclusion & Vulnerable Children.,085957,Secure Management,Supplies and Services,304403,Equipment and Materials,04-Mar-2021,000009425733203,AMZNMktplace,5999,Other consumables,37.99,6.33,31.66
Resources BK0010,COVID19 - Resources,091007,COVID19 - Resources,Supplies and Services,384999,Miscellaneous Expenses,04-Mar-2021,000009425733215,Amazon.co.uk MM4RM9VP4,5969,Other expenses,14.24,2.37,11.87
Resources BK0010,Business Support,065503,Business Support - Spectrum,Supplies and Services,308011,Furniture,04-Mar-2021,000009425733249,CRUSHED VELVET FURNITU,5712,Furniture repair and replacement,275.00,0.00,275.00
Resources BK0010,Business Support,065503,Business Support - Spectrum,Supplies and Services,304259,Equipment and Materials,04-Mar-2021,000009425733255,HM PASSPORT OFFICE,9399,Equipment-purchase and rental,49.00,0.00,49.00
Resources BK0010,Business Support,065503,Business Support - Spectrum,Supplies and Services,304259,Equipment and Materials,04-Mar-2021,000009425733261,CURRYS ONLINE,5732,Equipment-purchase and rental,129.99,0.00,129.99
Resources BK0010,Business Support,065503,Business Support - Spectrum,Supplies and Services,304259,Equipment and Materials,04-Mar-2021,000009425733265,CURRYS ONLINE,5732,Equipment-purchase and rental,149.99,0.00,149.99
Resources BK0010,Business Support,065503,Business Support - Spectrum,Supplies and Services,328041,Clothing uniforms and laundry E328,04-Mar-2021,000009425733269,ARGOS LTD,5310,Clothing uniforms and laundry,76.95,0.00,76.95
Resources BK0010,Business Support,065503,Business Support - Spectrum,Supplies and Services,328041,Clothing uniforms and laundry E328,04-Mar-2021,000009425733275,ARGOS LTD,5310,Clothing uniforms and laundry,25.95,0.00,25.95
Children and Young Peoples Services,Head of Early Help Inclusion & Vulnerable Children.,088115,North Area - Teenage Parent Programme,Supplies and Services,324117,Provisions E324,04-Mar-2021,000009425733287,ASDA GROCERIES ONLINE,5411,Catering costs - provisions,56.36,0.00,56.36
Children and Young Peoples Services,Head of Early Help Inclusion & Vulnerable Children.,088115,North Area - Teenage Parent Programme,Supplies and Services,324117,Provisions E324,04-Mar-2021,000009425733289,ASDA GROCERIES ONLINE,5411,Catering costs - provisions,80.87,0.00,80.87
Children and Young Peoples Services,Head of Early Help Inclusion & Vulnerable Children.,088115,North Area - Teenage Parent Programme,Supplies and Services,324117,Provisions E324,04-Mar-2021,000009425733295,ASDA GROCERIES ONLINE,5411,Catering costs - provisions,-6.98,0.00,-6.98
Children and Young Peoples Services,Head of Early Help Inclusion & Vulnerable Children.,088115,North Area - Teenage Parent Programme,Supplies and Services,324117,Provisions E324,04-Mar-2021,000009425733297,ASDA GROCERIES ONLINE,5411,Catering costs - provisions,-4.10,0.00,-4.10
"Regeneration, Economy and Growth",Transport and Contracted Services,031704,Care Connect - CCTV Countywide,Supplies and Services,384956,Miscellaneous Expenses,04-Mar-2021,000009425733307,SECURITY INDUSTRY,7393,Licences,190.00,0.00,190.00
"Regeneration, Economy and Growth",Transport and Contracted Services,031704,Care Connect - CCTV Countywide,Supplies and Services,384956,Miscellaneous Expenses,04-Mar-2021,000009425733309,SECURITY INDUSTRY,7393,Licences,190.00,0.00,190.00
"Regeneration, Economy and Growth",Development and Housing,031576,B& B - Temp Accom,Supplies and Services,364320,Grants to Voluntary Organisations,04-Mar-2021,000009425733367,THE HONEST LAWYER,7011,Accommodation assistance,319.60,0.00,319.60
"Regeneration, Economy and Growth",Development and Housing,031576,B& B - Temp Accom,Transport,235073,Public Transport,04-Mar-2021,000009425733371,BLUELINE TAXIS,4121,Travel-clients/students/children,19.00,0.00,19.00
"Regeneration, Economy and Growth",Development and Housing,031576,B& B - Temp Accom,Supplies and Services,364320,Grants to Voluntary Organisations,04-Mar-2021,000009425733375,TOAST LETTINGS,7011,Accommodation assistance,560.00,0.00,560.00
Neighbourhoods and Climate Change,Environmental Services,010301,C&G - North Grounds Maintenance,Supplies and Services,304999,Equipment and Materials,04-Mar-2021,000009425733381,GUSTHARTS,5072,Misc equipment tools and materials,207.42,0.00,207.42
Children and Young Peoples Services,Head of Childrens Social Care,085332,Middlestone Moor CU,Supplies and Services,312009,Newspapers books and periodicals E312,04-Mar-2021,000009425733423,MIDDLESTONE MOOR NEWSA,5994,Newspapers books and periodicals,8.45,0.00,8.45
Neighbourhoods and Climate Change,Environmental Services,031200,North Pennines Core,Supplies and Services,304403,Equipment and Materials,04-Mar-2021,000009425733429,TIMPSON LTD,5999,Other consumables,89.25,0.00,89.25
"Regeneration, Economy and Growth",Development and Housing,031500,Housing Solutions - Core Team,Supplies and Services,352001,Conference Expenses,04-Mar-2021,000009425733437,THE HONEST LAWYER,7011,Conferencesseminars fees etc,139.25,0.00,139.25
"Regeneration, Economy and Growth",Development and Housing,031500,Housing Solutions - Core Team,Supplies and Services,352001,Conference Expenses,04-Mar-2021,000009425733441,THE HONEST LAWYER,7011,Conferencesseminars fees etc,399.75,0.00,399.75
"Regeneration, Economy and Growth",Development and Housing,031500,Housing Solutions - Core Team,Supplies and Services,352001,Conference Expenses,04-Mar-2021,000009425733445,THE HONEST LAWYER,7011,Conferencesseminars fees etc,159.80,0.00,159.80
"Regeneration, Economy and Growth",Development and Housing,031500,Housing Solutions - Core Team,Supplies and Services,352001,Conference Expenses,04-Mar-2021,000009425733449,THE HONEST LAWYER,7011,Conferencesseminars fees etc,500.00,0.00,500.00
Resources BK0010,COVID19 - Resources,091007,COVID19 - Resources,Supplies and Services,340001,Postages E340,04-Mar-2021,000009425733533,ROYAL MAIL REDIRECTION,9402,Postages,321.00,0.00,321.00
Resources BK0010,COVID19 - Resources,091007,COVID19 - Resources,Supplies and Services,340001,Postages E340,04-Mar-2021,000009425733541,ROYAL MAIL REDIRECTION,9402,Postages,216.00,0.00,216.00
Adult and Health Services,Head of Adults,055310,Positive Journeys (Tudhoe),Supplies and Services,324117,Provisions E324,04-Mar-2021,000009425733555,TESCO STORES 4358,5411,Catering costs - provisions,1.09,0.00,1.09
Adult and Health Services,Head of Adults,052953,Training - Social Work,Supplies and Services,384999,Miscellaneous Expenses,04-Mar-2021,000009425733673,Amazon.co.uk MM2I58VV4,5969,Other expenses,107.50,0.00,107.50
Adult and Health Services,Head of Adults,052953,Training - Social Work,Supplies and Services,384999,Miscellaneous Expenses,04-Mar-2021,000009425733679,Amazon.co.uk MM8VJ9VO4,5969,Other expenses,408.90,0.00,408.90
Children and Young Peoples Services,Head of Early Help Inclusion & Vulnerable Children.,088117,East Area - Teenage Parent Programme,Supplies and Services,384302,Miscellaneous Expenses,04-Mar-2021,000009425733683,AMZNMktplace,5999,Activity expenses,99.96,16.68,83.28
Children and Young Peoples Services,Head of Early Help Inclusion & Vulnerable Children.,088116,South Area - Teenage Parent Programme,Supplies and Services,384302,Miscellaneous Expenses,04-Mar-2021,000009429765067,AMZNMKTPLACE AMAZON.CO,5999,Activity expenses,158.90,26.50,132.40
Children and Young Peoples Services,Head of Childrens Social Care,085342,16 Hickstead Rise (previously 9 Cedar Ave),Supplies and Services,304999,Equipment and Materials,04-Mar-2021,000009429765237,PAYPAL CDKEYS.COM,5816,Misc equipment tools and materials,34.79,0.00,34.79
Resources BK0010,Business Support,065503,Business Support - Spectrum,Supplies and Services,352001,Conference Expenses,04-Mar-2021,000009429765521,TVLICENSING.CO.UK,7392,Conferencesseminars fees etc,157.50,0.00,157.50
Resources BK0010,Business Support,065503,Business Support - Spectrum,Supplies and Services,308011,Furniture,04-Mar-2021,000009429765525,Dunelm,5712,Furniture repair and replacement,189.95,0.00,189.95
Children and Young Peoples Services,Head of Childrens Social Care,085362,LAC & Permanence Team 2,Supplies and Services,342033,Computers and Communications,05-Mar-2021,000009425732027,DRI Nuance,5734,Computer hardware,31.21,0.00,31.21
Children and Young Peoples Services,Head of Early Help Inclusion & Vulnerable Children.,085954,Walworth,Supplies and Services,384302,Miscellaneous Expenses,05-Mar-2021,000009425732581,AMZNMktplace,5999,Activity expenses,30.32,5.06,25.26
Children and Young Peoples Services,Head of Early Help Inclusion & Vulnerable Children.,071489,Winter Family Fund,Supplies and Services,364301,Grants to Voluntary Organisations,05-Mar-2021,000009429764003,ASDA GROCERIES ONLINE,5411,Hardship,32.20,0.00,32.20
"Regeneration, Economy and Growth",Development and Housing,031617,Project Beta Sustainability Fund,Supplies and Services,324117,Provisions E324,05-Mar-2021,000009429764013,ASDA SUPERSTORE,5411,Catering costs - provisions,36.49,0.00,36.49
"Regeneration, Economy and Growth",Development and Housing,031576,B& B - Temp Accom,Supplies and Services,364320,Grants to Voluntary Organisations,05-Mar-2021,000009429764019,CROXDALE INN,5812,Accommodation assistance,120.00,0.00,120.00
Children and Young Peoples Services,Head of Childrens Social Care,085561,Social Work Academy,Supplies and Services,304403,Equipment and Materials,05-Mar-2021,000009429764023,AMZNMKTPLACE AMAZON.CO,5999,Other consumables,198.90,33.15,165.75
Resources BK0010,Digital and Customer Services,011103,Digital Solutions,Supplies and Services,342053,Computers and Communications,05-Mar-2021,000009429764029,FONT AWESOME STANDARD,7372,Computer software,71.14,0.00,71.14
Chief Executive's Office,Communications Management,060270,Communications and Marketing,Supplies and Services,304403,Equipment and Materials,05-Mar-2021,000009429764035,AMZNMktplace,5999,Other consumables,71.88,0.00,71.88
"Regeneration, Economy and Growth",Development and Housing,031576,B& B - Temp Accom,Supplies and Services,364320,Grants to Voluntary Organisations,05-Mar-2021,000009429764093,TOAST LETTINGS,7011,Accommodation assistance,420.00,0.00,420.00
"Regeneration, Economy and Growth",Development and Housing,031576,B& B - Temp Accom,Supplies and Services,364320,Grants to Voluntary Organisations,05-Mar-2021,000009429764097,THE HONEST LAWYER,7011,Accommodation assistance,500.00,0.00,500.00
"Regeneration, Economy and Growth",Development and Housing,031576,B& B - Temp Accom,Supplies and Services,364320,Grants to Voluntary Organisations,05-Mar-2021,000009429764101,THE HONEST LAWYER,7011,Accommodation assistance,319.80,0.00,319.80
"Regeneration, Economy and Growth",Development and Housing,031576,B& B - Temp Accom,Supplies and Services,364320,Grants to Voluntary Organisations,05-Mar-2021,000009429764103,THE HONEST LAWYER,7011,Accommodation assistance,59.30,0.00,59.30
"Regeneration, Economy and Growth",Development and Housing,031576,B& B - Temp Accom,Supplies and Services,364320,Grants to Voluntary Organisations,05-Mar-2021,000009429764107,THE HONEST LAWYER,7011,Accommodation assistance,500.00,0.00,500.00
Resources BK0010,Business Support,065503,Business Support - Spectrum,Supplies and Services,304403,Equipment and Materials,05-Mar-2021,000009429764307,AMZNMktplace,5999,Other consumables,366.39,0.00,366.39
Children and Young Peoples Services,Head of Childrens Social Care,085331,New Lea Childrens Home,Supplies and Services,348037,Subsistence E348,05-Mar-2021,000009429764321,MCDONALDS,5814,Subsistence,3.89,0.00,3.89
"Regeneration, Economy and Growth",Development and Housing,030772,CLLD South,Supplies and Services,304259,Equipment and Materials,05-Mar-2021,000009429764429,Durham County CNCL,9399,Equipment-purchase and rental,11.00,0.00,11.00
Children and Young Peoples Services,Head of Childrens Social Care,085358,Orchard House Sacriston Solo Home,Supplies and Services,348037,Subsistence E348,05-Mar-2021,000009429764517,KFC-DURHAM NORTH,5814,Subsistence,24.67,0.00,24.67
Children and Young Peoples Services,Head of Childrens Social Care,085358,Orchard House Sacriston Solo Home,Supplies and Services,324117,Provisions E324,05-Mar-2021,000009429764523,ASDA GROCERIES ONLINE,5411,Catering costs - provisions,111.43,0.00,111.43
Children and Young Peoples Services,Head of Childrens Social Care,085358,Orchard House Sacriston Solo Home,Supplies and Services,324117,Provisions E324,05-Mar-2021,000009429764529,ASDA GROCERIES ONLINE,5411,Catering costs - provisions,0.52,0.00,0.52
Children and Young Peoples Services,Head of Education and Skills,071732,Dean Bank Childcare,Supplies and Services,324117,Provisions E324,05-Mar-2021,000009429764569,SAINSBURYS SACAT (2303,5411,Catering costs - provisions,11.80,0.00,11.80
"Regeneration, Economy and Growth",Culture Sport and Tourism,054967,Theatre - Technical Staffing,Supplies and Services,304403,Equipment and Materials,05-Mar-2021,000009429764577,AMZNMKTPLACE AMAZON.CO,5999,Other consumables,89.00,0.00,89.00
"Regeneration, Economy and Growth",Development and Housing,031623,Rough,Supplies and Services,352001,Conference Expenses,05-Mar-2021,000009429764661,AYCLIFFE BIZ,7011,Conferencesseminars fees etc,114.00,0.00,114.00
"Regeneration, Economy and Growth",Development and Housing,031623,Rough,Supplies and Services,352001,Conference Expenses,05-Mar-2021,000009429764669,AYCLIFFE BIZ,7011,Conferencesseminars fees etc,114.00,0.00,114.00
"Regeneration, Economy and Growth",Development and Housing,031623,Rough,Supplies and Services,352001,Conference Expenses,05-Mar-2021,000009429764689,AYCLIFFE BIZ,7011,Conferencesseminars fees etc,152.00,0.00,152.00
"Regeneration, Economy and Growth",Development and Housing,031623,Rough,Transport,235057,Public Transport,05-Mar-2021,000009429764695,BLUELINE TAXIS,4121,Staff travelling,24.00,0.00,24.00
"Regeneration, Economy and Growth",Development and Housing,031623,Rough,Transport,235057,Public Transport,05-Mar-2021,000009429764701,STANLEY TRAVEL (NORTH,4121,Staff travelling,20.64,0.00,20.64
Children and Young Peoples Services,Head of Early Help Inclusion & Vulnerable Children.,085965,Barnard,Supplies and Services,324117,Provisions E324,05-Mar-2021,000009429764753,TESCO STORES 6329,5411,Catering costs - provisions,42.23,0.00,42.23
"Regeneration, Economy and Growth",Development and Housing,031500,Housing Solutions - Core Team,Supplies and Services,352001,Conference Expenses,05-Mar-2021,000009429764855,HI NEWCASTLE WASHI,7011,Conferencesseminars fees etc,350.00,0.00,350.00
Children and Young Peoples Services,Head of Childrens Social Care,085551,Short Break Services-Park Hse Sher,Supplies and Services,304999,Equipment and Materials,05-Mar-2021,000009429765023,ACCORA LTD,5976,Misc equipment tools and materials,"2,017.20",0.00,2017.20
Children and Young Peoples Services,Head of Childrens Social Care,085551,Short Break Services-Park Hse Sher,Supplies and Services,324117,Provisions E324,05-Mar-2021,000009429765027,J FREEMAN & SONS LTD,5499,Catering costs - provisions,110.11,0.00,110.11
Children and Young Peoples Services,Head of Childrens Social Care,085551,Short Break Services-Park Hse Sher,Supplies and Services,324117,Provisions E324,05-Mar-2021,000009429765033,JR HOLLAND FOODSERVICE,5499,Catering costs - provisions,315.18,0.00,315.18
Children and Young Peoples Services,Head of Early Help Inclusion & Vulnerable Children.,088116,South Area - Teenage Parent Programme,Supplies and Services,384302,Miscellaneous Expenses,05-Mar-2021,000009429765075,POUNDSTRETCHER 692,5331,Activity expenses,9.96,0.00,9.96
Children and Young Peoples Services,Head of Early Help Inclusion & Vulnerable Children.,088116,South Area - Teenage Parent Programme,Supplies and Services,384302,Miscellaneous Expenses,05-Mar-2021,000009429765077,HOME BARGAINS,5251,Activity expenses,16.18,0.00,16.18
Children and Young Peoples Services,Head of Early Help Inclusion & Vulnerable Children.,088116,South Area - Teenage Parent Programme,Supplies and Services,384302,Miscellaneous Expenses,05-Mar-2021,000009429765081,TESCO STORES 6329,5411,Activity expenses,5.00,0.00,5.00
Children and Young Peoples Services,Head of Early Help Inclusion & Vulnerable Children.,071489,Winter Family Fund,Supplies and Services,364301,Grants to Voluntary Organisations,05-Mar-2021,000009429765083,ARGOS LTD,5310,Hardship,121.94,0.00,121.94
Neighbourhoods and Climate Change,Environmental Services,010367,C&G - South Grounds Maintenance,Supplies and Services,304999,Equipment and Materials,05-Mar-2021,000009429765161,Snowballs,5251,Misc equipment tools and materials,46.20,0.00,46.20
Children and Young Peoples Services,Head of Childrens Social Care,085342,16 Hickstead Rise (previously 9 Cedar Ave),Supplies and Services,324117,Provisions E324,05-Mar-2021,000009429765251,TESCO STORES 2916,5411,Catering costs - provisions,12.90,0.00,12.90
Children and Young Peoples Services,Head of Childrens Social Care,085342,16 Hickstead Rise (previously 9 Cedar Ave),Supplies and Services,324117,Provisions E324,05-Mar-2021,000009429765261,TESCO STORES 2916,5411,Catering costs - provisions,35.50,0.00,35.50
Children and Young Peoples Services,Head of Childrens Social Care,085342,16 Hickstead Rise (previously 9 Cedar Ave),Supplies and Services,324117,Provisions E324,05-Mar-2021,000009429765265,TESCO STORES 2916,5411,Catering costs - provisions,5.80,0.00,5.80
Children and Young Peoples Services,Head of Childrens Social Care,085342,16 Hickstead Rise (previously 9 Cedar Ave),Supplies and Services,324117,Provisions E324,05-Mar-2021,000009429765269,TESCO STORES 2916,5411,Catering costs - provisions,15.66,0.00,15.66
Children and Young Peoples Services,Head of Childrens Social Care,085332,Middlestone Moor CU,Supplies and Services,324117,Provisions E324,05-Mar-2021,000009429765371,ASDA SUPERSTORE 4987,5411,Catering costs - provisions,61.58,0.00,61.58
Children and Young Peoples Services,Head of Early Help Inclusion & Vulnerable Children.,071489,Winter Family Fund,Supplies and Services,364301,Grants to Voluntary Organisations,05-Mar-2021,000009429765413,AMZNMktplace,5999,Hardship,119.96,20.00,99.96
Children and Young Peoples Services,Head of Early Help Inclusion & Vulnerable Children.,071489,Winter Family Fund,Supplies and Services,364301,Grants to Voluntary Organisations,05-Mar-2021,000009429765417,ASDA GEORGE COM LEEDS,5411,Hardship,197.00,0.00,197.00
Adult and Health Services,Head of Adults,055643,Hawthorn House LD Respite Unit,Supplies and Services,324117,Provisions E324,05-Mar-2021,000009429765425,FREEMAN CATERING BUTCH,5422,Catering costs - provisions,22.33,0.00,22.33
Resources BK0010,Business Support,065503,Business Support - Spectrum,Supplies and Services,308011,Furniture,05-Mar-2021,000009429765529,MAGUIRE TA LTD,5713,Furniture repair and replacement,350.00,0.00,350.00
Resources BK0010,Business Support,065503,Business Support - Spectrum,Supplies and Services,304259,Equipment and Materials,05-Mar-2021,000009429765533,CURRYS ONLINE,5732,Equipment-purchase and rental,129.99,0.00,129.99
Resources BK0010,Business Support,065503,Business Support - Spectrum,Supplies and Services,328041,Clothing uniforms and laundry E328,05-Mar-2021,000009429765537,ARGOS LTD,5310,Clothing uniforms and laundry,131.93,0.00,131.93
Resources BK0010,Business Support,065503,Business Support - Spectrum,Supplies and Services,308011,Furniture,05-Mar-2021,000009429765541,Dunelm,5712,Furniture repair and replacement,18.00,0.00,18.00
Children and Young Peoples Services,Head of Early Help Inclusion & Vulnerable Children.,071447,Peterlee One Point Hub,Supplies and Services,304259,Equipment and Materials,05-Mar-2021,000009429765545,AMZNMktplace,5999,Equipment-purchase and rental,10.99,1.83,9.16
"Regeneration, Economy and Growth",Transport and Contracted Services,031704,Care Connect - CCTV Countywide,Supplies and Services,384956,Miscellaneous Expenses,05-Mar-2021,000009429765575,SECURITY INDUSTRY,7393,Licences,190.00,0.00,190.00
"Regeneration, Economy and Growth",Transport and Contracted Services,031704,Care Connect - CCTV Countywide,Supplies and Services,384956,Miscellaneous Expenses,05-Mar-2021,000009429765583,SECURITY INDUSTRY,7393,Licences,190.00,0.00,190.00
"Regeneration, Economy and Growth",Transport and Contracted Services,031704,Care Connect - CCTV Countywide,Supplies and Services,384956,Miscellaneous Expenses,05-Mar-2021,000009429765587,SECURITY INDUSTRY,7393,Licences,190.00,0.00,190.00
Children and Young Peoples Services,Head of Childrens Social Care,085332,Middlestone Moor CU,Supplies and Services,324117,Provisions E324,05-Mar-2021,000009429765617,ASDA STORES,5411,Catering costs - provisions,21.26,0.00,21.26
Adult and Health Services,Head of Adults,055301,Stanley Pathways,Supplies and Services,324117,Provisions E324,05-Mar-2021,000009429765631,WILKO RETAIL LIMITED,5399,Catering costs - provisions,10.75,0.00,10.75
"Regeneration, Economy and Growth",Development and Housing,031576,B& B - Temp Accom,Supplies and Services,364320,Grants to Voluntary Organisations,05-Mar-2021,000009429765635,THE HONEST LAWYER,7011,Accommodation assistance,399.75,0.00,399.75
"Regeneration, Economy and Growth",Development and Housing,031576,B& B - Temp Accom,Supplies and Services,364320,Grants to Voluntary Organisations,05-Mar-2021,000009429765639,HI NEWCASTLE WASHI,7011,Accommodation assistance,320.00,0.00,320.00
Children and Young Peoples Services,Head of Childrens Social Care,085342,16 Hickstead Rise (previously 9 Cedar Ave),Supplies and Services,324117,Provisions E324,05-Mar-2021,000009429765659,TESCO STORES 2916,5411,Catering costs - provisions,68.90,0.00,68.90
Children and Young Peoples Services,Head of Education and Skills,071802,Louisa Cent Nursery,Supplies and Services,324117,Provisions E324,05-Mar-2021,000009429765663,B&M 519 - CONSETT,5399,Catering costs - provisions,5.00,0.00,5.00
Children and Young Peoples Services,Head of Education and Skills,071802,Louisa Cent Nursery,Supplies and Services,324117,Provisions E324,05-Mar-2021,000009429765665,B&M 519 - CONSETT,5399,Catering costs - provisions,5.00,0.00,5.00
Children and Young Peoples Services,Head of Education and Skills,071802,Louisa Cent Nursery,Supplies and Services,324117,Provisions E324,05-Mar-2021,000009429765671,ASDA GROCERIES ONLINE,5411,Catering costs - provisions,154.00,0.00,154.00
Children and Young Peoples Services,Head of Education and Skills,071802,Louisa Cent Nursery,Supplies and Services,324117,Provisions E324,05-Mar-2021,000009429765675,ASDA GROCERIES ONLINE,5411,Catering costs - provisions,-0.28,0.00,-0.28
Children and Young Peoples Services,Head of Childrens Social Care,085332,Middlestone Moor CU,Supplies and Services,304403,Equipment and Materials,05-Mar-2021,000009429765769,AMZNMktplace,5999,Other consumables,19.95,3.33,16.62
Children and Young Peoples Services,Head of Childrens Social Care,085332,Middlestone Moor CU,Supplies and Services,304403,Equipment and Materials,05-Mar-2021,000009429765773,AMZNMktplace,5999,Other consumables,15.99,2.67,13.32
"Regeneration, Economy and Growth",Development and Housing,031500,Housing Solutions - Core Team,Supplies and Services,352001,Conference Expenses,05-Mar-2021,000009429765797,TOAST LETTINGS,7011,Conferencesseminars fees etc,490.00,0.00,490.00
"Regeneration, Economy and Growth",Development and Housing,031500,Housing Solutions - Core Team,Supplies and Services,352001,Conference Expenses,05-Mar-2021,000009429765803,TOAST LETTINGS,7011,Conferencesseminars fees etc,490.00,0.00,490.00
"Regeneration, Economy and Growth",Development and Housing,031500,Housing Solutions - Core Team,Supplies and Services,352001,Conference Expenses,05-Mar-2021,000009429765811,TOAST LETTINGS,7011,Conferencesseminars fees etc,490.00,0.00,490.00
"Regeneration, Economy and Growth",Development and Housing,031500,Housing Solutions - Core Team,Supplies and Services,352001,Conference Expenses,05-Mar-2021,000009429765813,TOAST LETTINGS,7011,Conferencesseminars fees etc,240.00,0.00,240.00
"Regeneration, Economy and Growth",Development and Housing,031500,Housing Solutions - Core Team,Supplies and Services,352001,Conference Expenses,05-Mar-2021,000009429765817,TOAST LETTINGS,7011,Conferencesseminars fees etc,320.00,0.00,320.00
"Regeneration, Economy and Growth",Development and Housing,031500,Housing Solutions - Core Team,Supplies and Services,352001,Conference Expenses,05-Mar-2021,000009429765821,THE HONEST LAWYER,7011,Conferencesseminars fees etc,239.80,0.00,239.80
"Regeneration, Economy and Growth",Development and Housing,031500,Housing Solutions - Core Team,Supplies and Services,352001,Conference Expenses,05-Mar-2021,000009429765823,THE HONEST LAWYER,7011,Conferencesseminars fees etc,239.80,0.00,239.80
Resources BK0010,Business Support,065501,Business Support - Executive Support,Supplies and Services,304335,Equipment and Materials,05-Mar-2021,000009429765851,AMZNMktplace,5999,ICT supplies etc,8.70,1.45,7.25
Resources BK0010,Business Support,065501,Business Support - Executive Support,Supplies and Services,304335,Equipment and Materials,05-Mar-2021,000009429765851 - 1,AMZNMktplace,5999,ICT supplies etc,11.88,,11.88
Children and Young Peoples Services,Head of Childrens Social Care,085551,Short Break Services-Park Hse Sher,Supplies and Services,304999,Equipment and Materials,05-Mar-2021,000009429766027,HOME BARGAINS,5251,Misc equipment tools and materials,12.02,0.00,12.02
Adult and Health Services,Head of Adults,055643,Hawthorn House LD Respite Unit,Supplies and Services,324117,Provisions E324,05-Mar-2021,000009434381457,BATLEYS PERTH,5300,Catering costs - provisions,19.20,3.20,16.00
Adult and Health Services,Head of Adults,055643,Hawthorn House LD Respite Unit,Supplies and Services,324117,Provisions E324,05-Mar-2021,000009434381457 - 1,BATLEYS PERTH,5300,Catering costs - provisions,66.93,,66.93
Adult and Health Services,Head of Adults,055643,Hawthorn House LD Respite Unit,Supplies and Services,324117,Provisions E324,05-Mar-2021,000009434381463,BATLEYS PERTH,5300,Catering costs - provisions,17.87,0.00,17.87
Resources BK0010,Business Support,065503,Business Support - Spectrum,Supplies and Services,332047,Printing Stationery and Gen Off Exps,05-Mar-2021,000009440014433,rajapack.co.uk,5021,Stationery,279.66,0.00,279.66
"Regeneration, Economy and Growth",Business Durham CL0850,030689,Inward Investment and Aftercare,Supplies and Services,336005,Advertising E336,06-Mar-2021,000009429763947,LINKEDIN-639 7263674,7311,Advertising other than for staff,80.67,0.00,80.67
"Regeneration, Economy and Growth",Business Durham CL0850,030689,Inward Investment and Aftercare,Supplies and Services,342033,Computers and Communications,06-Mar-2021,000009429763959,STK Shutterstock,7333,Computer hardware,19.00,0.00,19.00
Children and Young Peoples Services,Head of Early Help Inclusion & Vulnerable Children.,085955,Auckland,Supplies and Services,304403,Equipment and Materials,06-Mar-2021,000009429764399,AMZNMktplace,5999,Other consumables,115.80,19.32,96.48
Children and Young Peoples Services,Head of Childrens Social Care,085341,High Etherley Satelite Home,Supplies and Services,332047,Printing Stationery and Gen Off Exps,06-Mar-2021,000009429764439,TESCO STORES 6329,5411,Stationery,8.55,0.00,8.55
Children and Young Peoples Services,Head of Childrens Social Care,085342,16 Hickstead Rise (previously 9 Cedar Ave),Supplies and Services,348037,Subsistence E348,06-Mar-2021,000009429764537,THE OLIVE GARDEN,5814,Subsistence,33.20,0.00,33.20
Children and Young Peoples Services,Head of Childrens Social Care,085342,16 Hickstead Rise (previously 9 Cedar Ave),Supplies and Services,348037,Subsistence E348,06-Mar-2021,000009429764543,THE OLIVE GARDEN,5814,Subsistence,-10.00,0.00,-10.00
Children and Young Peoples Services,Head of Early Help Inclusion & Vulnerable Children.,085956,Lumley,Supplies and Services,324117,Provisions E324,06-Mar-2021,000009429764757,TESCO STORES 6329,5411,Catering costs - provisions,58.27,0.00,58.27
Children and Young Peoples Services,Head of Early Help Inclusion & Vulnerable Children.,088112,Seaham & Central Durham 0-19 Targeted Family Support,Supplies and Services,304403,Equipment and Materials,06-Mar-2021,000009429764775,AMZNMktplace,5999,Other consumables,587.88,0.00,587.88
Children and Young Peoples Services,Head of Early Help Inclusion & Vulnerable Children.,088112,Seaham & Central Durham 0-19 Targeted Family Support,Supplies and Services,304403,Equipment and Materials,06-Mar-2021,000009429764781,AMZNMktplace,5999,Other consumables,347.92,0.00,347.92
Children and Young Peoples Services,Head of Childrens Social Care,085331,New Lea Childrens Home,Supplies and Services,328041,Clothing uniforms and laundry E328,06-Mar-2021,000009429764879,ARGOS LTD,5310,Clothing uniforms and laundry,249.99,0.00,249.99
Children and Young Peoples Services,Head of Childrens Social Care,085551,Short Break Services-Park Hse Sher,Supplies and Services,324117,Provisions E324,06-Mar-2021,000009429765037,ASDA STORES,5411,Catering costs - provisions,6.05,0.00,6.05
Children and Young Peoples Services,Head of Childrens Social Care,085342,16 Hickstead Rise (previously 9 Cedar Ave),Supplies and Services,304403,Equipment and Materials,06-Mar-2021,000009429765273,AMZNMktplace,5999,Other consumables,12.79,0.00,12.79
Children and Young Peoples Services,Head of Childrens Social Care,085357,LAC Bespoke Placements,Supplies and Services,304403,Equipment and Materials,06-Mar-2021,000009429765305,AMZNMktplace,5999,Other consumables,15.68,0.00,15.68
Children and Young Peoples Services,Head of Childrens Social Care,085357,LAC Bespoke Placements,Supplies and Services,304403,Equipment and Materials,06-Mar-2021,000009429765309,AMZNMktplace,5999,Other consumables,15.68,0.00,15.68
Children and Young Peoples Services,Head of Childrens Social Care,085352,Tow Law CU,Supplies and Services,304221,Equipment and Materials,06-Mar-2021,000009429765365,B & Q 1343,5200,Direct materials,35.40,0.00,35.40
Children and Young Peoples Services,Head of Childrens Social Care,085352,Tow Law CU,Supplies and Services,324117,Provisions E324,06-Mar-2021,000009429765369,ASDA SUPERSTORE 4987,5411,Catering costs - provisions,126.61,0.00,126.61
Children and Young Peoples Services,Head of Childrens Social Care,085332,Middlestone Moor CU,Supplies and Services,328041,Clothing uniforms and laundry E328,06-Mar-2021,000009429765377,THE RANGE,5311,Clothing uniforms and laundry,17.98,0.00,17.98
Children and Young Peoples Services,Head of Childrens Social Care,085332,Middlestone Moor CU,Supplies and Services,324117,Provisions E324,06-Mar-2021,000009429765379,ASDA SUPERSTORE,5411,Catering costs - provisions,14.00,0.00,14.00
Children and Young Peoples Services,Head of Early Help Inclusion & Vulnerable Children.,088110,Easington & Peterlee 0-19 Targeted Family Support,Supplies and Services,364301,Grants to Voluntary Organisations,06-Mar-2021,000009429765551,SAINSBURYS.CO.UK,5411,Hardship,52.00,0.00,52.00
Children and Young Peoples Services,Head of Early Help Inclusion & Vulnerable Children.,088110,Easington & Peterlee 0-19 Targeted Family Support,Supplies and Services,364301,Grants to Voluntary Organisations,06-Mar-2021,000009429765555,SAINSBURYS TO YOU 0774,5411,Hardship,-10.00,0.00,-10.00
Children and Young Peoples Services,Head of Childrens Social Care,085333,Coxhoe Satelite Home,Supplies and Services,328041,Clothing uniforms and laundry E328,06-Mar-2021,000009429765835,TechStyle Fashion Grou,5631,Clothing uniforms and laundry,35.00,0.00,35.00
Chief Executive's Office,Communications Management,060270,Communications and Marketing,Supplies and Services,336005,Advertising E336,06-Mar-2021,000009429765855,FACEBK UBTZMZ25B2,7311,Advertising other than for staff,500.00,0.00,500.00
Resources BK0010,Business Support,065501,Business Support - Executive Support,Supplies and Services,304403,Equipment and Materials,06-Mar-2021,000009429765859,AMZNMKTPLACE AMAZON.CO,5999,Other consumables,3.99,0.67,3.32
Resources BK0010,Business Support,065501,Business Support - Executive Support,Supplies and Services,304403,Equipment and Materials,06-Mar-2021,000009429765861,AMZNMKTPLACE AMAZON.CO,5999,Other consumables,3.99,0.67,3.32
Resources BK0010,Business Support,065501,Business Support - Executive Support,Supplies and Services,304403,Equipment and Materials,06-Mar-2021,000009429765865,AMZNMKTPLACE AMAZON.CO,5999,Other consumables,3.99,0.67,3.32
Resources BK0010,Business Support,065501,Business Support - Executive Support,Supplies and Services,304403,Equipment and Materials,06-Mar-2021,000009429765867,AMZNMKTPLACE AMAZON.CO,5999,Other consumables,3.99,0.67,3.32
Resources BK0010,Legal & Democratic Services,067953,Coroner County Durham & Darlington,Supplies and Services,304403,Equipment and Materials,06-Mar-2021,000009429765871,AMZNMKTPLACE AMAZON.CO,5999,Other consumables,3.99,0.67,3.32
Resources BK0010,Business Support,065501,Business Support - Executive Support,Supplies and Services,304403,Equipment and Materials,06-Mar-2021,000009429765875,AMZNMKTPLACE AMAZON.CO,5999,Other consumables,3.99,0.67,3.32
Resources BK0010,Business Support,065501,Business Support - Executive Support,Supplies and Services,304403,Equipment and Materials,06-Mar-2021,000009429765877,AMZNMKTPLACE AMAZON.CO,5999,Other consumables,3.99,0.67,3.32
Resources BK0010,Business Support,065501,Business Support - Executive Support,Supplies and Services,304403,Equipment and Materials,06-Mar-2021,000009429765881,AMZNMKTPLACE AMAZON.CO,5999,Other consumables,3.99,0.67,3.32
Resources BK0010,Business Support,065501,Business Support - Executive Support,Supplies and Services,304403,Equipment and Materials,06-Mar-2021,000009429765883,AMZNMKTPLACE AMAZON.CO,5999,Other consumables,3.99,0.67,3.32
Resources BK0010,Business Support,065501,Business Support - Executive Support,Supplies and Services,304403,Equipment and Materials,06-Mar-2021,000009429765887,AMZNMKTPLACE AMAZON.CO,5999,Other consumables,3.99,0.67,3.32
Resources BK0010,Business Support,065501,Business Support - Executive Support,Supplies and Services,304403,Equipment and Materials,06-Mar-2021,000009429765891,AMZNMKTPLACE AMAZON.CO,5999,Other consumables,3.99,0.67,3.32
Resources BK0010,Business Support,065501,Business Support - Executive Support,Supplies and Services,304403,Equipment and Materials,06-Mar-2021,000009429765893,AMZNMKTPLACE AMAZON.CO,5999,Other consumables,3.99,0.67,3.32
Children and Young Peoples Services,Head of Childrens Social Care,085332,Middlestone Moor CU,Supplies and Services,328041,Clothing uniforms and laundry E328,06-Mar-2021,000009429766085,The Range,5311,Clothing uniforms and laundry,101.92,0.00,101.92
Children and Young Peoples Services,Head of Childrens Social Care,085332,Middlestone Moor CU,Supplies and Services,324117,Provisions E324,06-Mar-2021,000009429766091,SAINSBURYS 0776,5411,Catering costs - provisions,63.60,0.00,63.60
"Regeneration, Economy and Growth",Business Durham CL0850,030694,Plexus 2,Supplies and Services,384999,Miscellaneous Expenses,06-Mar-2021,000009429766097,Amazon.co.uk MM5KN4HU4,5969,Other expenses,3.89,0.00,3.89
Children and Young Peoples Services,Head of Childrens Social Care,085358,Orchard House Sacriston Solo Home,Supplies and Services,332047,Printing Stationery and Gen Off Exps,07-Mar-2021,000007470271810,VIKING UK,5111,Stationery,130.49,0.00,130.49
"Regeneration, Economy and Growth",Business Durham CL0850,030689,Inward Investment and Aftercare,Supplies and Services,342222,Computers and Communications,07-Mar-2021,000009429763963,FASTHOSTS INTERNET,4816,Comp hardware purch-network servers,17.98,0.00,17.98
Resources BK0010,Digital and Customer Services,065432,Web Development Group,Supplies and Services,342053,Computers and Communications,07-Mar-2021,000009429764039,WPMU DEV INCSUBFEE.COM,7372,Computer software,13.79,0.00,13.79
Children and Young Peoples Services,Head of Childrens Social Care,085561,Social Work Academy,Supplies and Services,384999,Miscellaneous Expenses,07-Mar-2021,000009429764043,Amazon.co.uk MM2BX1864,5969,Other expenses,35.98,6.00,29.98
Children and Young Peoples Services,Head of Childrens Social Care,085561,Social Work Academy,Supplies and Services,384999,Miscellaneous Expenses,07-Mar-2021,000009429764045,Amazon.co.uk MM6FJ58X4,5969,Other expenses,35.98,6.00,29.98
Adult and Health Services,Head of Adults,051602,OP/PD Derwentside 051602,Supplies and Services,384999,Miscellaneous Expenses,07-Mar-2021,000009429764051,Amazon.co.uk MM7BZ08O4,5969,Other expenses,2.80,0.47,2.33
Children and Young Peoples Services,Head of Childrens Social Care,085561,Social Work Academy,Supplies and Services,384999,Miscellaneous Expenses,07-Mar-2021,000009429764055,Amazon.co.uk MM7ES68O4,5969,Other expenses,113.31,18.90,94.41
Children and Young Peoples Services,Head of Childrens Social Care,085561,Social Work Academy,Supplies and Services,384999,Miscellaneous Expenses,07-Mar-2021,000009429764059,Amazon.co.uk MM7LZ4QC4,5969,Other expenses,46.86,7.82,39.04
Chief Executive's Office,Communications Management,060270,Communications and Marketing,Supplies and Services,304403,Equipment and Materials,07-Mar-2021,000009429764061,AMZNMktplace,5999,Other consumables,115.56,19.28,96.28
Children and Young Peoples Services,Head of Childrens Social Care,085331,New Lea Childrens Home,Supplies and Services,304999,Equipment and Materials,07-Mar-2021,000009429764325,HOME BARGAINS,5251,Misc equipment tools and materials,1.58,0.00,1.58
Children and Young Peoples Services,Head of Childrens Social Care,085331,New Lea Childrens Home,Supplies and Services,324117,Provisions E324,07-Mar-2021,000009429764331,ASDA SUPERSTORE,5411,Catering costs - provisions,7.80,0.00,7.80
Children and Young Peoples Services,Head of Early Help Inclusion & Vulnerable Children.,088107,Ferryhill & Newton Aycliffe 0-19 Community Family Hub,Supplies and Services,384999,Miscellaneous Expenses,07-Mar-2021,000009429764707,Amazon.co.uk MM2BC78Z4,5969,Other expenses,4.87,0.81,4.06
Children and Young Peoples Services,Head of Early Help Inclusion & Vulnerable Children.,088107,Ferryhill & Newton Aycliffe 0-19 Community Family Hub,Supplies and Services,384999,Miscellaneous Expenses,07-Mar-2021,000009429764713,Amazon.co.uk MM8GE7QQ4,5969,Other expenses,8.98,1.50,7.48
Children and Young Peoples Services,Head of Early Help Inclusion & Vulnerable Children.,088107,Ferryhill & Newton Aycliffe 0-19 Community Family Hub,Supplies and Services,384999,Miscellaneous Expenses,07-Mar-2021,000009429764715,Amazon.co.uk MM8L28QX4,5969,Other expenses,12.50,0.00,12.50
Children and Young Peoples Services,Head of Early Help Inclusion & Vulnerable Children.,085954,Walworth,Supplies and Services,324117,Provisions E324,07-Mar-2021,000009429764761,TESCO STORES 6329,5411,Catering costs - provisions,77.91,0.00,77.91
Children and Young Peoples Services,Head of Early Help Inclusion & Vulnerable Children.,088117,East Area - Teenage Parent Programme,Supplies and Services,324117,Provisions E324,07-Mar-2021,000009429764787,TESCO STORE 2638,5411,Catering costs - provisions,52.50,0.00,52.50
Children and Young Peoples Services,Head of Early Help Inclusion & Vulnerable Children.,088112,Seaham & Central Durham 0-19 Targeted Family Support,Supplies and Services,304403,Equipment and Materials,07-Mar-2021,000009429764789,AMZNMktplace,5999,Other consumables,575.10,0.00,575.10
Children and Young Peoples Services,Head of Childrens Social Care,085331,New Lea Childrens Home,Supplies and Services,324117,Provisions E324,07-Mar-2021,000009429765091,CO-OP GROUP 070121,5411,Catering costs - provisions,8.15,0.00,8.15
"Regeneration, Economy and Growth",Corporate Property and Land,020082,Bldg Serv - R&M Div 82- Lifts,Supplies and Services,304999,Equipment and Materials,07-Mar-2021,000009429765215,AMZN Mktp UK MM31U5824,5942,Misc equipment tools and materials,8.81,1.47,7.34
Children and Young Peoples Services,Head of Childrens Social Care,085342,16 Hickstead Rise (previously 9 Cedar Ave),Supplies and Services,324117,Provisions E324,07-Mar-2021,000009429765279,TESCO STORES 2916,5411,Catering costs - provisions,11.89,0.00,11.89
Children and Young Peoples Services,Head of Childrens Social Care,085342,16 Hickstead Rise (previously 9 Cedar Ave),Supplies and Services,332047,Printing Stationery and Gen Off Exps,07-Mar-2021,000009429765287,WWW.OFFICEFURNITUREONL,5021,Stationery,482.40,0.00,482.40
Children and Young Peoples Services,Head of Childrens Social Care,085357,LAC Bespoke Placements,Supplies and Services,304403,Equipment and Materials,07-Mar-2021,000009429765315,AMZNMktplace,5999,Other consumables,4.17,0.00,4.17
Children and Young Peoples Services,Head of Childrens Social Care,085357,LAC Bespoke Placements,Supplies and Services,304403,Equipment and Materials,07-Mar-2021,000009429765319,AMZNMktplace,5999,Other consumables,4.17,0.00,4.17
Children and Young Peoples Services,Head of Childrens Social Care,085357,LAC Bespoke Placements,Supplies and Services,304403,Equipment and Materials,07-Mar-2021,000009429765323,AMZNMktplace,5999,Other consumables,4.17,0.00,4.17
Children and Young Peoples Services,Head of Childrens Social Care,085357,LAC Bespoke Placements,Supplies and Services,304403,Equipment and Materials,07-Mar-2021,000009429765325,AMZNMktplace,5999,Other consumables,15.95,0.00,15.95
Children and Young Peoples Services,Head of Childrens Social Care,085357,LAC Bespoke Placements,Supplies and Services,304403,Equipment and Materials,07-Mar-2021,000009429765331,AMZNMktplace,5999,Other consumables,101.83,0.00,101.83
Children and Young Peoples Services,Head of Childrens Social Care,085357,LAC Bespoke Placements,Supplies and Services,304403,Equipment and Materials,07-Mar-2021,000009429765335,AMZNMktplace,5999,Other consumables,51.97,0.00,51.97
Children and Young Peoples Services,Head of Childrens Social Care,085357,LAC Bespoke Placements,Supplies and Services,304403,Equipment and Materials,07-Mar-2021,000009429765337,AMZNMktplace,5999,Other consumables,145.65,0.00,145.65
Children and Young Peoples Services,Head of Childrens Social Care,085357,LAC Bespoke Placements,Supplies and Services,304403,Equipment and Materials,07-Mar-2021,000009429765341,AMZNMktplace,5999,Other consumables,14.98,0.00,14.98
Children and Young Peoples Services,Head of Childrens Social Care,085357,LAC Bespoke Placements,Supplies and Services,304403,Equipment and Materials,07-Mar-2021,000009429765347,AMZNMktplace,5999,Other consumables,4.98,0.00,4.98
Children and Young Peoples Services,Head of Childrens Social Care,085357,LAC Bespoke Placements,Supplies and Services,304403,Equipment and Materials,07-Mar-2021,000009429765351,AMZNMktplace,5999,Other consumables,2.99,0.00,2.99
Children and Young Peoples Services,Head of Childrens Social Care,085332,Middlestone Moor CU,Supplies and Services,324117,Provisions E324,07-Mar-2021,000009429765383,TESCO STORES 2371,5411,Catering costs - provisions,49.20,0.00,49.20
Children and Young Peoples Services,Head of Education and Skills,071802,Louisa Cent Nursery,Supplies and Services,328041,Clothing uniforms and laundry E328,07-Mar-2021,000009429765679,W BOYES & CO LTD CONSE,5310,Clothing uniforms and laundry,1.49,0.00,1.49
Resources BK0010,Business Support,065503,Business Support - Spectrum,Supplies and Services,328041,Clothing uniforms and laundry E328,07-Mar-2021,000009434381615,ARGOS LTD,5310,Clothing uniforms and laundry,-20.00,0.00,-20.00
Resources BK0010,Digital and Customer Services,011103,Digital Solutions,Supplies and Services,342053,Computers and Communications,08-Mar-2021,000009429764065,FONT AWESOME STANDARD,7372,Computer software,1.96,0.00,1.96
Resources BK0010,Digital and Customer Services,065432,Web Development Group,Supplies and Services,342053,Computers and Communications,08-Mar-2021,000009429764067,WPMU DEV INCSUBFEE.COM,7372,Computer software,0.38,0.00,0.38
Children and Young Peoples Services,Head of Childrens Social Care,085332,Middlestone Moor CU,Supplies and Services,304999,Equipment and Materials,08-Mar-2021,000009429765623,Microsoft Console 1-Mo,5816,Misc equipment tools and materials,7.99,0.00,7.99
"Regeneration, Economy and Growth",Business Durham CL0850,030689,Inward Investment and Aftercare,Supplies and Services,342222,Computers and Communications,08-Mar-2021,000009434380125,FASTHOSTS INTERNET,4816,Comp hardware purch-network servers,13.19,0.00,13.19
Children and Young Peoples Services,Head of Education and Skills,071801,Selby Cottage Childcare Centre,Supplies and Services,304999,Equipment and Materials,08-Mar-2021,000009434380159,Amazon Prime MM7AB56O4,5968,Misc equipment tools and materials,7.99,0.00,7.99
Children and Young Peoples Services,Head of Education and Skills,071801,Selby Cottage Childcare Centre,Supplies and Services,304403,Equipment and Materials,08-Mar-2021,000009434380167,AMZNMktplace,5999,Other consumables,11.15,1.86,9.29
Resources BK0010,Digital and Customer Services,065487,ICT Telephony Recharges,Supplies and Services,344033,Telephones,08-Mar-2021,000009434380175,AMZNMKTPLACE AMAZON.CO,5999,Telephones general-all costs,112.68,18.78,93.90
Resources BK0010,Digital and Customer Services,065487,ICT Telephony Recharges,Supplies and Services,304403,Equipment and Materials,08-Mar-2021,000009434380175 - 1,AMZNMKTPLACE AMAZON.CO,5999,Other consumables,0.10,,0.10
Adult and Health Services,Head of Adults,055302,Durham Pathways,Third Party Payments,474101,Purchase of Care,08-Mar-2021,000009434380275,PIONEERING CARE PARTNE,8050,Nursing care payments,28.00,0.00,28.00
Adult and Health Services,Head of Adults,055302,Durham Pathways,Supplies and Services,384999,Miscellaneous Expenses,08-Mar-2021,000009434380281,Amazon.co.uk MM1D05DB4,5969,Other expenses,18.98,3.16,15.82
Children and Young Peoples Services,Head of Early Help Inclusion & Vulnerable Children.,088116,South Area - Teenage Parent Programme,Supplies and Services,304259,Equipment and Materials,08-Mar-2021,000009434380395,AMZNMktplace,5999,Equipment-purchase and rental,14.80,0.00,14.80
Children and Young Peoples Services,Head of Early Help Inclusion & Vulnerable Children.,088116,South Area - Teenage Parent Programme,Supplies and Services,304259,Equipment and Materials,08-Mar-2021,000009434380401,AMZNMktplace,5999,Equipment-purchase and rental,66.60,0.00,66.60
Children and Young Peoples Services,Head of Early Help Inclusion & Vulnerable Children.,088116,South Area - Teenage Parent Programme,Supplies and Services,304259,Equipment and Materials,08-Mar-2021,000009434380405,AMZNMktplace,5999,Equipment-purchase and rental,86.80,14.52,72.28
Children and Young Peoples Services,Head of Early Help Inclusion & Vulnerable Children.,088116,South Area - Teenage Parent Programme,Supplies and Services,304259,Equipment and Materials,08-Mar-2021,000009434380409,AMZNMktplace,5999,Equipment-purchase and rental,22.14,3.69,18.45
Children and Young Peoples Services,Head of Early Help Inclusion & Vulnerable Children.,088116,South Area - Teenage Parent Programme,Supplies and Services,304259,Equipment and Materials,08-Mar-2021,000009434380409 - 1,AMZNMktplace,5999,Equipment-purchase and rental,0.06,,0.06
Children and Young Peoples Services,Head of Early Help Inclusion & Vulnerable Children.,088116,South Area - Teenage Parent Programme,Supplies and Services,304259,Equipment and Materials,08-Mar-2021,000009434380413,WILKO.COM,5399,Equipment-purchase and rental,71.00,11.83,59.17
Children and Young Peoples Services,Head of Early Help Inclusion & Vulnerable Children.,088116,South Area - Teenage Parent Programme,Supplies and Services,304259,Equipment and Materials,08-Mar-2021,000009434380423,AMZNMKTPLACE AMAZON.CO,5999,Equipment-purchase and rental,14.40,2.40,12.00
Children and Young Peoples Services,Head of Early Help Inclusion & Vulnerable Children.,088116,South Area - Teenage Parent Programme,Supplies and Services,304259,Equipment and Materials,08-Mar-2021,000009434380423 - 1,AMZNMKTPLACE AMAZON.CO,5999,Equipment-purchase and rental,0.10,,0.10
Children and Young Peoples Services,Head of Early Help Inclusion & Vulnerable Children.,088105,BA/BC/Crook 0-19 Community Family Hub,Supplies and Services,304259,Equipment and Materials,08-Mar-2021,000009434380427,ASDA GEORGE COM LEEDS,5411,Equipment-purchase and rental,291.50,48.58,242.92
Children and Young Peoples Services,Head of Early Help Inclusion & Vulnerable Children.,085965,Barnard,Supplies and Services,304403,Equipment and Materials,08-Mar-2021,000009434380513,AMZNMktplace,5999,Other consumables,69.98,11.66,58.32
Children and Young Peoples Services,Head of Early Help Inclusion & Vulnerable Children.,085965,Barnard,Supplies and Services,304403,Equipment and Materials,08-Mar-2021,000009434380515,AMZNMktplace,5999,Other consumables,71.92,12.00,59.92
Children and Young Peoples Services,Head of Early Help Inclusion & Vulnerable Children.,085965,Barnard,Supplies and Services,304403,Equipment and Materials,08-Mar-2021,000009434380521,AMZNMktplace,5999,Other consumables,35.52,5.92,29.60
Children and Young Peoples Services,Head of Early Help Inclusion & Vulnerable Children.,085965,Barnard,Supplies and Services,304403,Equipment and Materials,08-Mar-2021,000009434380521 - 1,AMZNMktplace,5999,Other consumables,0.08,,0.08
Children and Young Peoples Services,Head of Childrens Social Care,085361,LAC & Permanence Team 1,Supplies and Services,304403,Equipment and Materials,08-Mar-2021,000009434380545,HM PASSPORT OFFICE,9399,Other consumables,49.00,0.00,49.00
Children and Young Peoples Services,Head of Childrens Social Care,085362,LAC & Permanence Team 2,Supplies and Services,304403,Equipment and Materials,08-Mar-2021,000009434380549,HM PASSPORT OFFICE,9399,Other consumables,49.00,0.00,49.00
Resources BK0010,Digital and Customer Services,065487,ICT Telephony Recharges,Supplies and Services,372009,Subscriptions E372,08-Mar-2021,000009434380641,WEB NETWORKSOLUTIONS,5968,Subscriptions 372009,74.86,0.00,74.86
Children and Young Peoples Services,Head of Education and Skills,071732,Dean Bank Childcare,Supplies and Services,324117,Provisions E324,08-Mar-2021,000009434380675,B&M 147 - FERRYHILL,5399,Catering costs - provisions,13.10,0.00,13.10
Children and Young Peoples Services,Head of Education and Skills,071732,Dean Bank Childcare,Supplies and Services,324117,Provisions E324,08-Mar-2021,000009434380677,ASDA GROCERIES ONLINE,5411,Catering costs - provisions,107.53,0.00,107.53
Children and Young Peoples Services,Head of Education and Skills,071732,Dean Bank Childcare,Supplies and Services,324117,Provisions E324,08-Mar-2021,000009434380681,ASDA GROCERIES ONLINE,5411,Catering costs - provisions,42.74,0.00,42.74
Children and Young Peoples Services,Head of Education and Skills,071732,Dean Bank Childcare,Supplies and Services,324117,Provisions E324,08-Mar-2021,000009434380689,ASDA GROCERIES ONLINE,5411,Catering costs - provisions,22.45,0.00,22.45
"Regeneration, Economy and Growth",Culture Sport and Tourism,054967,Theatre - Technical Staffing,Supplies and Services,384999,Miscellaneous Expenses,08-Mar-2021,000009434380695,Amazon.co.uk MM4A82DY4,5969,Other expenses,14.00,0.00,14.00
"Regeneration, Economy and Growth",Development and Housing,031500,Housing Solutions - Core Team,Supplies and Services,352001,Conference Expenses,08-Mar-2021,000009434380779,HI NEWCASTLE WASHI,7011,Conferencesseminars fees etc,450.00,0.00,450.00
"Regeneration, Economy and Growth",Development and Housing,031500,Housing Solutions - Core Team,Supplies and Services,352001,Conference Expenses,08-Mar-2021,000009434380783,HI NEWCASTLE WASHI,7011,Conferencesseminars fees etc,450.00,0.00,450.00
"Regeneration, Economy and Growth",Development and Housing,031500,Housing Solutions - Core Team,Supplies and Services,352001,Conference Expenses,08-Mar-2021,000009434380789,HI NEWCASTLE WASHI,7011,Conferencesseminars fees etc,220.00,0.00,220.00
"Regeneration, Economy and Growth",Development and Housing,031623,Rough,Supplies and Services,352001,Conference Expenses,08-Mar-2021,000009434380817,AYCLIFFE BIZ,7011,Conferencesseminars fees etc,152.00,0.00,152.00
"Regeneration, Economy and Growth",Development and Housing,031623,Rough,Supplies and Services,352001,Conference Expenses,08-Mar-2021,000009434380823,AYCLIFFE BIZ,7011,Conferencesseminars fees etc,152.00,0.00,152.00
"Regeneration, Economy and Growth",Development and Housing,031623,Rough,Supplies and Services,352001,Conference Expenses,08-Mar-2021,000009434380829,AYCLIFFE BIZ,7011,Conferencesseminars fees etc,152.00,0.00,152.00
Children and Young Peoples Services,Head of Early Help Inclusion & Vulnerable Children.,088112,Seaham & Central Durham 0-19 Targeted Family Support,Supplies and Services,304403,Equipment and Materials,08-Mar-2021,000009434380885,AMZNMktplace,5999,Other consumables,600.38,0.00,600.38
"Regeneration, Economy and Growth",Development and Housing,031500,Housing Solutions - Core Team,Supplies and Services,352001,Conference Expenses,08-Mar-2021,000009434380945,HI NEWCASTLE WASHI,7011,Conferencesseminars fees etc,450.00,0.00,450.00
"Regeneration, Economy and Growth",Development and Housing,031500,Housing Solutions - Core Team,Supplies and Services,352001,Conference Expenses,08-Mar-2021,000009434380953,HI NEWCASTLE WASHI,7011,Conferencesseminars fees etc,450.00,0.00,450.00
"Regeneration, Economy and Growth",Development and Housing,031500,Housing Solutions - Core Team,Supplies and Services,352001,Conference Expenses,08-Mar-2021,000009434380957,HI NEWCASTLE WASHI,7011,Conferencesseminars fees etc,450.00,0.00,450.00
"Regeneration, Economy and Growth",Development and Housing,031500,Housing Solutions - Core Team,Supplies and Services,352001,Conference Expenses,08-Mar-2021,000009434380961,HI NEWCASTLE WASHI,7011,Conferencesseminars fees etc,450.00,0.00,450.00
"Regeneration, Economy and Growth",Development and Housing,031500,Housing Solutions - Core Team,Supplies and Services,352001,Conference Expenses,08-Mar-2021,000009434380965,HI NEWCASTLE WASHI,7011,Conferencesseminars fees etc,323.60,0.00,323.60
"Regeneration, Economy and Growth",Development and Housing,031500,Housing Solutions - Core Team,Supplies and Services,352001,Conference Expenses,08-Mar-2021,000009434380969,HI NEWCASTLE WASHI,7011,Conferencesseminars fees etc,450.00,0.00,450.00
"Regeneration, Economy and Growth",Development and Housing,031500,Housing Solutions - Core Team,Supplies and Services,352001,Conference Expenses,08-Mar-2021,000009434380973,HI NEWCASTLE WASHI,7011,Conferencesseminars fees etc,450.00,0.00,450.00
"Regeneration, Economy and Growth",Development and Housing,031500,Housing Solutions - Core Team,Supplies and Services,352001,Conference Expenses,08-Mar-2021,000009434380979,HI NEWCASTLE WASHI,7011,Conferencesseminars fees etc,450.00,0.00,450.00
"Regeneration, Economy and Growth",Development and Housing,031500,Housing Solutions - Core Team,Supplies and Services,352001,Conference Expenses,08-Mar-2021,000009434380985,HI NEWCASTLE WASHI,7011,Conferencesseminars fees etc,450.00,0.00,450.00
"Regeneration, Economy and Growth",Development and Housing,031500,Housing Solutions - Core Team,Supplies and Services,352001,Conference Expenses,08-Mar-2021,000009434380993,HI NEWCASTLE WASHI,7011,Conferencesseminars fees etc,450.00,0.00,450.00
"Regeneration, Economy and Growth",Development and Housing,031500,Housing Solutions - Core Team,Supplies and Services,352001,Conference Expenses,08-Mar-2021,000009434380997,HI NEWCASTLE WASHI,7011,Conferencesseminars fees etc,73.10,0.00,73.10
Adult and Health Services,Head of Adults,055643,Hawthorn House LD Respite Unit,Supplies and Services,324117,Provisions E324,08-Mar-2021,000009434381199,SAINSBURYS 0776,5411,Catering costs - provisions,5.90,0.00,5.90
Children and Young Peoples Services,Head of Childrens Social Care,085333,Coxhoe Satelite Home,Supplies and Services,324117,Provisions E324,08-Mar-2021,000009434381229,TESCO STORES 2371,5411,Catering costs - provisions,19.99,0.00,19.99
Children and Young Peoples Services,Head of Childrens Social Care,085333,Coxhoe Satelite Home,Supplies and Services,324117,Provisions E324,08-Mar-2021,000009434381237,TESCO STORES 2371,5411,Catering costs - provisions,134.02,0.00,134.02
Children and Young Peoples Services,Head of Childrens Social Care,085342,16 Hickstead Rise (previously 9 Cedar Ave),Supplies and Services,332047,Printing Stationery and Gen Off Exps,08-Mar-2021,000009434381289,WWW.RYMAN.CO.UK,5943,Stationery,27.93,0.00,27.93
Children and Young Peoples Services,Head of Childrens Social Care,085342,16 Hickstead Rise (previously 9 Cedar Ave),Supplies and Services,308011,Furniture,08-Mar-2021,000009434381299,Oakworld.co.uk SofaIta,5712,Furniture repair and replacement,129.00,0.00,129.00
Children and Young Peoples Services,Head of Childrens Social Care,085357,LAC Bespoke Placements,Supplies and Services,304403,Equipment and Materials,08-Mar-2021,000009434381339,AMZNMktplace,5999,Other consumables,12.46,0.00,12.46
Children and Young Peoples Services,Head of Childrens Social Care,085357,LAC Bespoke Placements,Supplies and Services,304403,Equipment and Materials,08-Mar-2021,000009434381349,AMZNMktplace,5999,Other consumables,9.99,0.00,9.99
Children and Young Peoples Services,Head of Childrens Social Care,085357,LAC Bespoke Placements,Supplies and Services,304403,Equipment and Materials,08-Mar-2021,000009434381355,AMZNMktplace,5999,Other consumables,13.40,0.00,13.40
Children and Young Peoples Services,Head of Early Help Inclusion & Vulnerable Children.,071489,Winter Family Fund,Supplies and Services,364301,Grants to Voluntary Organisations,08-Mar-2021,000009434381427,Amazon.co.uk MM68J76K4,5969,Hardship,23.09,3.85,19.24
Neighbourhoods and Climate Change,Environmental Services,010367,C&G - South Grounds Maintenance,Supplies and Services,304221,Equipment and Materials,08-Mar-2021,000009434381447,HOMEBASE LTD 822,5200,Direct materials,12.00,0.00,12.00
Adult and Health Services,Head of Adults,055643,Hawthorn House LD Respite Unit,Supplies and Services,324117,Provisions E324,08-Mar-2021,000009434381469,JR HOLLAND FOODSERVICE,5499,Catering costs - provisions,15.98,0.00,15.98
Children and Young Peoples Services,Head of Education and Skills,070102,Engagement with Young People,Supplies and Services,324117,Provisions E324,08-Mar-2021,000009434381489,WM MORRISONS STORE,5411,Catering costs - provisions,225.00,0.00,225.00
Children and Young Peoples Services,Head of Childrens Social Care,085342,16 Hickstead Rise (previously 9 Cedar Ave),Supplies and Services,304403,Equipment and Materials,08-Mar-2021,000009434381543,AMZNMktplace,5999,Other consumables,39.99,0.00,39.99
Children and Young Peoples Services,Head of Childrens Social Care,085342,16 Hickstead Rise (previously 9 Cedar Ave),Supplies and Services,324117,Provisions E324,08-Mar-2021,000009434381551,TESCO STORES 2916,5411,Catering costs - provisions,22.08,0.00,22.08
Children and Young Peoples Services,Head of Early Help Inclusion & Vulnerable Children.,088115,North Area - Teenage Parent Programme,Supplies and Services,384302,Miscellaneous Expenses,08-Mar-2021,000009434381629,AMZNMktplace,5999,Activity expenses,118.08,19.68,98.40
Children and Young Peoples Services,Head of Early Help Inclusion & Vulnerable Children.,088115,North Area - Teenage Parent Programme,Supplies and Services,384302,Miscellaneous Expenses,08-Mar-2021,000009434381629 - 1,AMZNMktplace,5999,Activity expenses,0.32,,0.32
Children and Young Peoples Services,Head of Early Help Inclusion & Vulnerable Children.,088115,North Area - Teenage Parent Programme,Supplies and Services,384302,Miscellaneous Expenses,08-Mar-2021,000009434381637,AMZNMktplace,5999,Activity expenses,19.44,3.24,16.20
Children and Young Peoples Services,Head of Early Help Inclusion & Vulnerable Children.,088115,North Area - Teenage Parent Programme,Supplies and Services,384302,Miscellaneous Expenses,08-Mar-2021,000009434381637 - 1,AMZNMktplace,5999,Activity expenses,0.06,,0.06
Children and Young Peoples Services,Head of Early Help Inclusion & Vulnerable Children.,088115,North Area - Teenage Parent Programme,Supplies and Services,384302,Miscellaneous Expenses,08-Mar-2021,000009434381645,AMZNMktplace,5999,Activity expenses,39.96,6.68,33.28
Children and Young Peoples Services,Head of Early Help Inclusion & Vulnerable Children.,088115,North Area - Teenage Parent Programme,Supplies and Services,384302,Miscellaneous Expenses,08-Mar-2021,000009434381659,Amazon.co.uk MM6UG9DH4,5969,Activity expenses,115.92,19.32,96.60
Children and Young Peoples Services,Head of Early Help Inclusion & Vulnerable Children.,088115,North Area - Teenage Parent Programme,Supplies and Services,384302,Miscellaneous Expenses,08-Mar-2021,000009434381659 - 1,Amazon.co.uk MM6UG9DH4,5969,Activity expenses,0.08,,0.08
Children and Young Peoples Services,Head of Early Help Inclusion & Vulnerable Children.,088115,North Area - Teenage Parent Programme,Supplies and Services,384302,Miscellaneous Expenses,08-Mar-2021,000009434381673,Amazon.co.uk MM8FG0DY4,5969,Activity expenses,19.04,3.20,15.84
"Regeneration, Economy and Growth",Development and Housing,031500,Housing Solutions - Core Team,Supplies and Services,352001,Conference Expenses,08-Mar-2021,000009434381943,THE HONEST LAWYER,7011,Conferencesseminars fees etc,319.60,0.00,319.60
Neighbourhoods and Climate Change,Technical Services CM0300,010010,Gilesgate DSHI 08/09,Supplies and Services,372009,Subscriptions E372,08-Mar-2021,000009434382029,CREATIVE_FED,8699,Subscriptions 372009,25.00,0.00,25.00
Children and Young Peoples Services,Head of Early Help Inclusion & Vulnerable Children.,088117,East Area - Teenage Parent Programme,Supplies and Services,384302,Miscellaneous Expenses,08-Mar-2021,000009434382329,AMZNMktplace,5999,Activity expenses,39.96,6.68,33.28
Resources BK0010,Digital and Customer Services,065487,ICT Telephony Recharges,Supplies and Services,344033,Telephones,08-Mar-2021,000009436879859,AMZNMKTPLACE AMAZON.CO,5999,Telephones general-all costs,31.92,5.32,26.60
"Regeneration, Economy and Growth",Development and Housing,031500,Housing Solutions - Core Team,Employees,040149,Recruitment Instruction and Training,08-Mar-2021,000009436880677,PREMIER INN,3811,Training-all costs,140.00,0.00,140.00
Children and Young Peoples Services,Head of Early Help Inclusion & Vulnerable Children.,088115,North Area - Teenage Parent Programme,Supplies and Services,384302,Miscellaneous Expenses,08-Mar-2021,000009436881339,AMZNMKTPLACE AMAZON.CO,5999,Activity expenses,63.72,10.62,53.10
Children and Young Peoples Services,Head of Early Help Inclusion & Vulnerable Children.,088115,North Area - Teenage Parent Programme,Supplies and Services,384302,Miscellaneous Expenses,08-Mar-2021,000009436881339 - 1,AMZNMKTPLACE AMAZON.CO,5999,Activity expenses,0.36,,0.36
Children and Young Peoples Services,Head of Early Help Inclusion & Vulnerable Children.,088116,South Area - Teenage Parent Programme,Supplies and Services,304259,Equipment and Materials,08-Mar-2021,000009440014481,WILKO.COM,5399,Equipment-purchase and rental,-4.00,0.00,-4.00
Children and Young Peoples Services,Head of Childrens Social Care,085351,Framwellgate Moor CU,Supplies and Services,304259,Equipment and Materials,09-Mar-2021,000007470272552,SPORTSDIRECT.COM,5941,Equipment-purchase and rental,41.49,0.00,41.49
Children and Young Peoples Services,Head of Early Help Inclusion & Vulnerable Children.,088116,South Area - Teenage Parent Programme,Supplies and Services,304259,Equipment and Materials,09-Mar-2021,000009434380429,AMZNMktplace,5999,Equipment-purchase and rental,11.98,2.00,9.98
Resources BK0010,Digital and Customer Services,065487,ICT Telephony Recharges,Supplies and Services,372009,Subscriptions E372,09-Mar-2021,000009434380651,WEB NETWORKSOLUTIONS,5968,Subscriptions 372009,2.06,0.00,2.06
Children and Young Peoples Services,Head of Early Help Inclusion & Vulnerable Children.,088115,North Area - Teenage Parent Programme,Supplies and Services,384302,Miscellaneous Expenses,09-Mar-2021,000009434381649,Amazon.co.uk MM6DA4DZ4,5969,Activity expenses,64.00,10.72,53.28
Children and Young Peoples Services,Head of Early Help Inclusion & Vulnerable Children.,088115,North Area - Teenage Parent Programme,Supplies and Services,384302,Miscellaneous Expenses,09-Mar-2021,000009434381667,Amazon.co.uk MM6YL9D14,5969,Activity expenses,34.56,5.76,28.80
Children and Young Peoples Services,Head of Early Help Inclusion & Vulnerable Children.,088115,North Area - Teenage Parent Programme,Supplies and Services,384302,Miscellaneous Expenses,09-Mar-2021,000009434381667 - 1,Amazon.co.uk MM6YL9D14,5969,Activity expenses,0.18,,0.18
"Regeneration, Economy and Growth",Business Durham CL0850,030689,Inward Investment and Aftercare,Supplies and Services,304999,Equipment and Materials,09-Mar-2021,000009436879777,MAILCHIMP MONTHLY,5968,Misc equipment tools and materials,76.52,0.00,76.52
"Regeneration, Economy and Growth",Business Durham CL0850,030689,Inward Investment and Aftercare,Supplies and Services,336005,Advertising E336,09-Mar-2021,000009436879785,LINKEDIN-640 5545444,7311,Advertising other than for staff,69.23,0.00,69.23
Children and Young Peoples Services,Head of Early Help Inclusion & Vulnerable Children.,071489,Winter Family Fund,Supplies and Services,364301,Grants to Voluntary Organisations,09-Mar-2021,000009436879813,AMZNMKTPLACE AMAZON.CO,5999,Hardship,48.99,8.17,40.82
Children and Young Peoples Services,Head of Education and Skills,071801,Selby Cottage Childcare Centre,Supplies and Services,324117,Provisions E324,09-Mar-2021,000009436879831,WILKO RETAIL LIMITED,5399,Catering costs - provisions,22.50,0.00,22.50
Children and Young Peoples Services,Head of Education and Skills,071801,Selby Cottage Childcare Centre,Supplies and Services,324117,Provisions E324,09-Mar-2021,000009436879839,ASDA SUPERSTORE,5411,Catering costs - provisions,7.34,0.00,7.34
"Regeneration, Economy and Growth",Development and Housing,031617,Project Beta Sustainability Fund,Supplies and Services,324117,Provisions E324,09-Mar-2021,000009436879851,TESCO STORES 2371,5411,Catering costs - provisions,12.94,0.00,12.94
Children and Young Peoples Services,Head of Childrens Social Care,085561,Social Work Academy,Supplies and Services,384999,Miscellaneous Expenses,09-Mar-2021,000009436879869,Amazon.co.uk MM3M69S54,5969,Other expenses,59.94,0.00,59.94
Children and Young Peoples Services,Head of Childrens Social Care,085561,Social Work Academy,Supplies and Services,384999,Miscellaneous Expenses,09-Mar-2021,000009436879873,Amazon.co.uk MM7XZ8S74,5969,Other expenses,99.90,0.00,99.90
Children and Young Peoples Services,Head of Childrens Social Care,085561,Social Work Academy,Supplies and Services,384999,Miscellaneous Expenses,09-Mar-2021,000009436879883,Amazon.co.uk MM1OU72G4,5969,Other expenses,66.00,0.00,66.00
Children and Young Peoples Services,Head of Education and Skills,075021,Youth Employment Initiative,Supplies and Services,364301,Grants to Voluntary Organisations,09-Mar-2021,000009436879993,TESCO ONLINE,5999,Hardship,19.99,0.00,19.99
"Regeneration, Economy and Growth",Culture Sport and Tourism,011290,Community Testing,Supplies and Services,304259,Equipment and Materials,09-Mar-2021,000009436879997,WWW.RYMAN.CO.UK,5943,Equipment-purchase and rental,29.95,0.00,29.95
Children and Young Peoples Services,Head of Childrens Social Care,085332,Middlestone Moor CU,Supplies and Services,304999,Equipment and Materials,09-Mar-2021,000009436880027,HOME BARGAINS SPENNYMO,5251,Misc equipment tools and materials,60.96,0.00,60.96
Children and Young Peoples Services,Head of Childrens Social Care,085332,Middlestone Moor CU,Supplies and Services,324117,Provisions E324,09-Mar-2021,000009436880031,TESCO STORES 2371,5411,Catering costs - provisions,65.64,0.00,65.64
Children and Young Peoples Services,Head of Childrens Social Care,085332,Middlestone Moor CU,Supplies and Services,324117,Provisions E324,09-Mar-2021,000009436880035,TESCO STORES 2371,5411,Catering costs - provisions,-1.50,0.00,-1.50
Children and Young Peoples Services,Head of Early Help Inclusion & Vulnerable Children.,088116,South Area - Teenage Parent Programme,Supplies and Services,304259,Equipment and Materials,09-Mar-2021,000009436880185,AMZNMktplace,5999,Equipment-purchase and rental,136.41,22.77,113.64
Children and Young Peoples Services,Head of Early Help Inclusion & Vulnerable Children.,088116,South Area - Teenage Parent Programme,Supplies and Services,304259,Equipment and Materials,09-Mar-2021,000009436880189,AMZNMKTPLACE AMAZON.CO,5999,Equipment-purchase and rental,41.04,6.84,34.20
Children and Young Peoples Services,Head of Early Help Inclusion & Vulnerable Children.,088116,South Area - Teenage Parent Programme,Supplies and Services,304259,Equipment and Materials,09-Mar-2021,000009436880197,AMZNMktplace,5999,Equipment-purchase and rental,31.86,5.31,26.55
Children and Young Peoples Services,Head of Early Help Inclusion & Vulnerable Children.,088116,South Area - Teenage Parent Programme,Supplies and Services,304259,Equipment and Materials,09-Mar-2021,000009436880197 - 1,AMZNMktplace,5999,Equipment-purchase and rental,0.18,,0.18
Children and Young Peoples Services,Head of Early Help Inclusion & Vulnerable Children.,088116,South Area - Teenage Parent Programme,Supplies and Services,304259,Equipment and Materials,09-Mar-2021,000009436880201,AMZNMktplace,5999,Equipment-purchase and rental,116.91,19.53,97.38
Children and Young Peoples Services,Head of Early Help Inclusion & Vulnerable Children.,088116,South Area - Teenage Parent Programme,Supplies and Services,304259,Equipment and Materials,09-Mar-2021,000009436880211,AMZNMKTPLACE AMAZON.CO,5999,Equipment-purchase and rental,125.10,20.88,104.22
Children and Young Peoples Services,Head of Early Help Inclusion & Vulnerable Children.,071489,Winter Family Fund,Supplies and Services,384700,Miscellaneous Expenses,09-Mar-2021,000009436880217,ASDA GEORGE COM LEEDS,5411,Miscellaneous grants,34.95,5.83,29.12
Neighbourhoods and Climate Change,Environmental Services,010367,C&G - South Grounds Maintenance,Supplies and Services,304221,Equipment and Materials,09-Mar-2021,000009436880253,BTL TIMBER AND HARDWAR,5099,Direct materials,261.23,0.00,261.23
Children and Young Peoples Services,Head of Early Help Inclusion & Vulnerable Children.,085952,Secure Education,Supplies and Services,384999,Miscellaneous Expenses,09-Mar-2021,000009436880291,Amazon.co.uk MM2262SA4,5969,Other expenses,61.65,10.30,51.35
Children and Young Peoples Services,Head of Early Help Inclusion & Vulnerable Children.,073998,TTF-Co-ordinator Grant,Transfer Payments,525033,Other,09-Mar-2021,000009436880405,J DODDS CARPETS LTD,5713,Grants to individuals,250.00,0.00,250.00
"Regeneration, Economy and Growth",Development and Housing,031576,B& B - Temp Accom,Supplies and Services,352001,Conference Expenses,09-Mar-2021,000009436880439,THE HONEST LAWYER,7011,Conferencesseminars fees etc,68.46,11.41,57.05
"Regeneration, Economy and Growth",Development and Housing,031576,B& B - Temp Accom,Supplies and Services,352001,Conference Expenses,09-Mar-2021,000009436880439 - 1,THE HONEST LAWYER,7011,Conferencesseminars fees etc,171.24,,171.24
Resources BK0010,Digital and Customer Services,070204,School Services - Systems,Supplies and Services,372009,Subscriptions E372,09-Mar-2021,000009436880485,NOMINET UK,7392,Subscriptions 372009,37.44,6.24,31.20
Children and Young Peoples Services,Head of Education and Skills,071732,Dean Bank Childcare,Supplies and Services,304259,Equipment and Materials,09-Mar-2021,000009436880509,Amazon Music MM7HN7D24,5735,Equipment-purchase and rental,14.99,0.00,14.99
Children and Young Peoples Services,Head of Education and Skills,071732,Dean Bank Childcare,Supplies and Services,324117,Provisions E324,09-Mar-2021,000009436880517,SAINSBURYS SACAT (2303,5411,Catering costs - provisions,38.50,0.00,38.50
"Regeneration, Economy and Growth",Culture Sport and Tourism,054967,Theatre - Technical Staffing,Supplies and Services,304221,Equipment and Materials,09-Mar-2021,000009436880527,SCREWFIX DIRECT,5211,Direct materials,9.14,0.00,9.14
Children and Young Peoples Services,Head of Childrens Social Care,085334,West Rainton Satelite Home,Supplies and Services,304403,Equipment and Materials,09-Mar-2021,000009436880555,AMZNMKTPLACE AMAZON.CO,5999,Other consumables,15.98,0.00,15.98
Children and Young Peoples Services,Head of Childrens Social Care,085334,West Rainton Satelite Home,Supplies and Services,384999,Miscellaneous Expenses,09-Mar-2021,000009436880563,Amazon.co.uk MM3V52SM4,5969,Other expenses,19.99,0.00,19.99
Children and Young Peoples Services,Head of Childrens Social Care,085334,West Rainton Satelite Home,Supplies and Services,304403,Equipment and Materials,09-Mar-2021,000009436880565,AMZNMKTPLACE AMAZON.CO,5999,Other consumables,119.99,0.00,119.99
Children and Young Peoples Services,Head of Childrens Social Care,085334,West Rainton Satelite Home,Supplies and Services,304403,Equipment and Materials,09-Mar-2021,000009436880573,AMZNMktplace,5999,Other consumables,5.99,0.00,5.99
Neighbourhoods and Climate Change,Environmental Services,026591,C&G - Hardwick Park,Supplies and Services,304259,Equipment and Materials,09-Mar-2021,000009436880579,AMZNMktplace,5999,Equipment-purchase and rental,11.98,2.00,9.98
Neighbourhoods and Climate Change,Environmental Services,010314,Nei.Prot - Bereavement Services,Supplies and Services,304259,Equipment and Materials,09-Mar-2021,000009436880589,Durham County CNCL,9399,Equipment-purchase and rental,11.00,0.00,11.00
Children and Young Peoples Services,Head of Childrens Social Care,085332,Middlestone Moor CU,Supplies and Services,304999,Equipment and Materials,09-Mar-2021,000009436880613,Amazon Prime MM2L32SS4,5968,Misc equipment tools and materials,7.99,0.00,7.99
"Regeneration, Economy and Growth",Development and Housing,030771,Durham Advance Flexible Fund,Supplies and Services,340001,Postages E340,09-Mar-2021,000009436880715,POST OFFICE COUNTER,9402,Postages,2.25,0.00,2.25
Children and Young Peoples Services,Head of Early Help Inclusion & Vulnerable Children.,085956,Lumley,Transfer Payments,515002,Social Services Clients,09-Mar-2021,000009436880745,Amazon.co.uk MM2JM8S34,5969,Pocket money,14.44,2.41,12.03
Children and Young Peoples Services,Head of Early Help Inclusion & Vulnerable Children.,085956,Lumley,Transfer Payments,515002,Social Services Clients,09-Mar-2021,000009436880751,AMZNMktplace,5999,Pocket money,4.90,0.82,4.08
Children and Young Peoples Services,Head of Early Help Inclusion & Vulnerable Children.,085954,Walworth,Transfer Payments,515140,Social Services Clients,09-Mar-2021,000009436880755,JD SPORTS INTERNET,5941,Clothing allowances,85.00,0.00,85.00
Children and Young Peoples Services,Head of Early Help Inclusion & Vulnerable Children.,085954,Walworth,Transfer Payments,515140,Social Services Clients,09-Mar-2021,000009436880759,JD SPORTS INTERNET,5941,Clothing allowances,83.00,0.00,83.00
Children and Young Peoples Services,Head of Early Help Inclusion & Vulnerable Children.,088117,East Area - Teenage Parent Programme,Supplies and Services,304403,Equipment and Materials,09-Mar-2021,000009436880779,SP ALDI GROCERY VOUC,5734,Other consumables,50.00,0.00,50.00
Children and Young Peoples Services,Head of Childrens Social Care,085632,Families First Seaham,Supplies and Services,304259,Equipment and Materials,09-Mar-2021,000009436880783,SUNDERLAND CC,9399,Equipment-purchase and rental,11.00,0.00,11.00
Children and Young Peoples Services,Head of Early Help Inclusion & Vulnerable Children.,071489,Winter Family Fund,Supplies and Services,324117,Provisions E324,09-Mar-2021,000009436880789,WILKO.COM,5399,Catering costs - provisions,8.00,0.00,8.00
Children and Young Peoples Services,Head of Childrens Social Care,085331,New Lea Childrens Home,Supplies and Services,324117,Provisions E324,09-Mar-2021,000009436880815,TESCO STORES 2371,5411,Catering costs - provisions,43.49,0.00,43.49
Children and Young Peoples Services,Head of Early Help Inclusion & Vulnerable Children.,071489,Winter Family Fund,Supplies and Services,364301,Grants to Voluntary Organisations,09-Mar-2021,000009436880909,ASDA GEORGE COM LEEDS,5411,Hardship,82.00,0.00,82.00
Children and Young Peoples Services,Head of Early Help Inclusion & Vulnerable Children.,071489,Winter Family Fund,Supplies and Services,364301,Grants to Voluntary Organisations,09-Mar-2021,000009436880913,ASDA GEORGE COM LEEDS,5411,Hardship,163.00,0.00,163.00
Children and Young Peoples Services,Head of Early Help Inclusion & Vulnerable Children.,071489,Winter Family Fund,Supplies and Services,364301,Grants to Voluntary Organisations,09-Mar-2021,000009436880917,ARGOS LTD,5310,Hardship,63.94,0.00,63.94
Children and Young Peoples Services,Head of Early Help Inclusion & Vulnerable Children.,088109,Spennymoor & Shildon 0-19 Community Family Hub,Supplies and Services,364301,Grants to Voluntary Organisations,09-Mar-2021,000009436880921,ARGOS LTD,5310,Hardship,20.00,0.00,20.00
Children and Young Peoples Services,Head of Early Help Inclusion & Vulnerable Children.,088109,Spennymoor & Shildon 0-19 Community Family Hub,Supplies and Services,364301,Grants to Voluntary Organisations,09-Mar-2021,000009436880925,ARGOS LTD,5310,Hardship,120.99,0.00,120.99
Children and Young Peoples Services,Head of Childrens Social Care,085341,High Etherley Satelite Home,Supplies and Services,304999,Equipment and Materials,09-Mar-2021,000009436880943,HOME BARGAINS SPENNYMO,5251,Misc equipment tools and materials,9.55,0.00,9.55
Adult and Health Services,Head of Adults,055643,Hawthorn House LD Respite Unit,Supplies and Services,304403,Equipment and Materials,09-Mar-2021,000009436881027,AMZNMktplace,5999,Other consumables,9.99,1.67,8.32
Children and Young Peoples Services,Head of Childrens Social Care,085342,16 Hickstead Rise (previously 9 Cedar Ave),Supplies and Services,324117,Provisions E324,09-Mar-2021,000009436881055,WILKO RETAIL LIMITED,5399,Catering costs - provisions,7.50,0.00,7.50
Children and Young Peoples Services,Head of Childrens Social Care,085342,16 Hickstead Rise (previously 9 Cedar Ave),Supplies and Services,328041,Clothing uniforms and laundry E328,09-Mar-2021,000009436881065,W BOYES & CO LTD NEWTO,5310,Clothing uniforms and laundry,8.00,0.00,8.00
Children and Young Peoples Services,Head of Childrens Social Care,085342,16 Hickstead Rise (previously 9 Cedar Ave),Supplies and Services,304403,Equipment and Materials,09-Mar-2021,000009436881073,AMZNMktplace,5999,Other consumables,188.21,0.00,188.21
Children and Young Peoples Services,Head of Childrens Social Care,085342,16 Hickstead Rise (previously 9 Cedar Ave),Supplies and Services,308011,Furniture,09-Mar-2021,000009436881079,Oakworld.co.uk SofaIta,5712,Furniture repair and replacement,439.00,0.00,439.00
Children and Young Peoples Services,Head of Early Help Inclusion & Vulnerable Children.,071445,Chester le Street One Point Hub,Supplies and Services,304403,Equipment and Materials,09-Mar-2021,000009436881197,AMZNMKTPLACE AMAZON.CO,5999,Other consumables,26.97,4.50,22.47
Children and Young Peoples Services,Head of Early Help Inclusion & Vulnerable Children.,071445,Chester le Street One Point Hub,Supplies and Services,304403,Equipment and Materials,09-Mar-2021,000009436881201,AMZNMKTPLACE AMAZON.CO,5999,Other consumables,6.99,1.17,5.82
Children and Young Peoples Services,Head of Early Help Inclusion & Vulnerable Children.,071445,Chester le Street One Point Hub,Supplies and Services,304403,Equipment and Materials,09-Mar-2021,000009436881209,AMZNMKTPLACE AMAZON.CO,5999,Other consumables,38.70,6.45,32.25
Resources BK0010,Digital and Customer Services,065335,School Services - Implementations,Supplies and Services,304639,Equipment and Materials,09-Mar-2021,000009436881217,AMZNMktplace,5999,Technicians-supplies,5.78,0.00,5.78
Resources BK0010,Digital and Customer Services,065335,School Services - Implementations,Supplies and Services,304639,Equipment and Materials,09-Mar-2021,000009436881221,justprojectorlamps.com,5943,Technicians-supplies,224.08,0.00,224.08
Children and Young Peoples Services,Head of Childrens Social Care,085342,16 Hickstead Rise (previously 9 Cedar Ave),Supplies and Services,304403,Equipment and Materials,09-Mar-2021,000009436881231,AMZNMKTPLACE AMAZON.CO,5999,Other consumables,1.98,0.00,1.98
Children and Young Peoples Services,Head of Childrens Social Care,085342,16 Hickstead Rise (previously 9 Cedar Ave),Supplies and Services,324117,Provisions E324,09-Mar-2021,000009436881239,TESCO STORES 2916,5411,Catering costs - provisions,8.68,0.00,8.68
Children and Young Peoples Services,Head of Early Help Inclusion & Vulnerable Children.,085957,Secure Management,Supplies and Services,384999,Miscellaneous Expenses,09-Mar-2021,000009436881261,Amazon MP3,5735,Other expenses,13.14,2.19,10.95
Children and Young Peoples Services,Head of Early Help Inclusion & Vulnerable Children.,085957,Secure Management,Supplies and Services,384999,Miscellaneous Expenses,09-Mar-2021,000009436881261 - 1,Amazon MP3,5735,Other expenses,0.28,,0.28
Children and Young Peoples Services,Head of Early Help Inclusion & Vulnerable Children.,085957,Secure Management,Supplies and Services,384999,Miscellaneous Expenses,09-Mar-2021,000009436881267,Amazon MP3,5735,Other expenses,1.96,0.33,1.63
Resources BK0010,COVID19 - Resources,091007,COVID19 - Resources,Supplies and Services,384999,Miscellaneous Expenses,09-Mar-2021,000009436881281,Amazon.co.uk MM1F06S14,5969,Other expenses,15.47,2.58,12.89
Resources BK0010,COVID19 - Resources,091007,COVID19 - Resources,Supplies and Services,384999,Miscellaneous Expenses,09-Mar-2021,000009436881287,Amazon.co.uk MM8FG6S14,5969,Other expenses,15.47,2.58,12.89
Adult and Health Services,Head of Adults,052229,Countywide AMHP Team,Supplies and Services,338048,Services,09-Mar-2021,000009436881291,HMCOURTS-SERVICE.G,9222,Court costs 338048,75.00,0.00,75.00
"Regeneration, Economy and Growth",Development and Housing,031500,Housing Solutions - Core Team,Supplies and Services,304259,Equipment and Materials,09-Mar-2021,000009436881297,WWW.EASTDURHAMHOMES.CO,9399,Equipment-purchase and rental,119.07,0.00,119.07
Children and Young Peoples Services,Head of Early Help Inclusion & Vulnerable Children.,088115,North Area - Teenage Parent Programme,Supplies and Services,384302,Miscellaneous Expenses,09-Mar-2021,000009436881321,AMZNMktplace,5999,Activity expenses,30.71,5.12,25.59
Children and Young Peoples Services,Head of Early Help Inclusion & Vulnerable Children.,088115,North Area - Teenage Parent Programme,Supplies and Services,384302,Miscellaneous Expenses,09-Mar-2021,000009436881331,AMZNMktplace,5999,Activity expenses,28.08,4.68,23.40
Children and Young Peoples Services,Head of Early Help Inclusion & Vulnerable Children.,088115,North Area - Teenage Parent Programme,Supplies and Services,384302,Miscellaneous Expenses,09-Mar-2021,000009436881345,Amazon.co.uk MM3N72S64,5969,Activity expenses,115.92,19.32,96.60
Children and Young Peoples Services,Head of Early Help Inclusion & Vulnerable Children.,088115,North Area - Teenage Parent Programme,Supplies and Services,384302,Miscellaneous Expenses,09-Mar-2021,000009436881345 - 1,Amazon.co.uk MM3N72S64,5969,Activity expenses,0.08,,0.08
Children and Young Peoples Services,Head of Early Help Inclusion & Vulnerable Children.,088115,North Area - Teenage Parent Programme,Supplies and Services,384302,Miscellaneous Expenses,09-Mar-2021,000009436881347,AMZNMktplace,5999,Activity expenses,70.80,11.80,59.00
Children and Young Peoples Services,Head of Early Help Inclusion & Vulnerable Children.,088115,North Area - Teenage Parent Programme,Supplies and Services,384302,Miscellaneous Expenses,09-Mar-2021,000009436881347 - 1,AMZNMktplace,5999,Activity expenses,0.20,,0.20
Children and Young Peoples Services,Head of Early Help Inclusion & Vulnerable Children.,071489,Winter Family Fund,Supplies and Services,364301,Grants to Voluntary Organisations,09-Mar-2021,000009436881351,WILKO.COM,5399,Hardship,55.00,9.17,45.83
Children and Young Peoples Services,Head of Early Help Inclusion & Vulnerable Children.,088115,North Area - Teenage Parent Programme,Supplies and Services,384302,Miscellaneous Expenses,09-Mar-2021,000009436881355,AMZNMKTPLACE AMAZON.CO,5999,Activity expenses,129.90,21.70,108.20
Children and Young Peoples Services,Head of Early Help Inclusion & Vulnerable Children.,088115,North Area - Teenage Parent Programme,Supplies and Services,384302,Miscellaneous Expenses,09-Mar-2021,000009436881361,Amazon.co.uk MM2A602U4,5969,Activity expenses,115.92,19.32,96.60
Children and Young Peoples Services,Head of Early Help Inclusion & Vulnerable Children.,088115,North Area - Teenage Parent Programme,Supplies and Services,384302,Miscellaneous Expenses,09-Mar-2021,000009436881361 - 1,Amazon.co.uk MM2A602U4,5969,Activity expenses,0.08,,0.08
"Regeneration, Economy and Growth",Development and Housing,031576,B& B - Temp Accom,Supplies and Services,364320,Grants to Voluntary Organisations,09-Mar-2021,000009436881383,HI NEWCASTLE WASHI,7011,Accommodation assistance,80.00,0.00,80.00
"Regeneration, Economy and Growth",Business Durham CL0850,030671,Business Space 030671,Supplies and Services,384999,Miscellaneous Expenses,09-Mar-2021,000009436881389,Amazon.co.uk MM13F0SP4,5969,Other expenses,11.88,0.00,11.88
Children and Young Peoples Services,Head of Childrens Social Care,085351,Framwellgate Moor CU,Supplies and Services,304259,Equipment and Materials,09-Mar-2021,000009436881417,OCULUS JDD432XQC2,5732,Equipment-purchase and rental,22.99,0.00,22.99
Children and Young Peoples Services,Head of Childrens Social Care,085351,Framwellgate Moor CU,Supplies and Services,304259,Equipment and Materials,09-Mar-2021,000009436881423,OCULUS LZ67DZSQC2,5732,Equipment-purchase and rental,22.99,0.00,22.99
Children and Young Peoples Services,Head of Childrens Social Care,085351,Framwellgate Moor CU,Supplies and Services,304259,Equipment and Materials,09-Mar-2021,000009436881427,OCULUS SRR332XQC2,5732,Equipment-purchase and rental,22.99,0.00,22.99
Children and Young Peoples Services,Head of Childrens Social Care,085351,Framwellgate Moor CU,Supplies and Services,304259,Equipment and Materials,09-Mar-2021,000009436881435,OCULUS 4ZHLRR7RC2,5732,Equipment-purchase and rental,14.99,0.00,14.99
Children and Young Peoples Services,Head of Education and Skills,071802,Louisa Cent Nursery,Supplies and Services,324117,Provisions E324,09-Mar-2021,000009436881447,ALDI 11 774,5411,Catering costs - provisions,15.19,0.00,15.19
Children and Young Peoples Services,Head of Childrens Social Care,085332,Middlestone Moor CU,Supplies and Services,328041,Clothing uniforms and laundry E328,09-Mar-2021,000009436881521,www.asos.com,5651,Clothing uniforms and laundry,40.90,0.00,40.90
Children and Young Peoples Services,Head of Childrens Social Care,085332,Middlestone Moor CU,Supplies and Services,384999,Miscellaneous Expenses,09-Mar-2021,000009436881527,JEWEL HUT INTERNATIONA,5944,Other expenses,21.95,0.00,21.95
Resources BK0010,Legal & Democratic Services,067910,Democratic Representation 067910,Supplies and Services,304403,Equipment and Materials,09-Mar-2021,000009436881587,AMZNMktplace,5999,Other consumables,174.00,29.00,145.00
Resources BK0010,Legal & Democratic Services,067910,Democratic Representation 067910,Supplies and Services,304403,Equipment and Materials,09-Mar-2021,000009436881587 - 1,AMZNMktplace,5999,Other consumables,0.50,,0.50
Adult and Health Services,Head of Adults,055310,Positive Journeys (Tudhoe),Supplies and Services,324117,Provisions E324,09-Mar-2021,000009436881593,ASDA SUPERSTORE 4987,5411,Catering costs - provisions,1.87,0.00,1.87
Neighbourhoods and Climate Change,Environmental Services,031071,E&D - Sustainability and Climate Change,Supplies and Services,304403,Equipment and Materials,09-Mar-2021,000009436881637,Picrights Europe GmbH,5999,Other consumables,304.00,0.00,304.00
Children and Young Peoples Services,Head of Early Help Inclusion & Vulnerable Children.,088117,East Area - Teenage Parent Programme,Supplies and Services,384302,Miscellaneous Expenses,09-Mar-2021,000009436881785,AMZNMktplace,5999,Activity expenses,8.90,1.48,7.42
Children and Young Peoples Services,Head of Early Help Inclusion & Vulnerable Children.,088117,East Area - Teenage Parent Programme,Supplies and Services,384302,Miscellaneous Expenses,09-Mar-2021,000009436881793,AMZNMktplace,5999,Activity expenses,28.08,4.68,23.40
Children and Young Peoples Services,Head of Early Help Inclusion & Vulnerable Children.,088117,East Area - Teenage Parent Programme,Supplies and Services,384302,Miscellaneous Expenses,09-Mar-2021,000009436881795,AMZNMktplace,5999,Activity expenses,17.56,2.93,14.63
Children and Young Peoples Services,Head of Early Help Inclusion & Vulnerable Children.,088117,East Area - Teenage Parent Programme,Supplies and Services,384302,Miscellaneous Expenses,09-Mar-2021,000009436881801,AMZNMktplace,5999,Activity expenses,16.94,2.82,14.12
"Regeneration, Economy and Growth",Culture Sport and Tourism,011290,Community Testing,Supplies and Services,304259,Equipment and Materials,09-Mar-2021,000009440014299,WWW.RYMAN.CO.UK,5943,Equipment-purchase and rental,-29.95,0.00,-29.95
"Regeneration, Economy and Growth",Development and Housing,031576,B& B - Temp Accom,Supplies and Services,364320,Grants to Voluntary Organisations,09-Mar-2021,000009440014861,CROXDALE INN,5812,Accommodation assistance,240.00,0.00,240.00
Children and Young Peoples Services,Head of Childrens Social Care,085357,LAC Bespoke Placements,Supplies and Services,304403,Equipment and Materials,09-Mar-2021,000009440015061,AMZNMKTPLACE AMAZON.CO,5999,Other consumables,53.89,0.00,53.89
Children and Young Peoples Services,Head of Early Help Inclusion & Vulnerable Children.,071445,Chester le Street One Point Hub,Supplies and Services,304403,Equipment and Materials,09-Mar-2021,000009440015307,AMZNMKTPLACE AMAZON.CO,5999,Other consumables,14.99,2.50,12.49
Children and Young Peoples Services,Head of Early Help Inclusion & Vulnerable Children.,088115,North Area - Teenage Parent Programme,Supplies and Services,384302,Miscellaneous Expenses,09-Mar-2021,000009440015373,AMZNMKTPLACE AMAZON.CO,5999,Activity expenses,77.94,13.02,64.92
"Regeneration, Economy and Growth",Business Durham CL0850,030689,Inward Investment and Aftercare,Supplies and Services,304999,Equipment and Materials,10-Mar-2021,000009436879791,MAILCHIMP MONTHLY,5968,Misc equipment tools and materials,2.10,0.00,2.10
Children and Young Peoples Services,Head of Childrens Social Care,085351,Framwellgate Moor CU,Supplies and Services,372009,Subscriptions E372,10-Mar-2021,000009436881411,NETFLIX.COM,4899,Subscriptions 372009,13.99,0.00,13.99
Children and Young Peoples Services,Head of Childrens Social Care,085351,Framwellgate Moor CU,Supplies and Services,304259,Equipment and Materials,10-Mar-2021,000009436881439,M and M Direct Ltd,5941,Equipment-purchase and rental,19.99,0.00,19.99
"Regeneration, Economy and Growth",Business Durham CL0850,030689,Inward Investment and Aftercare,Third Party Payments,430100,Rendered by Private Contractors,10-Mar-2021,000009440014051,BLS monday.com,7399,Payments to sub-contractors,148.80,0.00,148.80
Children and Young Peoples Services,Head of Early Help Inclusion & Vulnerable Children.,071489,Winter Family Fund,Supplies and Services,364301,Grants to Voluntary Organisations,10-Mar-2021,000009440014077,AMZNMktplace,5999,Hardship,12.99,2.17,10.82
Children and Young Peoples Services,Head of Early Help Inclusion & Vulnerable Children.,071489,Winter Family Fund,Supplies and Services,364301,Grants to Voluntary Organisations,10-Mar-2021,000009440014079,WILKO.COM,5399,Hardship,55.25,0.00,55.25
Children and Young Peoples Services,Head of Early Help Inclusion & Vulnerable Children.,071489,Winter Family Fund,Supplies and Services,364301,Grants to Voluntary Organisations,10-Mar-2021,000009440014087,ASDA GEORGE COM LEEDS,5411,Hardship,120.50,0.00,120.50
Children and Young Peoples Services,Head of Early Help Inclusion & Vulnerable Children.,071489,Winter Family Fund,Supplies and Services,364301,Grants to Voluntary Organisations,10-Mar-2021,000009440014091,ASDA GEORGE COM LEEDS,5411,Hardship,34.95,0.00,34.95
Children and Young Peoples Services,Head of Early Help Inclusion & Vulnerable Children.,071489,Winter Family Fund,Supplies and Services,364301,Grants to Voluntary Organisations,10-Mar-2021,000009440014095,ASDA GEORGE COM LEEDS,5411,Hardship,183.50,0.00,183.50
Children and Young Peoples Services,Head of Early Help Inclusion & Vulnerable Children.,071489,Winter Family Fund,Supplies and Services,364301,Grants to Voluntary Organisations,10-Mar-2021,000009440014103,ASDA GEORGE COM LEEDS,5411,Hardship,349.95,0.00,349.95
Children and Young Peoples Services,Head of Early Help Inclusion & Vulnerable Children.,071489,Winter Family Fund,Supplies and Services,364301,Grants to Voluntary Organisations,10-Mar-2021,000009440014107,ASDA GEORGE COM LEEDS,5411,Hardship,117.00,0.00,117.00
Children and Young Peoples Services,Head of Early Help Inclusion & Vulnerable Children.,071489,Winter Family Fund,Supplies and Services,364301,Grants to Voluntary Organisations,10-Mar-2021,000009440014111,ASDA GEORGE COM LEEDS,5411,Hardship,44.95,0.00,44.95
Children and Young Peoples Services,Head of Early Help Inclusion & Vulnerable Children.,071489,Winter Family Fund,Supplies and Services,364301,Grants to Voluntary Organisations,10-Mar-2021,000009440014119,ARGOS LTD,5310,Hardship,201.94,0.00,201.94
Children and Young Peoples Services,Head of Education and Skills,071801,Selby Cottage Childcare Centre,Supplies and Services,324117,Provisions E324,10-Mar-2021,000009440014129,TESCO STORES 2278,5411,Catering costs - provisions,10.79,0.00,10.79
Children and Young Peoples Services,Head of Education and Skills,071801,Selby Cottage Childcare Centre,Supplies and Services,324117,Provisions E324,10-Mar-2021,000009440014133,TESCO STORES 2371,5411,Catering costs - provisions,52.34,0.00,52.34
Resources BK0010,Digital and Customer Services,065487,ICT Telephony Recharges,Supplies and Services,344033,Telephones,10-Mar-2021,000009440014147,AMZNMktplace,5999,Telephones general-all costs,29.90,4.98,24.92
"Regeneration, Economy and Growth",Business Durham CL0850,039494,NETPark Infrastructure Phase 3,Supplies and Services,342033,Computers and Communications,10-Mar-2021,000009440014155,SOURCETECH LTD,7372,Computer hardware,188.40,0.00,188.40
Children and Young Peoples Services,Head of Education and Skills,075021,Youth Employment Initiative,Supplies and Services,364301,Grants to Voluntary Organisations,10-Mar-2021,000009440014239,TESCO ONLINE,5999,Hardship,-9.99,0.00,-9.99
Children and Young Peoples Services,Head of Education and Skills,075021,Youth Employment Initiative,Supplies and Services,364301,Grants to Voluntary Organisations,10-Mar-2021,000009440014245,SCREWFIX DIRECT,5211,Hardship,-63.96,-6.49,-57.47
Neighbourhoods and Climate Change,Environmental Services,010383,C&G - South Street Cleansing,Supplies and Services,304999,Equipment and Materials,10-Mar-2021,000009440014281,Snowballs,5251,Misc equipment tools and materials,52.55,0.00,52.55
"Regeneration, Economy and Growth",Culture Sport and Tourism,011223,Operations Locality 1,Supplies and Services,384237,Miscellaneous Expenses,10-Mar-2021,000009440014285,Amazon.co.uk MM24Y02M4,5969,Recreational exps outings parties,176.08,29.35,146.73
"Regeneration, Economy and Growth",Culture Sport and Tourism,011223,Operations Locality 1,Supplies and Services,384237,Miscellaneous Expenses,10-Mar-2021,000009440014293,Amazon.co.uk MM7EM1244,5969,Recreational exps outings parties,176.08,29.35,146.73
Children and Young Peoples Services,Head of Childrens Social Care,085332,Middlestone Moor CU,Supplies and Services,324117,Provisions E324,10-Mar-2021,000009440014321,SAINSBURYS 2199,5411,Catering costs - provisions,62.67,0.00,62.67
Children and Young Peoples Services,Head of Childrens Social Care,085332,Middlestone Moor CU,Supplies and Services,304999,Equipment and Materials,10-Mar-2021,000009440014331,HOME BARGAINS,5251,Misc equipment tools and materials,15.31,0.00,15.31
Children and Young Peoples Services,Head of Childrens Social Care,085332,Middlestone Moor CU,Supplies and Services,324117,Provisions E324,10-Mar-2021,000009440014335,LIDL GB BSHP AUCKLAND,5411,Catering costs - provisions,2.67,0.00,2.67
Neighbourhoods and Climate Change,Environmental Services,010367,C&G - South Grounds Maintenance,Supplies and Services,304221,Equipment and Materials,10-Mar-2021,000009440014407,SCREWFIX DIRECT,5211,Direct materials,25.98,0.00,25.98
Children and Young Peoples Services,Head of Early Help Inclusion & Vulnerable Children.,071670,Willington Childrens Centre,Supplies and Services,304259,Equipment and Materials,10-Mar-2021,000009440014473,AMZNMKTPLACE AMAZON.CO,5999,Equipment-purchase and rental,34.98,5.84,29.14
Adult and Health Services,Head of Adults,052753,Social Care Direct 052753,Supplies and Services,308013,Furniture,10-Mar-2021,000009440014491,FRANKS THE FLOORING ST,5713,Curtains and carpets,320.00,53.33,266.67
"Regeneration, Economy and Growth",Development and Housing,031576,B& B - Temp Accom,Supplies and Services,364320,Grants to Voluntary Organisations,10-Mar-2021,000009440014523,THE HONEST LAWYER,7011,Accommodation assistance,79.90,0.00,79.90
Children and Young Peoples Services,Head of Early Help Inclusion & Vulnerable Children.,085957,Secure Management,Supplies and Services,304259,Equipment and Materials,10-Mar-2021,000009440014535,Dawsons Music Sound,5733,Equipment-purchase and rental,7.20,0.00,7.20
Children and Young Peoples Services,Head of Early Help Inclusion & Vulnerable Children.,085952,Secure Education,Supplies and Services,384999,Miscellaneous Expenses,10-Mar-2021,000009440014539,Amazon.co.uk MM2338KA4,5969,Other expenses,20.00,3.33,16.67
Children and Young Peoples Services,Head of Early Help Inclusion & Vulnerable Children.,085965,Barnard,Supplies and Services,304403,Equipment and Materials,10-Mar-2021,000009440014541,AMZNMktplace,5999,Other consumables,60.00,10.00,50.00
Children and Young Peoples Services,Head of Early Help Inclusion & Vulnerable Children.,085952,Secure Education,Supplies and Services,304403,Equipment and Materials,10-Mar-2021,000009440014547,AMZNMKTPLACE AMAZON.CO,5999,Other consumables,-39.99,0.00,-39.99
Children and Young Peoples Services,Head of Childrens Social Care,085362,LAC & Permanence Team 2,Supplies and Services,384999,Miscellaneous Expenses,10-Mar-2021,000009440014561,GEN REGISTER OFFICE,9399,Other expenses,14.00,0.00,14.00
Children and Young Peoples Services,Head of Childrens Social Care,085362,LAC & Permanence Team 2,Supplies and Services,384999,Miscellaneous Expenses,10-Mar-2021,000009440014567,GEN REGISTER OFFICE,9399,Other expenses,14.00,0.00,14.00
"Regeneration, Economy and Growth",Development and Housing,031576,B& B - Temp Accom,Supplies and Services,352001,Conference Expenses,10-Mar-2021,000009440014613,THE HONEST LAWYER,7011,Conferencesseminars fees etc,319.80,0.00,319.80
Children and Young Peoples Services,Head of Education and Skills,071732,Dean Bank Childcare,Supplies and Services,324117,Provisions E324,10-Mar-2021,000009440014707,TESCO STORES 2916,5411,Catering costs - provisions,25.06,0.00,25.06
"Regeneration, Economy and Growth",Development and Housing,030771,Durham Advance Flexible Fund,Supplies and Services,304999,Equipment and Materials,10-Mar-2021,000009440014731,BLACK & DECKER,5251,Misc equipment tools and materials,109.00,0.00,109.00
Children and Young Peoples Services,Head of Early Help Inclusion & Vulnerable Children.,085956,Lumley,Transfer Payments,515002,Social Services Clients,10-Mar-2021,000009440014777,AMZNMktplace,5999,Pocket money,3.48,0.58,2.90
Children and Young Peoples Services,Head of Early Help Inclusion & Vulnerable Children.,085962,Aycliffe Secure - Durham,Supplies and Services,384302,Miscellaneous Expenses,10-Mar-2021,000009440014781,Amazon.co.uk MM3VY7KB4,5969,Activity expenses,39.99,6.67,33.32
Children and Young Peoples Services,Head of Early Help Inclusion & Vulnerable Children.,085962,Aycliffe Secure - Durham,Supplies and Services,324117,Provisions E324,10-Mar-2021,000009440014789,TESCO STORES 6329,5411,Catering costs - provisions,66.52,0.00,66.52
Neighbourhoods and Climate Change,Environmental Services,010367,C&G - South Grounds Maintenance,Supplies and Services,304221,Equipment and Materials,10-Mar-2021,000009440014795,MKM PETERLEE,5211,Direct materials,43.00,0.00,43.00
Neighbourhoods and Climate Change,Environmental Services,010367,C&G - South Grounds Maintenance,Supplies and Services,304403,Equipment and Materials,10-Mar-2021,000009440014801,MAXWELLS DIY,5231,Other consumables,14.00,0.00,14.00
"Regeneration, Economy and Growth",Development and Housing,031500,Housing Solutions - Core Team,Supplies and Services,352001,Conference Expenses,10-Mar-2021,000009440014827,HI NEWCASTLE WASHI,7011,Conferencesseminars fees etc,160.00,0.00,160.00
Children and Young Peoples Services,Head of Early Help Inclusion & Vulnerable Children.,071489,Winter Family Fund,Supplies and Services,364301,Grants to Voluntary Organisations,10-Mar-2021,000009440014941,AMZNMktplace,5999,Hardship,27.99,4.67,23.32
Children and Young Peoples Services,Head of Early Help Inclusion & Vulnerable Children.,071489,Winter Family Fund,Supplies and Services,364301,Grants to Voluntary Organisations,10-Mar-2021,000009440014947,ASDA GEORGE COM LEEDS,5411,Hardship,157.50,0.00,157.50
"Regeneration, Economy and Growth",Corporate Property and Land,011007,Civic Centre Crook,Premises,145023,Cleaning and Domestic Supplies,10-Mar-2021,000009440015015,Amazon.co.uk MM0AK77N4,5969,Cleaning and domestic materials,129.00,21.50,107.50
Children and Young Peoples Services,Head of Childrens Social Care,085333,Coxhoe Satelite Home,Supplies and Services,324117,Provisions E324,10-Mar-2021,000009440015025,TESCO STORES 2371,5411,Catering costs - provisions,33.91,0.00,33.91
Children and Young Peoples Services,Head of Childrens Social Care,085333,Coxhoe Satelite Home,Supplies and Services,324117,Provisions E324,10-Mar-2021,000009440015027,TESCO STORES 2371,5411,Catering costs - provisions,97.00,0.00,97.00
Children and Young Peoples Services,Head of Childrens Social Care,085342,16 Hickstead Rise (previously 9 Cedar Ave),Supplies and Services,348037,Subsistence E348,10-Mar-2021,000009440015047,MCDONALDS,5814,Subsistence,12.36,0.00,12.36
Children and Young Peoples Services,Head of Childrens Social Care,085352,Tow Law CU,Supplies and Services,304403,Equipment and Materials,10-Mar-2021,000009440015069,AMZNMktplace,5999,Other consumables,77.99,13.00,64.99
Children and Young Peoples Services,Head of Childrens Social Care,085352,Tow Law CU,Supplies and Services,304403,Equipment and Materials,10-Mar-2021,000009440015073,AMZNMktplace,5999,Other consumables,77.99,13.00,64.99
Children and Young Peoples Services,Head of Childrens Social Care,085352,Tow Law CU,Supplies and Services,304259,Equipment and Materials,10-Mar-2021,000009440015077,JD SPORTS INTERNET,5941,Equipment-purchase and rental,69.99,0.00,69.99
Children and Young Peoples Services,Head of Childrens Social Care,085613,Families First Durham Central,Supplies and Services,364301,Grants to Voluntary Organisations,10-Mar-2021,000009440015155,AMZNMktplace,5999,Hardship,239.98,40.00,199.98
Children and Young Peoples Services,Head of Early Help Inclusion & Vulnerable Children.,071489,Winter Family Fund,Supplies and Services,364301,Grants to Voluntary Organisations,10-Mar-2021,000009440015161,ASDA GEORGE COM LEEDS,5411,Hardship,89.00,0.00,89.00
Children and Young Peoples Services,Head of Early Help Inclusion & Vulnerable Children.,071489,Winter Family Fund,Supplies and Services,364301,Grants to Voluntary Organisations,10-Mar-2021,000009440015167,ASDA GEORGE COM LEEDS,5411,Hardship,17.95,0.00,17.95
Children and Young Peoples Services,Head of Early Help Inclusion & Vulnerable Children.,071489,Winter Family Fund,Supplies and Services,364301,Grants to Voluntary Organisations,10-Mar-2021,000009440015169,ASDA GEORGE COM LEEDS,5411,Hardship,93.00,0.00,93.00
Children and Young Peoples Services,Head of Early Help Inclusion & Vulnerable Children.,071489,Winter Family Fund,Supplies and Services,364301,Grants to Voluntary Organisations,10-Mar-2021,000009440015177,ASDA GEORGE COM LEEDS,5411,Hardship,-16.00,0.00,-16.00
Children and Young Peoples Services,Head of Early Help Inclusion & Vulnerable Children.,071489,Winter Family Fund,Supplies and Services,364301,Grants to Voluntary Organisations,10-Mar-2021,000009440015181,ASDA GEORGE COM LEEDS,5411,Hardship,-62.00,0.00,-62.00
Adult and Health Services,Head of Adults,055643,Hawthorn House LD Respite Unit,Supplies and Services,324117,Provisions E324,10-Mar-2021,000009440015185,JR HOLLAND FOODSERVICE,5499,Catering costs - provisions,17.59,0.00,17.59
Adult and Health Services,Head of Adults,055643,Hawthorn House LD Respite Unit,Supplies and Services,324117,Provisions E324,10-Mar-2021,000009440015195,JR HOLLAND FOODSERVICE,5499,Catering costs - provisions,27.39,0.00,27.39
Neighbourhoods and Climate Change,Environmental Services,010301,C&G - North Grounds Maintenance,Supplies and Services,304221,Equipment and Materials,10-Mar-2021,000009440015265,HARELAW SAWMILL,5211,Direct materials,418.72,0.00,418.72
Children and Young Peoples Services,Head of Childrens Social Care,085363,LAC & Permanence Team 3,Supplies and Services,338045,Services,10-Mar-2021,000009440015271,HM PASSPORT OFFICE,9399,Legal expenses 338045,49.00,0.00,49.00
Children and Young Peoples Services,Head of Early Help Inclusion & Vulnerable Children.,088100,Durham West & CLS 0-19 Targeted Family Support,Supplies and Services,364301,Grants to Voluntary Organisations,10-Mar-2021,000009440015277,ARGOS LTD,5310,Hardship,51.98,0.00,51.98
Children and Young Peoples Services,Head of Childrens Social Care,085363,LAC & Permanence Team 3,Supplies and Services,338045,Services,10-Mar-2021,000009440015285,Durham County CNCL,9399,Legal expenses 338045,11.00,0.00,11.00
Children and Young Peoples Services,Head of Early Help Inclusion & Vulnerable Children.,071445,Chester le Street One Point Hub,Supplies and Services,304403,Equipment and Materials,10-Mar-2021,000009440015313,AMZNMKTPLACE AMAZON.CO,5999,Other consumables,8.97,1.50,7.47
Children and Young Peoples Services,Head of Early Help Inclusion & Vulnerable Children.,071445,Chester le Street One Point Hub,Supplies and Services,304403,Equipment and Materials,10-Mar-2021,000009440015323,AMZNMKTPLACE AMAZON.CO,5999,Other consumables,14.98,2.50,12.48
Resources BK0010,Business Support,065503,Business Support - Spectrum,Supplies and Services,308011,Furniture,10-Mar-2021,000009440015365,ONLINECARPETS.COUK,5713,Furniture repair and replacement,106.91,0.00,106.91
Children and Young Peoples Services,Head of Education and Skills,071903,Early Years Sustainability,Employees,040149,Recruitment Instruction and Training,10-Mar-2021,000009440015381,KATHY BRODIE,8999,Training-all costs,80.00,0.00,80.00
Children and Young Peoples Services,Head of Education and Skills,071802,Louisa Cent Nursery,Supplies and Services,324117,Provisions E324,10-Mar-2021,000009440015519,ASDA SUPERSTORE,5411,Catering costs - provisions,11.03,0.00,11.03
Children and Young Peoples Services,Head of Early Help Inclusion & Vulnerable Children.,088107,Ferryhill & Newton Aycliffe 0-19 Community Family Hub,Supplies and Services,304403,Equipment and Materials,10-Mar-2021,000009440015565,AMZNMktplace,5999,Other consumables,53.98,9.00,44.98
Resources BK0010,Business Support,065501,Business Support - Executive Support,Supplies and Services,384999,Miscellaneous Expenses,10-Mar-2021,000009440015659,Amazon.co.uk MM4L65KA4,5969,Other expenses,15.47,2.58,12.89
Resources BK0010,Business Support,065501,Business Support - Executive Support,Supplies and Services,304335,Equipment and Materials,10-Mar-2021,000009440015665,Amazon.co.uk MM5JT5KU4,5969,ICT supplies etc,36.94,6.16,30.78
Resources BK0010,Business Support,065501,Business Support - Executive Support,Supplies and Services,304335,Equipment and Materials,10-Mar-2021,000009440015671,Amazon.co.uk MM62K6KJ4,5969,ICT supplies etc,36.94,6.16,30.78
"Regeneration, Economy and Growth",Transport and Contracted Services,032250,Traffic Signals and UTMC 032250,Supplies and Services,304221,Equipment and Materials,10-Mar-2021,000009440015677,SCREWFIX DIRECT,5211,Direct materials,104.97,0.00,104.97
Children and Young Peoples Services,Head of Childrens Social Care,085334,West Rainton Satelite Home,Supplies and Services,324117,Provisions E324,10-Mar-2021,000009440015763,ASDA STORES LTD,5411,Catering costs - provisions,9.00,0.00,9.00
Neighbourhoods and Climate Change,Environmental Services,031200,North Pennines Core,Supplies and Services,344033,Telephones,10-Mar-2021,000009440015799,ZOOM.US 888-799-9666,4814,Telephones general-all costs,134.40,0.00,134.40
Children and Young Peoples Services,Head of Early Help Inclusion & Vulnerable Children.,071641,Horden Childrens Centre,Supplies and Services,304259,Equipment and Materials,10-Mar-2021,000009440015909,AMZNMktplace,5999,Equipment-purchase and rental,32.99,5.50,27.49
"Regeneration, Economy and Growth",Corporate Property and Land,011007,Civic Centre Crook,Premises,145015,Cleaning and Domestic Supplies,10-Mar-2021,000009443157969,PAYPAL PCW PAYPAL,5732,Cleaning and domestic equipment,279.00,46.50,232.50
"Regeneration, Economy and Growth",Corporate Property and Land,015005,Comeleon House Tanfield Lea,Premises,145015,Cleaning and Domestic Supplies,10-Mar-2021,000009443157977,PAYPAL PCW PAYPAL,5732,Cleaning and domestic equipment,279.00,46.50,232.50
Adult and Health Services,Head of Adults,055643,Hawthorn House LD Respite Unit,Supplies and Services,324117,Provisions E324,10-Mar-2021,000009443158141,BATLEYS PERTH,5300,Catering costs - provisions,-0.38,0.00,-0.38
Children and Young Peoples Services,Head of Childrens Social Care,085361,LAC & Permanence Team 1,Supplies and Services,384999,Miscellaneous Expenses,10-Mar-2021,000009467941703,GEN REGISTER OFFICE,9399,Other expenses,-7.50,0.00,-7.50
Dedicated Schools Grant BG0015,DSG High Needs Block,079050,SENSS-Sensory,Supplies and Services,304403,Equipment and Materials,11-Mar-2021,000007470271548,AMZNMKTPLACE AMAZON.CO,5999,Other consumables,64.93,10.85,54.08
Children and Young Peoples Services,Head of Childrens Social Care,085331,New Lea Childrens Home,Supplies and Services,324117,Provisions E324,11-Mar-2021,000007470271660,ASDA SUPERSTORE,5411,Catering costs - provisions,4.75,0.00,4.75
Children and Young Peoples Services,Head of Childrens Social Care,085331,New Lea Childrens Home,Supplies and Services,324117,Provisions E324,11-Mar-2021,000007470271662,ASDA SUPERSTORE,5411,Catering costs - provisions,10.00,0.00,10.00
Children and Young Peoples Services,Head of Childrens Social Care,085331,New Lea Childrens Home,Supplies and Services,324117,Provisions E324,11-Mar-2021,000007470271666,ASDA SUPERSTORE,5411,Catering costs - provisions,13.70,0.00,13.70
Children and Young Peoples Services,Head of Childrens Social Care,085341,High Etherley Satelite Home,Supplies and Services,324117,Provisions E324,11-Mar-2021,000007470271940,ASDA STORES LTD,5411,Catering costs - provisions,24.00,0.00,24.00
"Regeneration, Economy and Growth",Development and Housing,030771,Durham Advance Flexible Fund,Supplies and Services,304403,Equipment and Materials,11-Mar-2021,000007470272032,AMZNMKTPLACE AMAZON.CO,5999,Other consumables,55.53,0.00,55.53
Children and Young Peoples Services,Head of Early Help Inclusion & Vulnerable Children.,071489,Winter Family Fund,Supplies and Services,364301,Grants to Voluntary Organisations,11-Mar-2021,000007470272168,Dunelm,5712,Hardship,31.95,0.00,31.95
Children and Young Peoples Services,Head of Early Help Inclusion & Vulnerable Children.,088108,Spennymoor & Shildon 0-19 Targeted Family Support,Supplies and Services,364301,Grants to Voluntary Organisations,11-Mar-2021,000007470272178,ASDA STORES,5411,Hardship,209.60,0.00,209.60
Children and Young Peoples Services,Head of Early Help Inclusion & Vulnerable Children.,071489,Winter Family Fund,Supplies and Services,364301,Grants to Voluntary Organisations,11-Mar-2021,000007470272184,ARGOS LTD,5310,Hardship,71.94,0.00,71.94
Children and Young Peoples Services,Head of Early Help Inclusion & Vulnerable Children.,071489,Winter Family Fund,Supplies and Services,364301,Grants to Voluntary Organisations,11-Mar-2021,000007470272364,WILKO.COM,5399,Hardship,-2.00,0.00,-2.00
"Regeneration, Economy and Growth",Business Durham CL0850,030689,Inward Investment and Aftercare,Supplies and Services,342033,Computers and Communications,11-Mar-2021,000009440014057,AdRoll_EMEA,7372,Computer hardware,76.95,0.00,76.95
"Regeneration, Economy and Growth",Business Durham CL0850,030689,Inward Investment and Aftercare,Supplies and Services,342033,Computers and Communications,11-Mar-2021,000009440014063,AdRoll_EMEA,7372,Computer hardware,2.12,0.00,2.12
Children and Young Peoples Services,Head of Early Help Inclusion & Vulnerable Children.,071489,Winter Family Fund,Supplies and Services,364301,Grants to Voluntary Organisations,11-Mar-2021,000009443156823,AMZNMktplace,5999,Hardship,51.80,8.64,43.16
Children and Young Peoples Services,Head of Early Help Inclusion & Vulnerable Children.,071489,Winter Family Fund,Supplies and Services,364301,Grants to Voluntary Organisations,11-Mar-2021,000009443156829,ASDA GROCERIES ONLINE,5411,Hardship,48.04,0.00,48.04
Children and Young Peoples Services,Head of Early Help Inclusion & Vulnerable Children.,071489,Winter Family Fund,Supplies and Services,364301,Grants to Voluntary Organisations,11-Mar-2021,000009443156833,ASDA GROCERIES ONLINE,5411,Hardship,31.05,0.00,31.05
Children and Young Peoples Services,Head of Early Help Inclusion & Vulnerable Children.,071489,Winter Family Fund,Supplies and Services,364301,Grants to Voluntary Organisations,11-Mar-2021,000009443156837,ASDA GROCERIES ONLINE,5411,Hardship,59.78,0.00,59.78
Children and Young Peoples Services,Head of Early Help Inclusion & Vulnerable Children.,071489,Winter Family Fund,Supplies and Services,364301,Grants to Voluntary Organisations,11-Mar-2021,000009443156841,ASDA GROCERIES ONLINE,5411,Hardship,-0.56,0.00,-0.56
"Regeneration, Economy and Growth",Development and Housing,031576,B& B - Temp Accom,Supplies and Services,364320,Grants to Voluntary Organisations,11-Mar-2021,000009443156861,HI NEWCASTLE WASHI,7011,Accommodation assistance,450.00,0.00,450.00
"Regeneration, Economy and Growth",Development and Housing,031576,B& B - Temp Accom,Supplies and Services,364320,Grants to Voluntary Organisations,11-Mar-2021,000009443156867,HI NEWCASTLE WASHI,7011,Accommodation assistance,450.00,0.00,450.00
"Regeneration, Economy and Growth",Development and Housing,031576,B& B - Temp Accom,Supplies and Services,364320,Grants to Voluntary Organisations,11-Mar-2021,000009443156871,HI NEWCASTLE WASHI,7011,Accommodation assistance,450.00,0.00,450.00
"Regeneration, Economy and Growth",Development and Housing,031576,B& B - Temp Accom,Supplies and Services,364320,Grants to Voluntary Organisations,11-Mar-2021,000009443156873,HI NEWCASTLE WASHI,7011,Accommodation assistance,329.85,0.00,329.85
Resources BK0010,Digital and Customer Services,065481,Technical Services 065481,Employees,040149,Recruitment Instruction and Training,11-Mar-2021,000009443156891,Pluralsight,8299,Training-all costs,294.00,0.00,294.00
Resources BK0010,Business Support,065500,Business Support - Management,Supplies and Services,342033,Computers and Communications,11-Mar-2021,000009443156899,AMZNMktplace,5999,Computer hardware,17.99,3.00,14.99
"Regeneration, Economy and Growth",Development and Housing,030777,FLEX,Supplies and Services,304221,Equipment and Materials,11-Mar-2021,000009443156907,CARRS BILLINGTON SPENN,5599,Direct materials,240.00,0.00,240.00
"Regeneration, Economy and Growth",Development and Housing,030777,FLEX,Supplies and Services,304221,Equipment and Materials,11-Mar-2021,000009443156911,SCREWFIX DIRECT,5211,Direct materials,147.17,0.00,147.17
Children and Young Peoples Services,Head of Childrens Social Care,085501,Child Care Cases Legal Expenses,Supplies and Services,304403,Equipment and Materials,11-Mar-2021,000009443156923,DARLINGTON BC INTERNET,9399,Other consumables,11.00,0.00,11.00
"Regeneration, Economy and Growth",Development and Housing,030773,CLLD North,Employees,080025,Agency Staff,11-Mar-2021,000009443156927,WWW.REED.CO.UK,7361,Agency supply staff,10.00,1.67,8.33
Children and Young Peoples Services,Head of Education and Skills,075021,Youth Employment Initiative,Supplies and Services,364301,Grants to Voluntary Organisations,11-Mar-2021,000009443156939,GO NORTH EAST LIMITED,4131,Hardship,4.50,0.00,4.50
Children and Young Peoples Services,Head of Education and Skills,075021,Youth Employment Initiative,Supplies and Services,364301,Grants to Voluntary Organisations,11-Mar-2021,000009443156947,GO NORTH EAST LIMITED,4131,Hardship,4.50,0.00,4.50
Children and Young Peoples Services,Head of Education and Skills,075021,Youth Employment Initiative,Supplies and Services,364301,Grants to Voluntary Organisations,11-Mar-2021,000009443156953,GO NORTH EAST LIMITED,4131,Hardship,4.50,0.00,4.50
Children and Young Peoples Services,Head of Education and Skills,075021,Youth Employment Initiative,Supplies and Services,364301,Grants to Voluntary Organisations,11-Mar-2021,000009443156961,GO NORTH EAST LIMITED,4131,Hardship,4.50,0.00,4.50
Adult and Health Services,Head of Adults,055302,Durham Pathways,Supplies and Services,304403,Equipment and Materials,11-Mar-2021,000009443156969,AMZNMktplace,5999,Other consumables,27.89,4.65,23.24
Adult and Health Services,Head of Adults,055302,Durham Pathways,Supplies and Services,328041,Clothing uniforms and laundry E328,11-Mar-2021,000009443156975,ARGOS LTD,5310,Clothing uniforms and laundry,115.94,0.00,115.94
Dedicated Schools Grant BG0015,DSG High Needs Block,079050,SENSS-Sensory,Supplies and Services,304403,Equipment and Materials,11-Mar-2021,000009443157017,AMZNMKTPLACE AMAZON.CO,5999,Other consumables,9.76,1.63,8.13
Children and Young Peoples Services,Head of Childrens Social Care,085332,Middlestone Moor CU,Supplies and Services,324117,Provisions E324,11-Mar-2021,000009443157079,WILKO RETAIL LIMITED,5399,Catering costs - provisions,9.00,0.00,9.00
Children and Young Peoples Services,Head of Childrens Social Care,085331,New Lea Childrens Home,Supplies and Services,348037,Subsistence E348,11-Mar-2021,000009443157167,MCDONALDS,5812,Subsistence,2.60,0.00,2.60
Adult and Health Services,Head of Adults,052753,Social Care Direct 052753,Supplies and Services,308013,Furniture,11-Mar-2021,000009443157187,THE FLOORING STORE,5713,Curtains and carpets,380.00,0.00,380.00
Children and Young Peoples Services,Head of Early Help Inclusion & Vulnerable Children.,079599,Psychological-HQ,Supplies and Services,384999,Miscellaneous Expenses,11-Mar-2021,000009443157231,WWW.ACAMH.ORG,5965,Other expenses,70.00,0.00,70.00
Children and Young Peoples Services,Head of Early Help Inclusion & Vulnerable Children.,085956,Lumley,Supplies and Services,324117,Provisions E324,11-Mar-2021,000009443157241,TESCO STORES 2916,5411,Catering costs - provisions,5.46,0.00,5.46
